{"text_format":"1","workbook":"xlsx","n_sheets":5,"sheets":["Summary-TBC BY SCHOOL","Data Validation","Example","FOR FINANCE USE ONLY","UploadFile"],"not_rendered":{"charts":0,"images":0,"macros":1,"external_links":0,"defined_names":0,"comments":1,"pivot_tables":0},"unopened":[],"bounds":{"document_bytes":16777216,"sheet_cells":100000,"rows_first":2000,"rows_last":500,"rows_between":2000,"halvings":0,"cell_chars":16384,"cell_head_chars":4096},"cells_cut":0,"cells_raw":0,"read":"whole","date_system":"1900"}

{"sheet":"Summary-TBC BY SCHOOL","index":0,"n_rows":156,"n_cols":12,"rows_kept":156,"cut":false,"hidden":false,"merged":[[2,0,3,0],[8,11,8,15],[2,2,3,2],[5,11,5,14],[4,1,4,4],[2,6,3,6],[2,1,3,1],[2,3,3,3],[2,4,3,4],[2,5,3,5]]}
[null,"* Fill in the blank fields highlighted in blue"]
[]
["Term","Sponsor ID","Sponsor Name","Student ID","Student Name","Amount Owed","Sponsored Amount","Sponsor type ","Payment Amount ",null,null,"SCHOLARSHIP/SPONSORSHIP BULK PAYMENT TEMPLATE"]
[null,null,null,null,null,null,null,"Internal "]
[null,"TOTAL",null,null,null,{"$f":"SUM(F6:F153)","v":0},{"$f":"SUM(G6:G153)","v":0},{"$f":"SUM(H6:H153)","v":0},{"$f":"SUM(I6:I153)","v":0},null,null,"* Complete one summary spreadsheet for each sponsor (i.e. 2 sponsors = 2 spreadsheet)."]
[null,null,null,null,null,null,null,"Internal",{"$f":"IF(H6=\"Internal\",G6,0)","v":0},null,null,"* One spreadsheet can only contain max 150 payments. If you have more than 150 payments, please split it into multiple files. "]
[null,null,null,null,null,null,null,"Internal",{"$f":"IF(H7=\"Internal\",G7,0)","v":0}]
[null,null,null,null,null,null,null,"Internal",0]
[null,null,null,null,null,null,null,"Internal",0,null,null,"From 6/10/2021 : all EXTERNAL Sponsorship invoices will be issued in Banner \n=> this template is no longer used for external sponsorship payment. "]
[null,null,null,null,null,null,null,"Internal",0]
[null,null,null,null,null,null,null,"Internal",0]
[null,null,null,null,null,null,null,"Internal",0]
[null,null,null,null,null,null,null,"Internal",0]
[null,null,null,null,null,null,null,"Internal",0]
[null,null,null,null,null,null,null,"Internal",0]
[null,null,null,null,null,null,null,"Internal",0]
[null,null,null,null,null,null,null,"Internal",0]
[null,null,null,null,null,null,null,"Internal",0]
[null,null,null,null,null,null,null,"Internal",0]
[null,null,null,null,null,null,null,"Internal",0]
[null,null,null,null,null,null,null,"Internal",0]
[null,null,null,null,null,null,null,"Internal",0]
[null,null,null,null,null,null,null,"Internal",0]
[null,null,null,null,null,null,null,"Internal",0]
[null,null,null,null,null,null,null,"Internal",0]
[null,null,null,null,null,null,null,"Internal",0]
[null,null,null,null,null,null,null,"Internal",0]
[null,null,null,null,null,null,null,"Internal",0]
[null,null,null,null,null,null,null,"Internal",0]
[null,null,null,null,null,null,null,"Internal",0]
[null,null,null,null,null,null,null,"Internal",0]
[null,null,null,null,null,null,null,"Internal",0]
[null,null,null,null,null,null,null,"Internal",0]
[null,null,null,null,null,null,null,"Internal",0]
[null,null,null,null,null,null,null,"Internal",0]
[null,null,null,null,null,null,null,"Internal",0]
[null,null,null,null,null,null,null,"Internal",0]
[null,null,null,null,null,null,null,"Internal",0]
[null,null,null,null,null,null,null,"Internal",0]
[null,null,null,null,null,null,null,"Internal",0]
[null,null,null,null,null,null,null,"Internal",0]
[null,null,null,null,null,null,null,"Internal",0]
[null,null,null,null,null,null,null,"Internal",0]
[null,null,null,null,null,null,null,"Internal",0]
[null,null,null,null,null,null,null,"Internal",0]
[null,null,null,null,null,null,null,"Internal",0]
[null,null,null,null,null,null,null,"Internal",0]
[null,null,null,null,null,null,null,"Internal",0]
[null,null,null,null,null,null,null,"Internal",0]
[null,null,null,null,null,null,null,"Internal",0]
[null,null,null,null,null,null,null,"Internal",0]
[null,null,null,null,null,null,null,"Internal",0]
[null,null,null,null,null,null,null,"Internal",0]
[null,null,null,null,null,null,null,"Internal",0]
[null,null,null,null,null,null,null,"Internal",0]
[null,null,null,null,null,null,null,"Internal",0]
[null,null,null,null,null,null,null,"Internal",0]
[null,null,null,null,null,null,null,"Internal",0]
[null,null,null,null,null,null,null,"Internal",0]
[null,null,null,null,null,null,null,"Internal",0]
[null,null,null,null,null,null,null,"Internal",0]
[null,null,null,null,null,null,null,"Internal",0]
[null,null,null,null,null,null,null,"Internal",0]
[null,null,null,null,null,null,null,"Internal",0]
[null,null,null,null,null,null,null,"Internal",0]
[null,null,null,null,null,null,null,"Internal",0]
[null,null,null,null,null,null,null,"Internal",{"$f":"IF(H67=\"Internal\",G67,0)","v":0}]
[null,null,null,null,null,null,null,"Internal",0]
[null,null,null,null,null,null,null,"Internal",0]
[null,null,null,null,null,null,null,"Internal",0]
[null,null,null,null,null,null,null,"Internal",0]
[null,null,null,null,null,null,null,"Internal",0]
[null,null,null,null,null,null,null,"Internal",0]
[null,null,null,null,null,null,null,"Internal",{"$f":"IF(H74=\"Internal\",G74,0)","v":0}]
[null,null,null,null,null,null,null,"Internal",0]
[null,null,null,null,null,null,null,"Internal",0]
[null,null,null,null,null,null,null,"Internal",0]
[null,null,null,null,null,null,null,"Internal",0]
[null,null,null,null,null,null,null,"Internal",0]
[null,null,null,null,null,null,null,"Internal",0]
[null,null,null,null,null,null,null,"Internal",0]
[null,null,null,null,null,null,null,"Internal",0]
[null,null,null,null,null,null,null,"Internal",0]
[null,null,null,null,null,null,null,"Internal",0]
[null,null,null,null,null,null,null,"Internal",0]
[null,null,null,null,null,null,null,"Internal",0]
[null,null,null,null,null,null,null,"Internal",0]
[null,null,null,null,null,null,null,"Internal",0]
[null,null,null,null,null,null,null,"Internal",0]
[null,null,null,null,null,null,null,"Internal",0]
[null,null,null,null,null,null,null,"Internal",0]
[null,null,null,null,null,null,null,"Internal",0]
[null,null,null,null,null,null,null,"Internal",{"$f":"IF(H93=\"Internal\",G93,0)","v":0}]
[null,null,null,null,null,null,null,"Internal",0]
[null,null,null,null,null,null,null,"Internal",0]
[null,null,null,null,null,null,null,"Internal",0]
[null,null,null,null,null,null,null,"Internal",0]
[null,null,null,null,null,null,null,"Internal",0]
[null,null,null,null,null,null,null,"Internal",0]
[null,null,null,null,null,null,null,"Internal",0]
[null,null,null,null,null,null,null,"Internal",0]
[null,null,null,null,null,null,null,"Internal",0]
[null,null,null,null,null,null,null,"Internal",0]
[null,null,null,null,null,null,null,"Internal",0]
[null,null,null,null,null,null,null,"Internal",0]
[null,null,null,null,null,null,null,"Internal",0]
[null,null,null,null,null,null,null,"Internal",0]
[null,null,null,null,null,null,null,"Internal",0]
[null,null,null,null,null,null,null,"Internal",0]
[null,null,null,null,null,null,null,"Internal",0]
[null,null,null,null,null,null,null,"Internal",0]
[null,null,null,null,null,null,null,"Internal",0]
[null,null,null,null,null,null,null,"Internal",0]
[null,null,null,null,null,null,null,"Internal",0]
[null,null,null,null,null,null,null,"Internal",0]
[null,null,null,null,null,null,null,"Internal",0]
[null,null,null,null,null,null,null,"Internal",0]
[null,null,null,null,null,null,null,"Internal",0]
[null,null,null,null,null,null,null,"Internal",0]
[null,null,null,null,null,null,null,"Internal",0]
[null,null,null,null,null,null,null,"Internal",0]
[null,null,null,null,null,null,null,"Internal",{"$f":"IF(H122=\"Internal\",G122,0)","v":0}]
[null,null,null,null,null,null,null,"Internal",0]
[null,null,null,null,null,null,null,"Internal",0]
[null,null,null,null,null,null,null,"Internal",0]
[null,null,null,null,null,null,null,"Internal",0]
[null,null,null,null,null,null,null,"Internal",0]
[null,null,null,null,null,null,null,"Internal",0]
[null,null,null,null,null,null,null,"Internal",0]
[null,null,null,null,null,null,null,"Internal",0]
[null,null,null,null,null,null,null,"Internal",0]
[null,null,null,null,null,null,null,"Internal",0]
[null,null,null,null,null,null,null,"Internal",0]
[null,null,null,null,null,null,null,"Internal",0]
[null,null,null,null,null,null,null,"Internal",0]
[null,null,null,null,null,null,null,"Internal",0]
[null,null,null,null,null,null,null,"Internal",0]
[null,null,null,null,null,null,null,"Internal",0]
[null,null,null,null,null,null,null,"Internal",0]
[null,null,null,null,null,null,null,"Internal",0]
[null,null,null,null,null,null,null,"Internal",0]
[null,null,null,null,null,null,null,"Internal",0]
[null,null,null,null,null,null,null,"Internal",0]
[null,null,null,null,null,null,null,"Internal",0]
[null,null,null,null,null,null,null,"Internal",0]
[null,null,null,null,null,null,null,"Internal",0]
[null,null,null,null,null,null,null,"Internal",0]
[null,null,null,null,null,null,null,"Internal",0]
[null,null,null,null,null,null,null,"Internal",0]
[null,null,null,null,null,null,null,"Internal",0]
[null,null,null,null,null,null,null,"Internal",0]
[null,null,null,null,null,null,null,"Internal",0]
[null,null,null,null,null,null,null,"Internal",0]
[null,null,null,null,null,null,"Total ",null,{"$f":"SUM(I6:I153)","v":0}]
[]
[null,"* Fill in the blank fields highlighted in blue colour."]

{"sheet":"Data Validation","index":1,"n_rows":2,"n_cols":2,"rows_kept":2,"cut":false,"hidden":true,"merged":[]}
[]
[null,"Internal"]

{"sheet":"Example","index":2,"n_rows":9,"n_cols":9,"rows_kept":9,"cut":false,"hidden":false,"merged":[[1,1,2,1],[1,0,2,0],[1,4,2,4],[1,7,1,8],[1,5,2,5],[1,6,2,6],[1,3,2,3],[1,2,2,2]]}
[]
["Sponsor Code","Person ID","First Name","Last Name ","Amount Owed","Sponsored Amount","Sponsored Type ","To be paid by "]
[null,null,null,null,null,null,null,"External Sponsor","Internal Sponsor"]
[]
["SPEXAMPLE",11111111,"John ","Smith",15720,15720,"Internal ",{"$f":"F5","v":15720},{"$f":"F5*$I$4","v":0}]
["SPEXAMPLE",22222222,"Jess ","Simpson",11790,11790,"Internal ",{"$f":"F6","v":11790},{"$f":"F6*$I$4","v":0}]
[null,null,null,null,{"$f":"SUM(E5:E6)","v":27510},"Total ",null,{"$f":"SUM(H5:H6)","v":27510},{"$f":"SUM(I5:I6)","v":0}]
[]
["* Fill in the blank fields highlighted in blue colour."]

{"sheet":"FOR FINANCE USE ONLY","index":3,"n_rows":151,"n_cols":11,"rows_kept":151,"cut":false,"hidden":false,"merged":[]}
["Service Name","Student Number","First Name","Last Name","Effective Date","Amount","TXRef","Email",null,"TOTAL Receipt ",{"$f":"COUNT(F2:F151)","v":0}]
[{"$f":"IF(AND(ISBLANK('Summary-TBC BY SCHOOL'!$B6),ISBLANK('Summary-TBC BY SCHOOL'!$D6)),\"\",\"SCH Fees\")","v":""},{"$f":"IF(AND(ISBLANK('Summary-TBC BY SCHOOL'!$D6),ISBLANK('Summary-TBC BY SCHOOL'!$B6)),\"\",IF(ISBLANK('Summary-TBC BY SCHOOL'!$B6),'Summary-TBC BY SCHOOL'!$D6,'Summary-TBC BY SCHOOL'!$B6))","v":""},{"$f":"IF(ISBLANK('Summary-TBC BY SCHOOL'!$C6),\"\",'Summary-TBC BY SCHOOL'!C6)","v":""},{"$f":"IF(AND(ISBLANK('Summary-TBC BY SCHOOL'!$B6),ISBLANK('Summary-TBC BY SCHOOL'!$D6)),\"\",'Summary-TBC BY SCHOOL'!E6)","v":""},{"$f":"IF(ISBLANK($B2),\"\",IF((LEN(DAY(NOW())))=1,(\"0\"&DAY(NOW())),DAY(NOW()))&\"/\"&IF((LEN(MONTH(NOW())))=1,(\"0\"&MONTH(NOW())),MONTH(NOW()))&\"/\"&YEAR(NOW()))","v":"11/07/2022"},{"$f":"IFERROR(IF(AND(ISBLANK('Summary-TBC BY SCHOOL'!$D6),ISBLANK('Summary-TBC BY SCHOOL'!$B6)),\"\",'Summary-TBC BY SCHOOL'!$I6*100),\"\")","v":""},{"$f":"IF(ISBLANK('Summary-TBC BY SCHOOL'!$A6),\"\",'Summary-TBC BY SCHOOL'!$A6)","v":""}]
[{"$f":"IF(AND(ISBLANK('Summary-TBC BY SCHOOL'!$B7),ISBLANK('Summary-TBC BY SCHOOL'!$D7)),\"\",\"SCH Fees\")","v":""},{"$f":"IF(AND(ISBLANK('Summary-TBC BY SCHOOL'!$D7),ISBLANK('Summary-TBC BY SCHOOL'!$B7)),\"\",IF(ISBLANK('Summary-TBC BY SCHOOL'!$B7),'Summary-TBC BY SCHOOL'!$D7,'Summary-TBC BY SCHOOL'!$B7))","v":""},{"$f":"IF(ISBLANK('Summary-TBC BY SCHOOL'!$C7),\"\",'Summary-TBC BY SCHOOL'!C7)","v":""},{"$f":"IF(AND(ISBLANK('Summary-TBC BY SCHOOL'!$B7),ISBLANK('Summary-TBC BY SCHOOL'!$D7)),\"\",'Summary-TBC BY SCHOOL'!E7)","v":""},{"$f":"IF(ISBLANK($B3),\"\",IF((LEN(DAY(NOW())))=1,(\"0\"&DAY(NOW())),DAY(NOW()))&\"/\"&IF((LEN(MONTH(NOW())))=1,(\"0\"&MONTH(NOW())),MONTH(NOW()))&\"/\"&YEAR(NOW()))","v":"11/07/2022"},{"$f":"IFERROR(IF(AND(ISBLANK('Summary-TBC BY SCHOOL'!$D7),ISBLANK('Summary-TBC BY SCHOOL'!$B7)),\"\",'Summary-TBC BY SCHOOL'!$I7*100),\"\")","v":""},{"$f":"IF(ISBLANK('Summary-TBC BY SCHOOL'!$A7),\"\",'Summary-TBC BY SCHOOL'!$A7)","v":""},null,null,"TOTAL Amount ",{"$f":"SUM(F2:F151)","v":0}]
[{"$f":"IF(AND(ISBLANK('Summary-TBC BY SCHOOL'!$B8),ISBLANK('Summary-TBC BY SCHOOL'!$D8)),\"\",\"SCH Fees\")","v":""},{"$f":"IF(AND(ISBLANK('Summary-TBC BY SCHOOL'!$D8),ISBLANK('Summary-TBC BY SCHOOL'!$B8)),\"\",IF(ISBLANK('Summary-TBC BY SCHOOL'!$B8),'Summary-TBC BY SCHOOL'!$D8,'Summary-TBC BY SCHOOL'!$B8))","v":""},{"$f":"IF(ISBLANK('Summary-TBC BY SCHOOL'!$C8),\"\",'Summary-TBC BY SCHOOL'!C8)","v":""},{"$f":"IF(AND(ISBLANK('Summary-TBC BY SCHOOL'!$B8),ISBLANK('Summary-TBC BY SCHOOL'!$D8)),\"\",'Summary-TBC BY SCHOOL'!E8)","v":""},"11/07/2022",{"$f":"IFERROR(IF(AND(ISBLANK('Summary-TBC BY SCHOOL'!$D8),ISBLANK('Summary-TBC BY SCHOOL'!$B8)),\"\",'Summary-TBC BY SCHOOL'!$I8*100),\"\")","v":""},{"$f":"IF(ISBLANK('Summary-TBC BY SCHOOL'!$A8),\"\",'Summary-TBC BY SCHOOL'!$A8)","v":""}]
[{"$f":"IF(AND(ISBLANK('Summary-TBC BY SCHOOL'!$B9),ISBLANK('Summary-TBC BY SCHOOL'!$D9)),\"\",\"SCH Fees\")","v":""},{"$f":"IF(AND(ISBLANK('Summary-TBC BY SCHOOL'!$D9),ISBLANK('Summary-TBC BY SCHOOL'!$B9)),\"\",IF(ISBLANK('Summary-TBC BY SCHOOL'!$B9),'Summary-TBC BY SCHOOL'!$D9,'Summary-TBC BY SCHOOL'!$B9))","v":""},{"$f":"IF(ISBLANK('Summary-TBC BY SCHOOL'!$C9),\"\",'Summary-TBC BY SCHOOL'!C9)","v":""},{"$f":"IF(AND(ISBLANK('Summary-TBC BY SCHOOL'!$B9),ISBLANK('Summary-TBC BY SCHOOL'!$D9)),\"\",'Summary-TBC BY SCHOOL'!E9)","v":""},"11/07/2022",{"$f":"IFERROR(IF(AND(ISBLANK('Summary-TBC BY SCHOOL'!$D9),ISBLANK('Summary-TBC BY SCHOOL'!$B9)),\"\",'Summary-TBC BY SCHOOL'!$I9*100),\"\")","v":""},{"$f":"IF(ISBLANK('Summary-TBC BY SCHOOL'!$A9),\"\",'Summary-TBC BY SCHOOL'!$A9)","v":""}]
[{"$f":"IF(AND(ISBLANK('Summary-TBC BY SCHOOL'!$B10),ISBLANK('Summary-TBC BY SCHOOL'!$D10)),\"\",\"SCH Fees\")","v":""},{"$f":"IF(AND(ISBLANK('Summary-TBC BY SCHOOL'!$D10),ISBLANK('Summary-TBC BY SCHOOL'!$B10)),\"\",IF(ISBLANK('Summary-TBC BY SCHOOL'!$B10),'Summary-TBC BY SCHOOL'!$D10,'Summary-TBC BY SCHOOL'!$B10))","v":""},{"$f":"IF(ISBLANK('Summary-TBC BY SCHOOL'!$C10),\"\",'Summary-TBC BY SCHOOL'!C10)","v":""},{"$f":"IF(AND(ISBLANK('Summary-TBC BY SCHOOL'!$B10),ISBLANK('Summary-TBC BY SCHOOL'!$D10)),\"\",'Summary-TBC BY SCHOOL'!E10)","v":""},"11/07/2022",{"$f":"IFERROR(IF(AND(ISBLANK('Summary-TBC BY SCHOOL'!$D10),ISBLANK('Summary-TBC BY SCHOOL'!$B10)),\"\",'Summary-TBC BY SCHOOL'!$I10*100),\"\")","v":""},{"$f":"IF(ISBLANK('Summary-TBC BY SCHOOL'!$A10),\"\",'Summary-TBC BY SCHOOL'!$A10)","v":""}]
[{"$f":"IF(AND(ISBLANK('Summary-TBC BY SCHOOL'!$B11),ISBLANK('Summary-TBC BY SCHOOL'!$D11)),\"\",\"SCH Fees\")","v":""},{"$f":"IF(AND(ISBLANK('Summary-TBC BY SCHOOL'!$D11),ISBLANK('Summary-TBC BY SCHOOL'!$B11)),\"\",IF(ISBLANK('Summary-TBC BY SCHOOL'!$B11),'Summary-TBC BY SCHOOL'!$D11,'Summary-TBC BY SCHOOL'!$B11))","v":""},{"$f":"IF(ISBLANK('Summary-TBC BY SCHOOL'!$C11),\"\",'Summary-TBC BY SCHOOL'!C11)","v":""},{"$f":"IF(AND(ISBLANK('Summary-TBC BY SCHOOL'!$B11),ISBLANK('Summary-TBC BY SCHOOL'!$D11)),\"\",'Summary-TBC BY SCHOOL'!E11)","v":""},"11/07/2022",{"$f":"IFERROR(IF(AND(ISBLANK('Summary-TBC BY SCHOOL'!$D11),ISBLANK('Summary-TBC BY SCHOOL'!$B11)),\"\",'Summary-TBC BY SCHOOL'!$I11*100),\"\")","v":""},{"$f":"IF(ISBLANK('Summary-TBC BY SCHOOL'!$A11),\"\",'Summary-TBC BY SCHOOL'!$A11)","v":""}]
[{"$f":"IF(AND(ISBLANK('Summary-TBC BY SCHOOL'!$B12),ISBLANK('Summary-TBC BY SCHOOL'!$D12)),\"\",\"SCH Fees\")","v":""},{"$f":"IF(AND(ISBLANK('Summary-TBC BY SCHOOL'!$D12),ISBLANK('Summary-TBC BY SCHOOL'!$B12)),\"\",IF(ISBLANK('Summary-TBC BY SCHOOL'!$B12),'Summary-TBC BY SCHOOL'!$D12,'Summary-TBC BY SCHOOL'!$B12))","v":""},{"$f":"IF(ISBLANK('Summary-TBC BY SCHOOL'!$C12),\"\",'Summary-TBC BY SCHOOL'!C12)","v":""},{"$f":"IF(AND(ISBLANK('Summary-TBC BY SCHOOL'!$B12),ISBLANK('Summary-TBC BY SCHOOL'!$D12)),\"\",'Summary-TBC BY SCHOOL'!E12)","v":""},"11/07/2022",{"$f":"IFERROR(IF(AND(ISBLANK('Summary-TBC BY SCHOOL'!$D12),ISBLANK('Summary-TBC BY SCHOOL'!$B12)),\"\",'Summary-TBC BY SCHOOL'!$I12*100),\"\")","v":""},{"$f":"IF(ISBLANK('Summary-TBC BY SCHOOL'!$A12),\"\",'Summary-TBC BY SCHOOL'!$A12)","v":""}]
[{"$f":"IF(AND(ISBLANK('Summary-TBC BY SCHOOL'!$B13),ISBLANK('Summary-TBC BY SCHOOL'!$D13)),\"\",\"SCH Fees\")","v":""},{"$f":"IF(AND(ISBLANK('Summary-TBC BY SCHOOL'!$D13),ISBLANK('Summary-TBC BY SCHOOL'!$B13)),\"\",IF(ISBLANK('Summary-TBC BY SCHOOL'!$B13),'Summary-TBC BY SCHOOL'!$D13,'Summary-TBC BY SCHOOL'!$B13))","v":""},{"$f":"IF(ISBLANK('Summary-TBC BY SCHOOL'!$C13),\"\",'Summary-TBC BY SCHOOL'!C13)","v":""},{"$f":"IF(AND(ISBLANK('Summary-TBC BY SCHOOL'!$B13),ISBLANK('Summary-TBC BY SCHOOL'!$D13)),\"\",'Summary-TBC BY SCHOOL'!E13)","v":""},"11/07/2022",{"$f":"IFERROR(IF(AND(ISBLANK('Summary-TBC BY SCHOOL'!$D13),ISBLANK('Summary-TBC BY SCHOOL'!$B13)),\"\",'Summary-TBC BY SCHOOL'!$I13*100),\"\")","v":""},{"$f":"IF(ISBLANK('Summary-TBC BY SCHOOL'!$A13),\"\",'Summary-TBC BY SCHOOL'!$A13)","v":""}]
[{"$f":"IF(AND(ISBLANK('Summary-TBC BY SCHOOL'!$B14),ISBLANK('Summary-TBC BY SCHOOL'!$D14)),\"\",\"SCH Fees\")","v":""},{"$f":"IF(AND(ISBLANK('Summary-TBC BY SCHOOL'!$D14),ISBLANK('Summary-TBC BY SCHOOL'!$B14)),\"\",IF(ISBLANK('Summary-TBC BY SCHOOL'!$B14),'Summary-TBC BY SCHOOL'!$D14,'Summary-TBC BY SCHOOL'!$B14))","v":""},{"$f":"IF(ISBLANK('Summary-TBC BY SCHOOL'!$C14),\"\",'Summary-TBC BY SCHOOL'!C14)","v":""},{"$f":"IF(AND(ISBLANK('Summary-TBC BY SCHOOL'!$B14),ISBLANK('Summary-TBC BY SCHOOL'!$D14)),\"\",'Summary-TBC BY SCHOOL'!E14)","v":""},"11/07/2022",{"$f":"IFERROR(IF(AND(ISBLANK('Summary-TBC BY SCHOOL'!$D14),ISBLANK('Summary-TBC BY SCHOOL'!$B14)),\"\",'Summary-TBC BY SCHOOL'!$I14*100),\"\")","v":""},{"$f":"IF(ISBLANK('Summary-TBC BY SCHOOL'!$A14),\"\",'Summary-TBC BY SCHOOL'!$A14)","v":""}]
[{"$f":"IF(AND(ISBLANK('Summary-TBC BY SCHOOL'!$B15),ISBLANK('Summary-TBC BY SCHOOL'!$D15)),\"\",\"SCH Fees\")","v":""},{"$f":"IF(AND(ISBLANK('Summary-TBC BY SCHOOL'!$D15),ISBLANK('Summary-TBC BY SCHOOL'!$B15)),\"\",IF(ISBLANK('Summary-TBC BY SCHOOL'!$B15),'Summary-TBC BY SCHOOL'!$D15,'Summary-TBC BY SCHOOL'!$B15))","v":""},{"$f":"IF(ISBLANK('Summary-TBC BY SCHOOL'!$C15),\"\",'Summary-TBC BY SCHOOL'!C15)","v":""},{"$f":"IF(AND(ISBLANK('Summary-TBC BY SCHOOL'!$B15),ISBLANK('Summary-TBC BY SCHOOL'!$D15)),\"\",'Summary-TBC BY SCHOOL'!E15)","v":""},"11/07/2022",{"$f":"IFERROR(IF(AND(ISBLANK('Summary-TBC BY SCHOOL'!$D15),ISBLANK('Summary-TBC BY SCHOOL'!$B15)),\"\",'Summary-TBC BY SCHOOL'!$I15*100),\"\")","v":""},{"$f":"IF(ISBLANK('Summary-TBC BY SCHOOL'!$A15),\"\",'Summary-TBC BY SCHOOL'!$A15)","v":""}]
[{"$f":"IF(AND(ISBLANK('Summary-TBC BY SCHOOL'!$B16),ISBLANK('Summary-TBC BY SCHOOL'!$D16)),\"\",\"SCH Fees\")","v":""},{"$f":"IF(AND(ISBLANK('Summary-TBC BY SCHOOL'!$D16),ISBLANK('Summary-TBC BY SCHOOL'!$B16)),\"\",IF(ISBLANK('Summary-TBC BY SCHOOL'!$B16),'Summary-TBC BY SCHOOL'!$D16,'Summary-TBC BY SCHOOL'!$B16))","v":""},{"$f":"IF(ISBLANK('Summary-TBC BY SCHOOL'!$C16),\"\",'Summary-TBC BY SCHOOL'!C16)","v":""},{"$f":"IF(AND(ISBLANK('Summary-TBC BY SCHOOL'!$B16),ISBLANK('Summary-TBC BY SCHOOL'!$D16)),\"\",'Summary-TBC BY SCHOOL'!E16)","v":""},"11/07/2022",{"$f":"IFERROR(IF(AND(ISBLANK('Summary-TBC BY SCHOOL'!$D16),ISBLANK('Summary-TBC BY SCHOOL'!$B16)),\"\",'Summary-TBC BY SCHOOL'!$I16*100),\"\")","v":""},{"$f":"IF(ISBLANK('Summary-TBC BY SCHOOL'!$A16),\"\",'Summary-TBC BY SCHOOL'!$A16)","v":""}]
[{"$f":"IF(AND(ISBLANK('Summary-TBC BY SCHOOL'!$B17),ISBLANK('Summary-TBC BY SCHOOL'!$D17)),\"\",\"SCH Fees\")","v":""},{"$f":"IF(AND(ISBLANK('Summary-TBC BY SCHOOL'!$D17),ISBLANK('Summary-TBC BY SCHOOL'!$B17)),\"\",IF(ISBLANK('Summary-TBC BY SCHOOL'!$B17),'Summary-TBC BY SCHOOL'!$D17,'Summary-TBC BY SCHOOL'!$B17))","v":""},{"$f":"IF(ISBLANK('Summary-TBC BY SCHOOL'!$C17),\"\",'Summary-TBC BY SCHOOL'!C17)","v":""},{"$f":"IF(AND(ISBLANK('Summary-TBC BY SCHOOL'!$B17),ISBLANK('Summary-TBC BY SCHOOL'!$D17)),\"\",'Summary-TBC BY SCHOOL'!E17)","v":""},"11/07/2022",{"$f":"IFERROR(IF(AND(ISBLANK('Summary-TBC BY SCHOOL'!$D17),ISBLANK('Summary-TBC BY SCHOOL'!$B17)),\"\",'Summary-TBC BY SCHOOL'!$I17*100),\"\")","v":""},{"$f":"IF(ISBLANK('Summary-TBC BY SCHOOL'!$A17),\"\",'Summary-TBC BY SCHOOL'!$A17)","v":""}]
[{"$f":"IF(AND(ISBLANK('Summary-TBC BY SCHOOL'!$B18),ISBLANK('Summary-TBC BY SCHOOL'!$D18)),\"\",\"SCH Fees\")","v":""},{"$f":"IF(AND(ISBLANK('Summary-TBC BY SCHOOL'!$D18),ISBLANK('Summary-TBC BY SCHOOL'!$B18)),\"\",IF(ISBLANK('Summary-TBC BY SCHOOL'!$B18),'Summary-TBC BY SCHOOL'!$D18,'Summary-TBC BY SCHOOL'!$B18))","v":""},{"$f":"IF(ISBLANK('Summary-TBC BY SCHOOL'!$C18),\"\",'Summary-TBC BY SCHOOL'!C18)","v":""},{"$f":"IF(AND(ISBLANK('Summary-TBC BY SCHOOL'!$B18),ISBLANK('Summary-TBC BY SCHOOL'!$D18)),\"\",'Summary-TBC BY SCHOOL'!E18)","v":""},"11/07/2022",{"$f":"IFERROR(IF(AND(ISBLANK('Summary-TBC BY SCHOOL'!$D18),ISBLANK('Summary-TBC BY SCHOOL'!$B18)),\"\",'Summary-TBC BY SCHOOL'!$I18*100),\"\")","v":""},{"$f":"IF(ISBLANK('Summary-TBC BY SCHOOL'!$A18),\"\",'Summary-TBC BY SCHOOL'!$A18)","v":""}]
[{"$f":"IF(AND(ISBLANK('Summary-TBC BY SCHOOL'!$B19),ISBLANK('Summary-TBC BY SCHOOL'!$D19)),\"\",\"SCH Fees\")","v":""},{"$f":"IF(AND(ISBLANK('Summary-TBC BY SCHOOL'!$D19),ISBLANK('Summary-TBC BY SCHOOL'!$B19)),\"\",IF(ISBLANK('Summary-TBC BY SCHOOL'!$B19),'Summary-TBC BY SCHOOL'!$D19,'Summary-TBC BY SCHOOL'!$B19))","v":""},{"$f":"IF(ISBLANK('Summary-TBC BY SCHOOL'!$C19),\"\",'Summary-TBC BY SCHOOL'!C19)","v":""},{"$f":"IF(AND(ISBLANK('Summary-TBC BY SCHOOL'!$B19),ISBLANK('Summary-TBC BY SCHOOL'!$D19)),\"\",'Summary-TBC BY SCHOOL'!E19)","v":""},"11/07/2022",{"$f":"IFERROR(IF(AND(ISBLANK('Summary-TBC BY SCHOOL'!$D19),ISBLANK('Summary-TBC BY SCHOOL'!$B19)),\"\",'Summary-TBC BY SCHOOL'!$I19*100),\"\")","v":""},{"$f":"IF(ISBLANK('Summary-TBC BY SCHOOL'!$A19),\"\",'Summary-TBC BY SCHOOL'!$A19)","v":""}]
[{"$f":"IF(AND(ISBLANK('Summary-TBC BY SCHOOL'!$B20),ISBLANK('Summary-TBC BY SCHOOL'!$D20)),\"\",\"SCH Fees\")","v":""},{"$f":"IF(AND(ISBLANK('Summary-TBC BY SCHOOL'!$D20),ISBLANK('Summary-TBC BY SCHOOL'!$B20)),\"\",IF(ISBLANK('Summary-TBC BY SCHOOL'!$B20),'Summary-TBC BY SCHOOL'!$D20,'Summary-TBC BY SCHOOL'!$B20))","v":""},{"$f":"IF(ISBLANK('Summary-TBC BY SCHOOL'!$C20),\"\",'Summary-TBC BY SCHOOL'!C20)","v":""},{"$f":"IF(AND(ISBLANK('Summary-TBC BY SCHOOL'!$B20),ISBLANK('Summary-TBC BY SCHOOL'!$D20)),\"\",'Summary-TBC BY SCHOOL'!E20)","v":""},"11/07/2022",{"$f":"IFERROR(IF(AND(ISBLANK('Summary-TBC BY SCHOOL'!$D20),ISBLANK('Summary-TBC BY SCHOOL'!$B20)),\"\",'Summary-TBC BY SCHOOL'!$I20*100),\"\")","v":""},{"$f":"IF(ISBLANK('Summary-TBC BY SCHOOL'!$A20),\"\",'Summary-TBC BY SCHOOL'!$A20)","v":""}]
[{"$f":"IF(AND(ISBLANK('Summary-TBC BY SCHOOL'!$B21),ISBLANK('Summary-TBC BY SCHOOL'!$D21)),\"\",\"SCH Fees\")","v":""},{"$f":"IF(AND(ISBLANK('Summary-TBC BY SCHOOL'!$D21),ISBLANK('Summary-TBC BY SCHOOL'!$B21)),\"\",IF(ISBLANK('Summary-TBC BY SCHOOL'!$B21),'Summary-TBC BY SCHOOL'!$D21,'Summary-TBC BY SCHOOL'!$B21))","v":""},{"$f":"IF(ISBLANK('Summary-TBC BY SCHOOL'!$C21),\"\",'Summary-TBC BY SCHOOL'!C21)","v":""},{"$f":"IF(AND(ISBLANK('Summary-TBC BY SCHOOL'!$B21),ISBLANK('Summary-TBC BY SCHOOL'!$D21)),\"\",'Summary-TBC BY SCHOOL'!E21)","v":""},"11/07/2022",{"$f":"IFERROR(IF(AND(ISBLANK('Summary-TBC BY SCHOOL'!$D21),ISBLANK('Summary-TBC BY SCHOOL'!$B21)),\"\",'Summary-TBC BY SCHOOL'!$I21*100),\"\")","v":""},{"$f":"IF(ISBLANK('Summary-TBC BY SCHOOL'!$A21),\"\",'Summary-TBC BY SCHOOL'!$A21)","v":""}]
[{"$f":"IF(AND(ISBLANK('Summary-TBC BY SCHOOL'!$B22),ISBLANK('Summary-TBC BY SCHOOL'!$D22)),\"\",\"SCH Fees\")","v":""},{"$f":"IF(AND(ISBLANK('Summary-TBC BY SCHOOL'!$D22),ISBLANK('Summary-TBC BY SCHOOL'!$B22)),\"\",IF(ISBLANK('Summary-TBC BY SCHOOL'!$B22),'Summary-TBC BY SCHOOL'!$D22,'Summary-TBC BY SCHOOL'!$B22))","v":""},{"$f":"IF(ISBLANK('Summary-TBC BY SCHOOL'!$C22),\"\",'Summary-TBC BY SCHOOL'!C22)","v":""},{"$f":"IF(AND(ISBLANK('Summary-TBC BY SCHOOL'!$B22),ISBLANK('Summary-TBC BY SCHOOL'!$D22)),\"\",'Summary-TBC BY SCHOOL'!E22)","v":""},"11/07/2022",{"$f":"IFERROR(IF(AND(ISBLANK('Summary-TBC BY SCHOOL'!$D22),ISBLANK('Summary-TBC BY SCHOOL'!$B22)),\"\",'Summary-TBC BY SCHOOL'!$I22*100),\"\")","v":""},{"$f":"IF(ISBLANK('Summary-TBC BY SCHOOL'!$A22),\"\",'Summary-TBC BY SCHOOL'!$A22)","v":""}]
[{"$f":"IF(AND(ISBLANK('Summary-TBC BY SCHOOL'!$B23),ISBLANK('Summary-TBC BY SCHOOL'!$D23)),\"\",\"SCH Fees\")","v":""},{"$f":"IF(AND(ISBLANK('Summary-TBC BY SCHOOL'!$D23),ISBLANK('Summary-TBC BY SCHOOL'!$B23)),\"\",IF(ISBLANK('Summary-TBC BY SCHOOL'!$B23),'Summary-TBC BY SCHOOL'!$D23,'Summary-TBC BY SCHOOL'!$B23))","v":""},{"$f":"IF(ISBLANK('Summary-TBC BY SCHOOL'!$C23),\"\",'Summary-TBC BY SCHOOL'!C23)","v":""},{"$f":"IF(AND(ISBLANK('Summary-TBC BY SCHOOL'!$B23),ISBLANK('Summary-TBC BY SCHOOL'!$D23)),\"\",'Summary-TBC BY SCHOOL'!E23)","v":""},"11/07/2022",{"$f":"IFERROR(IF(AND(ISBLANK('Summary-TBC BY SCHOOL'!$D23),ISBLANK('Summary-TBC BY SCHOOL'!$B23)),\"\",'Summary-TBC BY SCHOOL'!$I23*100),\"\")","v":""},{"$f":"IF(ISBLANK('Summary-TBC BY SCHOOL'!$A23),\"\",'Summary-TBC BY SCHOOL'!$A23)","v":""}]
[{"$f":"IF(AND(ISBLANK('Summary-TBC BY SCHOOL'!$B24),ISBLANK('Summary-TBC BY SCHOOL'!$D24)),\"\",\"SCH Fees\")","v":""},{"$f":"IF(AND(ISBLANK('Summary-TBC BY SCHOOL'!$D24),ISBLANK('Summary-TBC BY SCHOOL'!$B24)),\"\",IF(ISBLANK('Summary-TBC BY SCHOOL'!$B24),'Summary-TBC BY SCHOOL'!$D24,'Summary-TBC BY SCHOOL'!$B24))","v":""},{"$f":"IF(ISBLANK('Summary-TBC BY SCHOOL'!$C24),\"\",'Summary-TBC BY SCHOOL'!C24)","v":""},{"$f":"IF(AND(ISBLANK('Summary-TBC BY SCHOOL'!$B24),ISBLANK('Summary-TBC BY SCHOOL'!$D24)),\"\",'Summary-TBC BY SCHOOL'!E24)","v":""},"11/07/2022",{"$f":"IFERROR(IF(AND(ISBLANK('Summary-TBC BY SCHOOL'!$D24),ISBLANK('Summary-TBC BY SCHOOL'!$B24)),\"\",'Summary-TBC BY SCHOOL'!$I24*100),\"\")","v":""},{"$f":"IF(ISBLANK('Summary-TBC BY SCHOOL'!$A24),\"\",'Summary-TBC BY SCHOOL'!$A24)","v":""}]
[{"$f":"IF(AND(ISBLANK('Summary-TBC BY SCHOOL'!$B25),ISBLANK('Summary-TBC BY SCHOOL'!$D25)),\"\",\"SCH Fees\")","v":""},{"$f":"IF(AND(ISBLANK('Summary-TBC BY SCHOOL'!$D25),ISBLANK('Summary-TBC BY SCHOOL'!$B25)),\"\",IF(ISBLANK('Summary-TBC BY SCHOOL'!$B25),'Summary-TBC BY SCHOOL'!$D25,'Summary-TBC BY SCHOOL'!$B25))","v":""},{"$f":"IF(ISBLANK('Summary-TBC BY SCHOOL'!$C25),\"\",'Summary-TBC BY SCHOOL'!C25)","v":""},{"$f":"IF(AND(ISBLANK('Summary-TBC BY SCHOOL'!$B25),ISBLANK('Summary-TBC BY SCHOOL'!$D25)),\"\",'Summary-TBC BY SCHOOL'!E25)","v":""},"11/07/2022",{"$f":"IFERROR(IF(AND(ISBLANK('Summary-TBC BY SCHOOL'!$D25),ISBLANK('Summary-TBC BY SCHOOL'!$B25)),\"\",'Summary-TBC BY SCHOOL'!$I25*100),\"\")","v":""},{"$f":"IF(ISBLANK('Summary-TBC BY SCHOOL'!$A25),\"\",'Summary-TBC BY SCHOOL'!$A25)","v":""}]
[{"$f":"IF(AND(ISBLANK('Summary-TBC BY SCHOOL'!$B26),ISBLANK('Summary-TBC BY SCHOOL'!$D26)),\"\",\"SCH Fees\")","v":""},{"$f":"IF(AND(ISBLANK('Summary-TBC BY SCHOOL'!$D26),ISBLANK('Summary-TBC BY SCHOOL'!$B26)),\"\",IF(ISBLANK('Summary-TBC BY SCHOOL'!$B26),'Summary-TBC BY SCHOOL'!$D26,'Summary-TBC BY SCHOOL'!$B26))","v":""},{"$f":"IF(ISBLANK('Summary-TBC BY SCHOOL'!$C26),\"\",'Summary-TBC BY SCHOOL'!C26)","v":""},{"$f":"IF(AND(ISBLANK('Summary-TBC BY SCHOOL'!$B26),ISBLANK('Summary-TBC BY SCHOOL'!$D26)),\"\",'Summary-TBC BY SCHOOL'!E26)","v":""},"11/07/2022",{"$f":"IFERROR(IF(AND(ISBLANK('Summary-TBC BY SCHOOL'!$D26),ISBLANK('Summary-TBC BY SCHOOL'!$B26)),\"\",'Summary-TBC BY SCHOOL'!$I26*100),\"\")","v":""},{"$f":"IF(ISBLANK('Summary-TBC BY SCHOOL'!$A26),\"\",'Summary-TBC BY SCHOOL'!$A26)","v":""}]
[{"$f":"IF(AND(ISBLANK('Summary-TBC BY SCHOOL'!$B27),ISBLANK('Summary-TBC BY SCHOOL'!$D27)),\"\",\"SCH Fees\")","v":""},{"$f":"IF(AND(ISBLANK('Summary-TBC BY SCHOOL'!$D27),ISBLANK('Summary-TBC BY SCHOOL'!$B27)),\"\",IF(ISBLANK('Summary-TBC BY SCHOOL'!$B27),'Summary-TBC BY SCHOOL'!$D27,'Summary-TBC BY SCHOOL'!$B27))","v":""},{"$f":"IF(ISBLANK('Summary-TBC BY SCHOOL'!$C27),\"\",'Summary-TBC BY SCHOOL'!C27)","v":""},{"$f":"IF(AND(ISBLANK('Summary-TBC BY SCHOOL'!$B27),ISBLANK('Summary-TBC BY SCHOOL'!$D27)),\"\",'Summary-TBC BY SCHOOL'!E27)","v":""},"11/07/2022",{"$f":"IFERROR(IF(AND(ISBLANK('Summary-TBC BY SCHOOL'!$D27),ISBLANK('Summary-TBC BY SCHOOL'!$B27)),\"\",'Summary-TBC BY SCHOOL'!$I27*100),\"\")","v":""},{"$f":"IF(ISBLANK('Summary-TBC BY SCHOOL'!$A27),\"\",'Summary-TBC BY SCHOOL'!$A27)","v":""}]
[{"$f":"IF(AND(ISBLANK('Summary-TBC BY SCHOOL'!$B28),ISBLANK('Summary-TBC BY SCHOOL'!$D28)),\"\",\"SCH Fees\")","v":""},{"$f":"IF(AND(ISBLANK('Summary-TBC BY SCHOOL'!$D28),ISBLANK('Summary-TBC BY SCHOOL'!$B28)),\"\",IF(ISBLANK('Summary-TBC BY SCHOOL'!$B28),'Summary-TBC BY SCHOOL'!$D28,'Summary-TBC BY SCHOOL'!$B28))","v":""},{"$f":"IF(ISBLANK('Summary-TBC BY SCHOOL'!$C28),\"\",'Summary-TBC BY SCHOOL'!C28)","v":""},{"$f":"IF(AND(ISBLANK('Summary-TBC BY SCHOOL'!$B28),ISBLANK('Summary-TBC BY SCHOOL'!$D28)),\"\",'Summary-TBC BY SCHOOL'!E28)","v":""},"11/07/2022",{"$f":"IFERROR(IF(AND(ISBLANK('Summary-TBC BY SCHOOL'!$D28),ISBLANK('Summary-TBC BY SCHOOL'!$B28)),\"\",'Summary-TBC BY SCHOOL'!$I28*100),\"\")","v":""},{"$f":"IF(ISBLANK('Summary-TBC BY SCHOOL'!$A28),\"\",'Summary-TBC BY SCHOOL'!$A28)","v":""}]
[{"$f":"IF(AND(ISBLANK('Summary-TBC BY SCHOOL'!$B29),ISBLANK('Summary-TBC BY SCHOOL'!$D29)),\"\",\"SCH Fees\")","v":""},{"$f":"IF(AND(ISBLANK('Summary-TBC BY SCHOOL'!$D29),ISBLANK('Summary-TBC BY SCHOOL'!$B29)),\"\",IF(ISBLANK('Summary-TBC BY SCHOOL'!$B29),'Summary-TBC BY SCHOOL'!$D29,'Summary-TBC BY SCHOOL'!$B29))","v":""},{"$f":"IF(ISBLANK('Summary-TBC BY SCHOOL'!$C29),\"\",'Summary-TBC BY SCHOOL'!C29)","v":""},{"$f":"IF(AND(ISBLANK('Summary-TBC BY SCHOOL'!$B29),ISBLANK('Summary-TBC BY SCHOOL'!$D29)),\"\",'Summary-TBC BY SCHOOL'!E29)","v":""},"11/07/2022",{"$f":"IFERROR(IF(AND(ISBLANK('Summary-TBC BY SCHOOL'!$D29),ISBLANK('Summary-TBC BY SCHOOL'!$B29)),\"\",'Summary-TBC BY SCHOOL'!$I29*100),\"\")","v":""},{"$f":"IF(ISBLANK('Summary-TBC BY SCHOOL'!$A29),\"\",'Summary-TBC BY SCHOOL'!$A29)","v":""}]
[{"$f":"IF(AND(ISBLANK('Summary-TBC BY SCHOOL'!$B30),ISBLANK('Summary-TBC BY SCHOOL'!$D30)),\"\",\"SCH Fees\")","v":""},{"$f":"IF(AND(ISBLANK('Summary-TBC BY SCHOOL'!$D30),ISBLANK('Summary-TBC BY SCHOOL'!$B30)),\"\",IF(ISBLANK('Summary-TBC BY SCHOOL'!$B30),'Summary-TBC BY SCHOOL'!$D30,'Summary-TBC BY SCHOOL'!$B30))","v":""},{"$f":"IF(ISBLANK('Summary-TBC BY SCHOOL'!$C30),\"\",'Summary-TBC BY SCHOOL'!C30)","v":""},{"$f":"IF(AND(ISBLANK('Summary-TBC BY SCHOOL'!$B30),ISBLANK('Summary-TBC BY SCHOOL'!$D30)),\"\",'Summary-TBC BY SCHOOL'!E30)","v":""},"11/07/2022",{"$f":"IFERROR(IF(AND(ISBLANK('Summary-TBC BY SCHOOL'!$D30),ISBLANK('Summary-TBC BY SCHOOL'!$B30)),\"\",'Summary-TBC BY SCHOOL'!$I30*100),\"\")","v":""},{"$f":"IF(ISBLANK('Summary-TBC BY SCHOOL'!$A30),\"\",'Summary-TBC BY SCHOOL'!$A30)","v":""}]
[{"$f":"IF(AND(ISBLANK('Summary-TBC BY SCHOOL'!$B31),ISBLANK('Summary-TBC BY SCHOOL'!$D31)),\"\",\"SCH Fees\")","v":""},{"$f":"IF(AND(ISBLANK('Summary-TBC BY SCHOOL'!$D31),ISBLANK('Summary-TBC BY SCHOOL'!$B31)),\"\",IF(ISBLANK('Summary-TBC BY SCHOOL'!$B31),'Summary-TBC BY SCHOOL'!$D31,'Summary-TBC BY SCHOOL'!$B31))","v":""},{"$f":"IF(ISBLANK('Summary-TBC BY SCHOOL'!$C31),\"\",'Summary-TBC BY SCHOOL'!C31)","v":""},{"$f":"IF(AND(ISBLANK('Summary-TBC BY SCHOOL'!$B31),ISBLANK('Summary-TBC BY SCHOOL'!$D31)),\"\",'Summary-TBC BY SCHOOL'!E31)","v":""},"11/07/2022",{"$f":"IFERROR(IF(AND(ISBLANK('Summary-TBC BY SCHOOL'!$D31),ISBLANK('Summary-TBC BY SCHOOL'!$B31)),\"\",'Summary-TBC BY SCHOOL'!$I31*100),\"\")","v":""},{"$f":"IF(ISBLANK('Summary-TBC BY SCHOOL'!$A31),\"\",'Summary-TBC BY SCHOOL'!$A31)","v":""}]
[{"$f":"IF(AND(ISBLANK('Summary-TBC BY SCHOOL'!$B32),ISBLANK('Summary-TBC BY SCHOOL'!$D32)),\"\",\"SCH Fees\")","v":""},{"$f":"IF(AND(ISBLANK('Summary-TBC BY SCHOOL'!$D32),ISBLANK('Summary-TBC BY SCHOOL'!$B32)),\"\",IF(ISBLANK('Summary-TBC BY SCHOOL'!$B32),'Summary-TBC BY SCHOOL'!$D32,'Summary-TBC BY SCHOOL'!$B32))","v":""},{"$f":"IF(ISBLANK('Summary-TBC BY SCHOOL'!$C32),\"\",'Summary-TBC BY SCHOOL'!C32)","v":""},{"$f":"IF(AND(ISBLANK('Summary-TBC BY SCHOOL'!$B32),ISBLANK('Summary-TBC BY SCHOOL'!$D32)),\"\",'Summary-TBC BY SCHOOL'!E32)","v":""},"11/07/2022",{"$f":"IFERROR(IF(AND(ISBLANK('Summary-TBC BY SCHOOL'!$D32),ISBLANK('Summary-TBC BY SCHOOL'!$B32)),\"\",'Summary-TBC BY SCHOOL'!$I32*100),\"\")","v":""},{"$f":"IF(ISBLANK('Summary-TBC BY SCHOOL'!$A32),\"\",'Summary-TBC BY SCHOOL'!$A32)","v":""}]
[{"$f":"IF(AND(ISBLANK('Summary-TBC BY SCHOOL'!$B33),ISBLANK('Summary-TBC BY SCHOOL'!$D33)),\"\",\"SCH Fees\")","v":""},{"$f":"IF(AND(ISBLANK('Summary-TBC BY SCHOOL'!$D33),ISBLANK('Summary-TBC BY SCHOOL'!$B33)),\"\",IF(ISBLANK('Summary-TBC BY SCHOOL'!$B33),'Summary-TBC BY SCHOOL'!$D33,'Summary-TBC BY SCHOOL'!$B33))","v":""},{"$f":"IF(ISBLANK('Summary-TBC BY SCHOOL'!$C33),\"\",'Summary-TBC BY SCHOOL'!C33)","v":""},{"$f":"IF(AND(ISBLANK('Summary-TBC BY SCHOOL'!$B33),ISBLANK('Summary-TBC BY SCHOOL'!$D33)),\"\",'Summary-TBC BY SCHOOL'!E33)","v":""},"11/07/2022",{"$f":"IFERROR(IF(AND(ISBLANK('Summary-TBC BY SCHOOL'!$D33),ISBLANK('Summary-TBC BY SCHOOL'!$B33)),\"\",'Summary-TBC BY SCHOOL'!$I33*100),\"\")","v":""},{"$f":"IF(ISBLANK('Summary-TBC BY SCHOOL'!$A33),\"\",'Summary-TBC BY SCHOOL'!$A33)","v":""}]
[{"$f":"IF(AND(ISBLANK('Summary-TBC BY SCHOOL'!$B34),ISBLANK('Summary-TBC BY SCHOOL'!$D34)),\"\",\"SCH Fees\")","v":""},{"$f":"IF(AND(ISBLANK('Summary-TBC BY SCHOOL'!$D34),ISBLANK('Summary-TBC BY SCHOOL'!$B34)),\"\",IF(ISBLANK('Summary-TBC BY SCHOOL'!$B34),'Summary-TBC BY SCHOOL'!$D34,'Summary-TBC BY SCHOOL'!$B34))","v":""},{"$f":"IF(ISBLANK('Summary-TBC BY SCHOOL'!$C34),\"\",'Summary-TBC BY SCHOOL'!C34)","v":""},{"$f":"IF(AND(ISBLANK('Summary-TBC BY SCHOOL'!$B34),ISBLANK('Summary-TBC BY SCHOOL'!$D34)),\"\",'Summary-TBC BY SCHOOL'!E34)","v":""},"11/07/2022",{"$f":"IFERROR(IF(AND(ISBLANK('Summary-TBC BY SCHOOL'!$D34),ISBLANK('Summary-TBC BY SCHOOL'!$B34)),\"\",'Summary-TBC BY SCHOOL'!$I34*100),\"\")","v":""},{"$f":"IF(ISBLANK('Summary-TBC BY SCHOOL'!$A34),\"\",'Summary-TBC BY SCHOOL'!$A34)","v":""}]
[{"$f":"IF(AND(ISBLANK('Summary-TBC BY SCHOOL'!$B35),ISBLANK('Summary-TBC BY SCHOOL'!$D35)),\"\",\"SCH Fees\")","v":""},{"$f":"IF(AND(ISBLANK('Summary-TBC BY SCHOOL'!$D35),ISBLANK('Summary-TBC BY SCHOOL'!$B35)),\"\",IF(ISBLANK('Summary-TBC BY SCHOOL'!$B35),'Summary-TBC BY SCHOOL'!$D35,'Summary-TBC BY SCHOOL'!$B35))","v":""},{"$f":"IF(ISBLANK('Summary-TBC BY SCHOOL'!$C35),\"\",'Summary-TBC BY SCHOOL'!C35)","v":""},{"$f":"IF(AND(ISBLANK('Summary-TBC BY SCHOOL'!$B35),ISBLANK('Summary-TBC BY SCHOOL'!$D35)),\"\",'Summary-TBC BY SCHOOL'!E35)","v":""},"11/07/2022",{"$f":"IFERROR(IF(AND(ISBLANK('Summary-TBC BY SCHOOL'!$D35),ISBLANK('Summary-TBC BY SCHOOL'!$B35)),\"\",'Summary-TBC BY SCHOOL'!$I35*100),\"\")","v":""},{"$f":"IF(ISBLANK('Summary-TBC BY SCHOOL'!$A35),\"\",'Summary-TBC BY SCHOOL'!$A35)","v":""}]
[{"$f":"IF(AND(ISBLANK('Summary-TBC BY SCHOOL'!$B36),ISBLANK('Summary-TBC BY SCHOOL'!$D36)),\"\",\"SCH Fees\")","v":""},{"$f":"IF(AND(ISBLANK('Summary-TBC BY SCHOOL'!$D36),ISBLANK('Summary-TBC BY SCHOOL'!$B36)),\"\",IF(ISBLANK('Summary-TBC BY SCHOOL'!$B36),'Summary-TBC BY SCHOOL'!$D36,'Summary-TBC BY SCHOOL'!$B36))","v":""},{"$f":"IF(ISBLANK('Summary-TBC BY SCHOOL'!$C36),\"\",'Summary-TBC BY SCHOOL'!C36)","v":""},{"$f":"IF(AND(ISBLANK('Summary-TBC BY SCHOOL'!$B36),ISBLANK('Summary-TBC BY SCHOOL'!$D36)),\"\",'Summary-TBC BY SCHOOL'!E36)","v":""},"11/07/2022",{"$f":"IFERROR(IF(AND(ISBLANK('Summary-TBC BY SCHOOL'!$D36),ISBLANK('Summary-TBC BY SCHOOL'!$B36)),\"\",'Summary-TBC BY SCHOOL'!$I36*100),\"\")","v":""},{"$f":"IF(ISBLANK('Summary-TBC BY SCHOOL'!$A36),\"\",'Summary-TBC BY SCHOOL'!$A36)","v":""}]
[{"$f":"IF(AND(ISBLANK('Summary-TBC BY SCHOOL'!$B37),ISBLANK('Summary-TBC BY SCHOOL'!$D37)),\"\",\"SCH Fees\")","v":""},{"$f":"IF(AND(ISBLANK('Summary-TBC BY SCHOOL'!$D37),ISBLANK('Summary-TBC BY SCHOOL'!$B37)),\"\",IF(ISBLANK('Summary-TBC BY SCHOOL'!$B37),'Summary-TBC BY SCHOOL'!$D37,'Summary-TBC BY SCHOOL'!$B37))","v":""},{"$f":"IF(ISBLANK('Summary-TBC BY SCHOOL'!$C37),\"\",'Summary-TBC BY SCHOOL'!C37)","v":""},{"$f":"IF(AND(ISBLANK('Summary-TBC BY SCHOOL'!$B37),ISBLANK('Summary-TBC BY SCHOOL'!$D37)),\"\",'Summary-TBC BY SCHOOL'!E37)","v":""},"11/07/2022",{"$f":"IFERROR(IF(AND(ISBLANK('Summary-TBC BY SCHOOL'!$D37),ISBLANK('Summary-TBC BY SCHOOL'!$B37)),\"\",'Summary-TBC BY SCHOOL'!$I37*100),\"\")","v":""},{"$f":"IF(ISBLANK('Summary-TBC BY SCHOOL'!$A37),\"\",'Summary-TBC BY SCHOOL'!$A37)","v":""}]
[{"$f":"IF(AND(ISBLANK('Summary-TBC BY SCHOOL'!$B38),ISBLANK('Summary-TBC BY SCHOOL'!$D38)),\"\",\"SCH Fees\")","v":""},{"$f":"IF(AND(ISBLANK('Summary-TBC BY SCHOOL'!$D38),ISBLANK('Summary-TBC BY SCHOOL'!$B38)),\"\",IF(ISBLANK('Summary-TBC BY SCHOOL'!$B38),'Summary-TBC BY SCHOOL'!$D38,'Summary-TBC BY SCHOOL'!$B38))","v":""},{"$f":"IF(ISBLANK('Summary-TBC BY SCHOOL'!$C38),\"\",'Summary-TBC BY SCHOOL'!C38)","v":""},{"$f":"IF(AND(ISBLANK('Summary-TBC BY SCHOOL'!$B38),ISBLANK('Summary-TBC BY SCHOOL'!$D38)),\"\",'Summary-TBC BY SCHOOL'!E38)","v":""},"11/07/2022",{"$f":"IFERROR(IF(AND(ISBLANK('Summary-TBC BY SCHOOL'!$D38),ISBLANK('Summary-TBC BY SCHOOL'!$B38)),\"\",'Summary-TBC BY SCHOOL'!$I38*100),\"\")","v":""},{"$f":"IF(ISBLANK('Summary-TBC BY SCHOOL'!$A38),\"\",'Summary-TBC BY SCHOOL'!$A38)","v":""}]
[{"$f":"IF(AND(ISBLANK('Summary-TBC BY SCHOOL'!$B39),ISBLANK('Summary-TBC BY SCHOOL'!$D39)),\"\",\"SCH Fees\")","v":""},{"$f":"IF(AND(ISBLANK('Summary-TBC BY SCHOOL'!$D39),ISBLANK('Summary-TBC BY SCHOOL'!$B39)),\"\",IF(ISBLANK('Summary-TBC BY SCHOOL'!$B39),'Summary-TBC BY SCHOOL'!$D39,'Summary-TBC BY SCHOOL'!$B39))","v":""},{"$f":"IF(ISBLANK('Summary-TBC BY SCHOOL'!$C39),\"\",'Summary-TBC BY SCHOOL'!C39)","v":""},{"$f":"IF(AND(ISBLANK('Summary-TBC BY SCHOOL'!$B39),ISBLANK('Summary-TBC BY SCHOOL'!$D39)),\"\",'Summary-TBC BY SCHOOL'!E39)","v":""},"11/07/2022",{"$f":"IFERROR(IF(AND(ISBLANK('Summary-TBC BY SCHOOL'!$D39),ISBLANK('Summary-TBC BY SCHOOL'!$B39)),\"\",'Summary-TBC BY SCHOOL'!$I39*100),\"\")","v":""},{"$f":"IF(ISBLANK('Summary-TBC BY SCHOOL'!$A39),\"\",'Summary-TBC BY SCHOOL'!$A39)","v":""}]
[{"$f":"IF(AND(ISBLANK('Summary-TBC BY SCHOOL'!$B40),ISBLANK('Summary-TBC BY SCHOOL'!$D40)),\"\",\"SCH Fees\")","v":""},{"$f":"IF(AND(ISBLANK('Summary-TBC BY SCHOOL'!$D40),ISBLANK('Summary-TBC BY SCHOOL'!$B40)),\"\",IF(ISBLANK('Summary-TBC BY SCHOOL'!$B40),'Summary-TBC BY SCHOOL'!$D40,'Summary-TBC BY SCHOOL'!$B40))","v":""},{"$f":"IF(ISBLANK('Summary-TBC BY SCHOOL'!$C40),\"\",'Summary-TBC BY SCHOOL'!C40)","v":""},{"$f":"IF(AND(ISBLANK('Summary-TBC BY SCHOOL'!$B40),ISBLANK('Summary-TBC BY SCHOOL'!$D40)),\"\",'Summary-TBC BY SCHOOL'!E40)","v":""},"11/07/2022",{"$f":"IFERROR(IF(AND(ISBLANK('Summary-TBC BY SCHOOL'!$D40),ISBLANK('Summary-TBC BY SCHOOL'!$B40)),\"\",'Summary-TBC BY SCHOOL'!$I40*100),\"\")","v":""},{"$f":"IF(ISBLANK('Summary-TBC BY SCHOOL'!$A40),\"\",'Summary-TBC BY SCHOOL'!$A40)","v":""}]
[{"$f":"IF(AND(ISBLANK('Summary-TBC BY SCHOOL'!$B41),ISBLANK('Summary-TBC BY SCHOOL'!$D41)),\"\",\"SCH Fees\")","v":""},{"$f":"IF(AND(ISBLANK('Summary-TBC BY SCHOOL'!$D41),ISBLANK('Summary-TBC BY SCHOOL'!$B41)),\"\",IF(ISBLANK('Summary-TBC BY SCHOOL'!$B41),'Summary-TBC BY SCHOOL'!$D41,'Summary-TBC BY SCHOOL'!$B41))","v":""},{"$f":"IF(ISBLANK('Summary-TBC BY SCHOOL'!$C41),\"\",'Summary-TBC BY SCHOOL'!C41)","v":""},{"$f":"IF(AND(ISBLANK('Summary-TBC BY SCHOOL'!$B41),ISBLANK('Summary-TBC BY SCHOOL'!$D41)),\"\",'Summary-TBC BY SCHOOL'!E41)","v":""},"11/07/2022",{"$f":"IFERROR(IF(AND(ISBLANK('Summary-TBC BY SCHOOL'!$D41),ISBLANK('Summary-TBC BY SCHOOL'!$B41)),\"\",'Summary-TBC BY SCHOOL'!$I41*100),\"\")","v":""},{"$f":"IF(ISBLANK('Summary-TBC BY SCHOOL'!$A41),\"\",'Summary-TBC BY SCHOOL'!$A41)","v":""}]
[{"$f":"IF(AND(ISBLANK('Summary-TBC BY SCHOOL'!$B42),ISBLANK('Summary-TBC BY SCHOOL'!$D42)),\"\",\"SCH Fees\")","v":""},{"$f":"IF(AND(ISBLANK('Summary-TBC BY SCHOOL'!$D42),ISBLANK('Summary-TBC BY SCHOOL'!$B42)),\"\",IF(ISBLANK('Summary-TBC BY SCHOOL'!$B42),'Summary-TBC BY SCHOOL'!$D42,'Summary-TBC BY SCHOOL'!$B42))","v":""},{"$f":"IF(ISBLANK('Summary-TBC BY SCHOOL'!$C42),\"\",'Summary-TBC BY SCHOOL'!C42)","v":""},{"$f":"IF(AND(ISBLANK('Summary-TBC BY SCHOOL'!$B42),ISBLANK('Summary-TBC BY SCHOOL'!$D42)),\"\",'Summary-TBC BY SCHOOL'!E42)","v":""},"11/07/2022",{"$f":"IFERROR(IF(AND(ISBLANK('Summary-TBC BY SCHOOL'!$D42),ISBLANK('Summary-TBC BY SCHOOL'!$B42)),\"\",'Summary-TBC BY SCHOOL'!$I42*100),\"\")","v":""},{"$f":"IF(ISBLANK('Summary-TBC BY SCHOOL'!$A42),\"\",'Summary-TBC BY SCHOOL'!$A42)","v":""}]
[{"$f":"IF(AND(ISBLANK('Summary-TBC BY SCHOOL'!$B43),ISBLANK('Summary-TBC BY SCHOOL'!$D43)),\"\",\"SCH Fees\")","v":""},{"$f":"IF(AND(ISBLANK('Summary-TBC BY SCHOOL'!$D43),ISBLANK('Summary-TBC BY SCHOOL'!$B43)),\"\",IF(ISBLANK('Summary-TBC BY SCHOOL'!$B43),'Summary-TBC BY SCHOOL'!$D43,'Summary-TBC BY SCHOOL'!$B43))","v":""},{"$f":"IF(ISBLANK('Summary-TBC BY SCHOOL'!$C43),\"\",'Summary-TBC BY SCHOOL'!C43)","v":""},{"$f":"IF(AND(ISBLANK('Summary-TBC BY SCHOOL'!$B43),ISBLANK('Summary-TBC BY SCHOOL'!$D43)),\"\",'Summary-TBC BY SCHOOL'!E43)","v":""},"11/07/2022",{"$f":"IFERROR(IF(AND(ISBLANK('Summary-TBC BY SCHOOL'!$D43),ISBLANK('Summary-TBC BY SCHOOL'!$B43)),\"\",'Summary-TBC BY SCHOOL'!$I43*100),\"\")","v":""},{"$f":"IF(ISBLANK('Summary-TBC BY SCHOOL'!$A43),\"\",'Summary-TBC BY SCHOOL'!$A43)","v":""}]
[{"$f":"IF(AND(ISBLANK('Summary-TBC BY SCHOOL'!$B44),ISBLANK('Summary-TBC BY SCHOOL'!$D44)),\"\",\"SCH Fees\")","v":""},{"$f":"IF(AND(ISBLANK('Summary-TBC BY SCHOOL'!$D44),ISBLANK('Summary-TBC BY SCHOOL'!$B44)),\"\",IF(ISBLANK('Summary-TBC BY SCHOOL'!$B44),'Summary-TBC BY SCHOOL'!$D44,'Summary-TBC BY SCHOOL'!$B44))","v":""},{"$f":"IF(ISBLANK('Summary-TBC BY SCHOOL'!$C44),\"\",'Summary-TBC BY SCHOOL'!C44)","v":""},{"$f":"IF(AND(ISBLANK('Summary-TBC BY SCHOOL'!$B44),ISBLANK('Summary-TBC BY SCHOOL'!$D44)),\"\",'Summary-TBC BY SCHOOL'!E44)","v":""},"11/07/2022",{"$f":"IFERROR(IF(AND(ISBLANK('Summary-TBC BY SCHOOL'!$D44),ISBLANK('Summary-TBC BY SCHOOL'!$B44)),\"\",'Summary-TBC BY SCHOOL'!$I44*100),\"\")","v":""},{"$f":"IF(ISBLANK('Summary-TBC BY SCHOOL'!$A44),\"\",'Summary-TBC BY SCHOOL'!$A44)","v":""}]
[{"$f":"IF(AND(ISBLANK('Summary-TBC BY SCHOOL'!$B45),ISBLANK('Summary-TBC BY SCHOOL'!$D45)),\"\",\"SCH Fees\")","v":""},{"$f":"IF(AND(ISBLANK('Summary-TBC BY SCHOOL'!$D45),ISBLANK('Summary-TBC BY SCHOOL'!$B45)),\"\",IF(ISBLANK('Summary-TBC BY SCHOOL'!$B45),'Summary-TBC BY SCHOOL'!$D45,'Summary-TBC BY SCHOOL'!$B45))","v":""},{"$f":"IF(ISBLANK('Summary-TBC BY SCHOOL'!$C45),\"\",'Summary-TBC BY SCHOOL'!C45)","v":""},{"$f":"IF(AND(ISBLANK('Summary-TBC BY SCHOOL'!$B45),ISBLANK('Summary-TBC BY SCHOOL'!$D45)),\"\",'Summary-TBC BY SCHOOL'!E45)","v":""},"11/07/2022",{"$f":"IFERROR(IF(AND(ISBLANK('Summary-TBC BY SCHOOL'!$D45),ISBLANK('Summary-TBC BY SCHOOL'!$B45)),\"\",'Summary-TBC BY SCHOOL'!$I45*100),\"\")","v":""},{"$f":"IF(ISBLANK('Summary-TBC BY SCHOOL'!$A45),\"\",'Summary-TBC BY SCHOOL'!$A45)","v":""}]
[{"$f":"IF(AND(ISBLANK('Summary-TBC BY SCHOOL'!$B46),ISBLANK('Summary-TBC BY SCHOOL'!$D46)),\"\",\"SCH Fees\")","v":""},{"$f":"IF(AND(ISBLANK('Summary-TBC BY SCHOOL'!$D46),ISBLANK('Summary-TBC BY SCHOOL'!$B46)),\"\",IF(ISBLANK('Summary-TBC BY SCHOOL'!$B46),'Summary-TBC BY SCHOOL'!$D46,'Summary-TBC BY SCHOOL'!$B46))","v":""},{"$f":"IF(ISBLANK('Summary-TBC BY SCHOOL'!$C46),\"\",'Summary-TBC BY SCHOOL'!C46)","v":""},{"$f":"IF(AND(ISBLANK('Summary-TBC BY SCHOOL'!$B46),ISBLANK('Summary-TBC BY SCHOOL'!$D46)),\"\",'Summary-TBC BY SCHOOL'!E46)","v":""},"11/07/2022",{"$f":"IFERROR(IF(AND(ISBLANK('Summary-TBC BY SCHOOL'!$D46),ISBLANK('Summary-TBC BY SCHOOL'!$B46)),\"\",'Summary-TBC BY SCHOOL'!$I46*100),\"\")","v":""},{"$f":"IF(ISBLANK('Summary-TBC BY SCHOOL'!$A46),\"\",'Summary-TBC BY SCHOOL'!$A46)","v":""}]
[{"$f":"IF(AND(ISBLANK('Summary-TBC BY SCHOOL'!$B47),ISBLANK('Summary-TBC BY SCHOOL'!$D47)),\"\",\"SCH Fees\")","v":""},{"$f":"IF(AND(ISBLANK('Summary-TBC BY SCHOOL'!$D47),ISBLANK('Summary-TBC BY SCHOOL'!$B47)),\"\",IF(ISBLANK('Summary-TBC BY SCHOOL'!$B47),'Summary-TBC BY SCHOOL'!$D47,'Summary-TBC BY SCHOOL'!$B47))","v":""},{"$f":"IF(ISBLANK('Summary-TBC BY SCHOOL'!$C47),\"\",'Summary-TBC BY SCHOOL'!C47)","v":""},{"$f":"IF(AND(ISBLANK('Summary-TBC BY SCHOOL'!$B47),ISBLANK('Summary-TBC BY SCHOOL'!$D47)),\"\",'Summary-TBC BY SCHOOL'!E47)","v":""},"11/07/2022",{"$f":"IFERROR(IF(AND(ISBLANK('Summary-TBC BY SCHOOL'!$D47),ISBLANK('Summary-TBC BY SCHOOL'!$B47)),\"\",'Summary-TBC BY SCHOOL'!$I47*100),\"\")","v":""},{"$f":"IF(ISBLANK('Summary-TBC BY SCHOOL'!$A47),\"\",'Summary-TBC BY SCHOOL'!$A47)","v":""}]
[{"$f":"IF(AND(ISBLANK('Summary-TBC BY SCHOOL'!$B48),ISBLANK('Summary-TBC BY SCHOOL'!$D48)),\"\",\"SCH Fees\")","v":""},{"$f":"IF(AND(ISBLANK('Summary-TBC BY SCHOOL'!$D48),ISBLANK('Summary-TBC BY SCHOOL'!$B48)),\"\",IF(ISBLANK('Summary-TBC BY SCHOOL'!$B48),'Summary-TBC BY SCHOOL'!$D48,'Summary-TBC BY SCHOOL'!$B48))","v":""},{"$f":"IF(ISBLANK('Summary-TBC BY SCHOOL'!$C48),\"\",'Summary-TBC BY SCHOOL'!C48)","v":""},{"$f":"IF(AND(ISBLANK('Summary-TBC BY SCHOOL'!$B48),ISBLANK('Summary-TBC BY SCHOOL'!$D48)),\"\",'Summary-TBC BY SCHOOL'!E48)","v":""},"11/07/2022",{"$f":"IFERROR(IF(AND(ISBLANK('Summary-TBC BY SCHOOL'!$D48),ISBLANK('Summary-TBC BY SCHOOL'!$B48)),\"\",'Summary-TBC BY SCHOOL'!$I48*100),\"\")","v":""},{"$f":"IF(ISBLANK('Summary-TBC BY SCHOOL'!$A48),\"\",'Summary-TBC BY SCHOOL'!$A48)","v":""}]
[{"$f":"IF(AND(ISBLANK('Summary-TBC BY SCHOOL'!$B49),ISBLANK('Summary-TBC BY SCHOOL'!$D49)),\"\",\"SCH Fees\")","v":""},{"$f":"IF(AND(ISBLANK('Summary-TBC BY SCHOOL'!$D49),ISBLANK('Summary-TBC BY SCHOOL'!$B49)),\"\",IF(ISBLANK('Summary-TBC BY SCHOOL'!$B49),'Summary-TBC BY SCHOOL'!$D49,'Summary-TBC BY SCHOOL'!$B49))","v":""},{"$f":"IF(ISBLANK('Summary-TBC BY SCHOOL'!$C49),\"\",'Summary-TBC BY SCHOOL'!C49)","v":""},{"$f":"IF(AND(ISBLANK('Summary-TBC BY SCHOOL'!$B49),ISBLANK('Summary-TBC BY SCHOOL'!$D49)),\"\",'Summary-TBC BY SCHOOL'!E49)","v":""},"11/07/2022",{"$f":"IFERROR(IF(AND(ISBLANK('Summary-TBC BY SCHOOL'!$D49),ISBLANK('Summary-TBC BY SCHOOL'!$B49)),\"\",'Summary-TBC BY SCHOOL'!$I49*100),\"\")","v":""},{"$f":"IF(ISBLANK('Summary-TBC BY SCHOOL'!$A49),\"\",'Summary-TBC BY SCHOOL'!$A49)","v":""}]
[{"$f":"IF(AND(ISBLANK('Summary-TBC BY SCHOOL'!$B50),ISBLANK('Summary-TBC BY SCHOOL'!$D50)),\"\",\"SCH Fees\")","v":""},{"$f":"IF(AND(ISBLANK('Summary-TBC BY SCHOOL'!$D50),ISBLANK('Summary-TBC BY SCHOOL'!$B50)),\"\",IF(ISBLANK('Summary-TBC BY SCHOOL'!$B50),'Summary-TBC BY SCHOOL'!$D50,'Summary-TBC BY SCHOOL'!$B50))","v":""},{"$f":"IF(ISBLANK('Summary-TBC BY SCHOOL'!$C50),\"\",'Summary-TBC BY SCHOOL'!C50)","v":""},{"$f":"IF(AND(ISBLANK('Summary-TBC BY SCHOOL'!$B50),ISBLANK('Summary-TBC BY SCHOOL'!$D50)),\"\",'Summary-TBC BY SCHOOL'!E50)","v":""},"11/07/2022",{"$f":"IFERROR(IF(AND(ISBLANK('Summary-TBC BY SCHOOL'!$D50),ISBLANK('Summary-TBC BY SCHOOL'!$B50)),\"\",'Summary-TBC BY SCHOOL'!$I50*100),\"\")","v":""},{"$f":"IF(ISBLANK('Summary-TBC BY SCHOOL'!$A50),\"\",'Summary-TBC BY SCHOOL'!$A50)","v":""}]
[{"$f":"IF(AND(ISBLANK('Summary-TBC BY SCHOOL'!$B51),ISBLANK('Summary-TBC BY SCHOOL'!$D51)),\"\",\"SCH Fees\")","v":""},{"$f":"IF(AND(ISBLANK('Summary-TBC BY SCHOOL'!$D51),ISBLANK('Summary-TBC BY SCHOOL'!$B51)),\"\",IF(ISBLANK('Summary-TBC BY SCHOOL'!$B51),'Summary-TBC BY SCHOOL'!$D51,'Summary-TBC BY SCHOOL'!$B51))","v":""},{"$f":"IF(ISBLANK('Summary-TBC BY SCHOOL'!$C51),\"\",'Summary-TBC BY SCHOOL'!C51)","v":""},{"$f":"IF(AND(ISBLANK('Summary-TBC BY SCHOOL'!$B51),ISBLANK('Summary-TBC BY SCHOOL'!$D51)),\"\",'Summary-TBC BY SCHOOL'!E51)","v":""},"11/07/2022",{"$f":"IFERROR(IF(AND(ISBLANK('Summary-TBC BY SCHOOL'!$D51),ISBLANK('Summary-TBC BY SCHOOL'!$B51)),\"\",'Summary-TBC BY SCHOOL'!$I51*100),\"\")","v":""},{"$f":"IF(ISBLANK('Summary-TBC BY SCHOOL'!$A51),\"\",'Summary-TBC BY SCHOOL'!$A51)","v":""}]
[{"$f":"IF(AND(ISBLANK('Summary-TBC BY SCHOOL'!$B52),ISBLANK('Summary-TBC BY SCHOOL'!$D52)),\"\",\"SCH Fees\")","v":""},{"$f":"IF(AND(ISBLANK('Summary-TBC BY SCHOOL'!$D52),ISBLANK('Summary-TBC BY SCHOOL'!$B52)),\"\",IF(ISBLANK('Summary-TBC BY SCHOOL'!$B52),'Summary-TBC BY SCHOOL'!$D52,'Summary-TBC BY SCHOOL'!$B52))","v":""},{"$f":"IF(ISBLANK('Summary-TBC BY SCHOOL'!$C52),\"\",'Summary-TBC BY SCHOOL'!C52)","v":""},{"$f":"IF(AND(ISBLANK('Summary-TBC BY SCHOOL'!$B52),ISBLANK('Summary-TBC BY SCHOOL'!$D52)),\"\",'Summary-TBC BY SCHOOL'!E52)","v":""},"11/07/2022",{"$f":"IFERROR(IF(AND(ISBLANK('Summary-TBC BY SCHOOL'!$D52),ISBLANK('Summary-TBC BY SCHOOL'!$B52)),\"\",'Summary-TBC BY SCHOOL'!$I52*100),\"\")","v":""},{"$f":"IF(ISBLANK('Summary-TBC BY SCHOOL'!$A52),\"\",'Summary-TBC BY SCHOOL'!$A52)","v":""}]
[{"$f":"IF(AND(ISBLANK('Summary-TBC BY SCHOOL'!$B53),ISBLANK('Summary-TBC BY SCHOOL'!$D53)),\"\",\"SCH Fees\")","v":""},{"$f":"IF(AND(ISBLANK('Summary-TBC BY SCHOOL'!$D53),ISBLANK('Summary-TBC BY SCHOOL'!$B53)),\"\",IF(ISBLANK('Summary-TBC BY SCHOOL'!$B53),'Summary-TBC BY SCHOOL'!$D53,'Summary-TBC BY SCHOOL'!$B53))","v":""},{"$f":"IF(ISBLANK('Summary-TBC BY SCHOOL'!$C53),\"\",'Summary-TBC BY SCHOOL'!C53)","v":""},{"$f":"IF(AND(ISBLANK('Summary-TBC BY SCHOOL'!$B53),ISBLANK('Summary-TBC BY SCHOOL'!$D53)),\"\",'Summary-TBC BY SCHOOL'!E53)","v":""},"11/07/2022",{"$f":"IFERROR(IF(AND(ISBLANK('Summary-TBC BY SCHOOL'!$D53),ISBLANK('Summary-TBC BY SCHOOL'!$B53)),\"\",'Summary-TBC BY SCHOOL'!$I53*100),\"\")","v":""},{"$f":"IF(ISBLANK('Summary-TBC BY SCHOOL'!$A53),\"\",'Summary-TBC BY SCHOOL'!$A53)","v":""}]
[{"$f":"IF(AND(ISBLANK('Summary-TBC BY SCHOOL'!$B54),ISBLANK('Summary-TBC BY SCHOOL'!$D54)),\"\",\"SCH Fees\")","v":""},{"$f":"IF(AND(ISBLANK('Summary-TBC BY SCHOOL'!$D54),ISBLANK('Summary-TBC BY SCHOOL'!$B54)),\"\",IF(ISBLANK('Summary-TBC BY SCHOOL'!$B54),'Summary-TBC BY SCHOOL'!$D54,'Summary-TBC BY SCHOOL'!$B54))","v":""},{"$f":"IF(ISBLANK('Summary-TBC BY SCHOOL'!$C54),\"\",'Summary-TBC BY SCHOOL'!C54)","v":""},{"$f":"IF(AND(ISBLANK('Summary-TBC BY SCHOOL'!$B54),ISBLANK('Summary-TBC BY SCHOOL'!$D54)),\"\",'Summary-TBC BY SCHOOL'!E54)","v":""},"11/07/2022",{"$f":"IFERROR(IF(AND(ISBLANK('Summary-TBC BY SCHOOL'!$D54),ISBLANK('Summary-TBC BY SCHOOL'!$B54)),\"\",'Summary-TBC BY SCHOOL'!$I54*100),\"\")","v":""},{"$f":"IF(ISBLANK('Summary-TBC BY SCHOOL'!$A54),\"\",'Summary-TBC BY SCHOOL'!$A54)","v":""}]
[{"$f":"IF(AND(ISBLANK('Summary-TBC BY SCHOOL'!$B55),ISBLANK('Summary-TBC BY SCHOOL'!$D55)),\"\",\"SCH Fees\")","v":""},{"$f":"IF(AND(ISBLANK('Summary-TBC BY SCHOOL'!$D55),ISBLANK('Summary-TBC BY SCHOOL'!$B55)),\"\",IF(ISBLANK('Summary-TBC BY SCHOOL'!$B55),'Summary-TBC BY SCHOOL'!$D55,'Summary-TBC BY SCHOOL'!$B55))","v":""},{"$f":"IF(ISBLANK('Summary-TBC BY SCHOOL'!$C55),\"\",'Summary-TBC BY SCHOOL'!C55)","v":""},{"$f":"IF(AND(ISBLANK('Summary-TBC BY SCHOOL'!$B55),ISBLANK('Summary-TBC BY SCHOOL'!$D55)),\"\",'Summary-TBC BY SCHOOL'!E55)","v":""},"11/07/2022",{"$f":"IFERROR(IF(AND(ISBLANK('Summary-TBC BY SCHOOL'!$D55),ISBLANK('Summary-TBC BY SCHOOL'!$B55)),\"\",'Summary-TBC BY SCHOOL'!$I55*100),\"\")","v":""},{"$f":"IF(ISBLANK('Summary-TBC BY SCHOOL'!$A55),\"\",'Summary-TBC BY SCHOOL'!$A55)","v":""}]
[{"$f":"IF(AND(ISBLANK('Summary-TBC BY SCHOOL'!$B56),ISBLANK('Summary-TBC BY SCHOOL'!$D56)),\"\",\"SCH Fees\")","v":""},{"$f":"IF(AND(ISBLANK('Summary-TBC BY SCHOOL'!$D56),ISBLANK('Summary-TBC BY SCHOOL'!$B56)),\"\",IF(ISBLANK('Summary-TBC BY SCHOOL'!$B56),'Summary-TBC BY SCHOOL'!$D56,'Summary-TBC BY SCHOOL'!$B56))","v":""},{"$f":"IF(ISBLANK('Summary-TBC BY SCHOOL'!$C56),\"\",'Summary-TBC BY SCHOOL'!C56)","v":""},{"$f":"IF(AND(ISBLANK('Summary-TBC BY SCHOOL'!$B56),ISBLANK('Summary-TBC BY SCHOOL'!$D56)),\"\",'Summary-TBC BY SCHOOL'!E56)","v":""},"11/07/2022",{"$f":"IFERROR(IF(AND(ISBLANK('Summary-TBC BY SCHOOL'!$D56),ISBLANK('Summary-TBC BY SCHOOL'!$B56)),\"\",'Summary-TBC BY SCHOOL'!$I56*100),\"\")","v":""},{"$f":"IF(ISBLANK('Summary-TBC BY SCHOOL'!$A56),\"\",'Summary-TBC BY SCHOOL'!$A56)","v":""}]
[{"$f":"IF(AND(ISBLANK('Summary-TBC BY SCHOOL'!$B57),ISBLANK('Summary-TBC BY SCHOOL'!$D57)),\"\",\"SCH Fees\")","v":""},{"$f":"IF(AND(ISBLANK('Summary-TBC BY SCHOOL'!$D57),ISBLANK('Summary-TBC BY SCHOOL'!$B57)),\"\",IF(ISBLANK('Summary-TBC BY SCHOOL'!$B57),'Summary-TBC BY SCHOOL'!$D57,'Summary-TBC BY SCHOOL'!$B57))","v":""},{"$f":"IF(ISBLANK('Summary-TBC BY SCHOOL'!$C57),\"\",'Summary-TBC BY SCHOOL'!C57)","v":""},{"$f":"IF(AND(ISBLANK('Summary-TBC BY SCHOOL'!$B57),ISBLANK('Summary-TBC BY SCHOOL'!$D57)),\"\",'Summary-TBC BY SCHOOL'!E57)","v":""},"11/07/2022",{"$f":"IFERROR(IF(AND(ISBLANK('Summary-TBC BY SCHOOL'!$D57),ISBLANK('Summary-TBC BY SCHOOL'!$B57)),\"\",'Summary-TBC BY SCHOOL'!$I57*100),\"\")","v":""},{"$f":"IF(ISBLANK('Summary-TBC BY SCHOOL'!$A57),\"\",'Summary-TBC BY SCHOOL'!$A57)","v":""}]
[{"$f":"IF(AND(ISBLANK('Summary-TBC BY SCHOOL'!$B58),ISBLANK('Summary-TBC BY SCHOOL'!$D58)),\"\",\"SCH Fees\")","v":""},{"$f":"IF(AND(ISBLANK('Summary-TBC BY SCHOOL'!$D58),ISBLANK('Summary-TBC BY SCHOOL'!$B58)),\"\",IF(ISBLANK('Summary-TBC BY SCHOOL'!$B58),'Summary-TBC BY SCHOOL'!$D58,'Summary-TBC BY SCHOOL'!$B58))","v":""},{"$f":"IF(ISBLANK('Summary-TBC BY SCHOOL'!$C58),\"\",'Summary-TBC BY SCHOOL'!C58)","v":""},{"$f":"IF(AND(ISBLANK('Summary-TBC BY SCHOOL'!$B58),ISBLANK('Summary-TBC BY SCHOOL'!$D58)),\"\",'Summary-TBC BY SCHOOL'!E58)","v":""},"11/07/2022",{"$f":"IFERROR(IF(AND(ISBLANK('Summary-TBC BY SCHOOL'!$D58),ISBLANK('Summary-TBC BY SCHOOL'!$B58)),\"\",'Summary-TBC BY SCHOOL'!$I58*100),\"\")","v":""},{"$f":"IF(ISBLANK('Summary-TBC BY SCHOOL'!$A58),\"\",'Summary-TBC BY SCHOOL'!$A58)","v":""}]
[{"$f":"IF(AND(ISBLANK('Summary-TBC BY SCHOOL'!$B59),ISBLANK('Summary-TBC BY SCHOOL'!$D59)),\"\",\"SCH Fees\")","v":""},{"$f":"IF(AND(ISBLANK('Summary-TBC BY SCHOOL'!$D59),ISBLANK('Summary-TBC BY SCHOOL'!$B59)),\"\",IF(ISBLANK('Summary-TBC BY SCHOOL'!$B59),'Summary-TBC BY SCHOOL'!$D59,'Summary-TBC BY SCHOOL'!$B59))","v":""},{"$f":"IF(ISBLANK('Summary-TBC BY SCHOOL'!$C59),\"\",'Summary-TBC BY SCHOOL'!C59)","v":""},{"$f":"IF(AND(ISBLANK('Summary-TBC BY SCHOOL'!$B59),ISBLANK('Summary-TBC BY SCHOOL'!$D59)),\"\",'Summary-TBC BY SCHOOL'!E59)","v":""},"11/07/2022",{"$f":"IFERROR(IF(AND(ISBLANK('Summary-TBC BY SCHOOL'!$D59),ISBLANK('Summary-TBC BY SCHOOL'!$B59)),\"\",'Summary-TBC BY SCHOOL'!$I59*100),\"\")","v":""},{"$f":"IF(ISBLANK('Summary-TBC BY SCHOOL'!$A59),\"\",'Summary-TBC BY SCHOOL'!$A59)","v":""}]
[{"$f":"IF(AND(ISBLANK('Summary-TBC BY SCHOOL'!$B60),ISBLANK('Summary-TBC BY SCHOOL'!$D60)),\"\",\"SCH Fees\")","v":""},{"$f":"IF(AND(ISBLANK('Summary-TBC BY SCHOOL'!$D60),ISBLANK('Summary-TBC BY SCHOOL'!$B60)),\"\",IF(ISBLANK('Summary-TBC BY SCHOOL'!$B60),'Summary-TBC BY SCHOOL'!$D60,'Summary-TBC BY SCHOOL'!$B60))","v":""},{"$f":"IF(ISBLANK('Summary-TBC BY SCHOOL'!$C60),\"\",'Summary-TBC BY SCHOOL'!C60)","v":""},{"$f":"IF(AND(ISBLANK('Summary-TBC BY SCHOOL'!$B60),ISBLANK('Summary-TBC BY SCHOOL'!$D60)),\"\",'Summary-TBC BY SCHOOL'!E60)","v":""},"11/07/2022",{"$f":"IFERROR(IF(AND(ISBLANK('Summary-TBC BY SCHOOL'!$D60),ISBLANK('Summary-TBC BY SCHOOL'!$B60)),\"\",'Summary-TBC BY SCHOOL'!$I60*100),\"\")","v":""},{"$f":"IF(ISBLANK('Summary-TBC BY SCHOOL'!$A60),\"\",'Summary-TBC BY SCHOOL'!$A60)","v":""}]
[{"$f":"IF(AND(ISBLANK('Summary-TBC BY SCHOOL'!$B61),ISBLANK('Summary-TBC BY SCHOOL'!$D61)),\"\",\"SCH Fees\")","v":""},{"$f":"IF(AND(ISBLANK('Summary-TBC BY SCHOOL'!$D61),ISBLANK('Summary-TBC BY SCHOOL'!$B61)),\"\",IF(ISBLANK('Summary-TBC BY SCHOOL'!$B61),'Summary-TBC BY SCHOOL'!$D61,'Summary-TBC BY SCHOOL'!$B61))","v":""},{"$f":"IF(ISBLANK('Summary-TBC BY SCHOOL'!$C61),\"\",'Summary-TBC BY SCHOOL'!C61)","v":""},{"$f":"IF(AND(ISBLANK('Summary-TBC BY SCHOOL'!$B61),ISBLANK('Summary-TBC BY SCHOOL'!$D61)),\"\",'Summary-TBC BY SCHOOL'!E61)","v":""},"11/07/2022",{"$f":"IFERROR(IF(AND(ISBLANK('Summary-TBC BY SCHOOL'!$D61),ISBLANK('Summary-TBC BY SCHOOL'!$B61)),\"\",'Summary-TBC BY SCHOOL'!$I61*100),\"\")","v":""},{"$f":"IF(ISBLANK('Summary-TBC BY SCHOOL'!$A61),\"\",'Summary-TBC BY SCHOOL'!$A61)","v":""}]
[{"$f":"IF(AND(ISBLANK('Summary-TBC BY SCHOOL'!$B62),ISBLANK('Summary-TBC BY SCHOOL'!$D62)),\"\",\"SCH Fees\")","v":""},{"$f":"IF(AND(ISBLANK('Summary-TBC BY SCHOOL'!$D62),ISBLANK('Summary-TBC BY SCHOOL'!$B62)),\"\",IF(ISBLANK('Summary-TBC BY SCHOOL'!$B62),'Summary-TBC BY SCHOOL'!$D62,'Summary-TBC BY SCHOOL'!$B62))","v":""},{"$f":"IF(ISBLANK('Summary-TBC BY SCHOOL'!$C62),\"\",'Summary-TBC BY SCHOOL'!C62)","v":""},{"$f":"IF(AND(ISBLANK('Summary-TBC BY SCHOOL'!$B62),ISBLANK('Summary-TBC BY SCHOOL'!$D62)),\"\",'Summary-TBC BY SCHOOL'!E62)","v":""},"11/07/2022",{"$f":"IFERROR(IF(AND(ISBLANK('Summary-TBC BY SCHOOL'!$D62),ISBLANK('Summary-TBC BY SCHOOL'!$B62)),\"\",'Summary-TBC BY SCHOOL'!$I62*100),\"\")","v":""},{"$f":"IF(ISBLANK('Summary-TBC BY SCHOOL'!$A62),\"\",'Summary-TBC BY SCHOOL'!$A62)","v":""}]
[{"$f":"IF(AND(ISBLANK('Summary-TBC BY SCHOOL'!$B63),ISBLANK('Summary-TBC BY SCHOOL'!$D63)),\"\",\"SCH Fees\")","v":""},{"$f":"IF(AND(ISBLANK('Summary-TBC BY SCHOOL'!$D63),ISBLANK('Summary-TBC BY SCHOOL'!$B63)),\"\",IF(ISBLANK('Summary-TBC BY SCHOOL'!$B63),'Summary-TBC BY SCHOOL'!$D63,'Summary-TBC BY SCHOOL'!$B63))","v":""},{"$f":"IF(ISBLANK('Summary-TBC BY SCHOOL'!$C63),\"\",'Summary-TBC BY SCHOOL'!C63)","v":""},{"$f":"IF(AND(ISBLANK('Summary-TBC BY SCHOOL'!$B63),ISBLANK('Summary-TBC BY SCHOOL'!$D63)),\"\",'Summary-TBC BY SCHOOL'!E63)","v":""},"11/07/2022",{"$f":"IFERROR(IF(AND(ISBLANK('Summary-TBC BY SCHOOL'!$D63),ISBLANK('Summary-TBC BY SCHOOL'!$B63)),\"\",'Summary-TBC BY SCHOOL'!$I63*100),\"\")","v":""},{"$f":"IF(ISBLANK('Summary-TBC BY SCHOOL'!$A63),\"\",'Summary-TBC BY SCHOOL'!$A63)","v":""}]
[{"$f":"IF(AND(ISBLANK('Summary-TBC BY SCHOOL'!$B64),ISBLANK('Summary-TBC BY SCHOOL'!$D64)),\"\",\"SCH Fees\")","v":""},{"$f":"IF(AND(ISBLANK('Summary-TBC BY SCHOOL'!$D64),ISBLANK('Summary-TBC BY SCHOOL'!$B64)),\"\",IF(ISBLANK('Summary-TBC BY SCHOOL'!$B64),'Summary-TBC BY SCHOOL'!$D64,'Summary-TBC BY SCHOOL'!$B64))","v":""},{"$f":"IF(ISBLANK('Summary-TBC BY SCHOOL'!$C64),\"\",'Summary-TBC BY SCHOOL'!C64)","v":""},{"$f":"IF(AND(ISBLANK('Summary-TBC BY SCHOOL'!$B64),ISBLANK('Summary-TBC BY SCHOOL'!$D64)),\"\",'Summary-TBC BY SCHOOL'!E64)","v":""},"11/07/2022",{"$f":"IFERROR(IF(AND(ISBLANK('Summary-TBC BY SCHOOL'!$D64),ISBLANK('Summary-TBC BY SCHOOL'!$B64)),\"\",'Summary-TBC BY SCHOOL'!$I64*100),\"\")","v":""},{"$f":"IF(ISBLANK('Summary-TBC BY SCHOOL'!$A64),\"\",'Summary-TBC BY SCHOOL'!$A64)","v":""}]
[{"$f":"IF(AND(ISBLANK('Summary-TBC BY SCHOOL'!$B65),ISBLANK('Summary-TBC BY SCHOOL'!$D65)),\"\",\"SCH Fees\")","v":""},{"$f":"IF(AND(ISBLANK('Summary-TBC BY SCHOOL'!$D65),ISBLANK('Summary-TBC BY SCHOOL'!$B65)),\"\",IF(ISBLANK('Summary-TBC BY SCHOOL'!$B65),'Summary-TBC BY SCHOOL'!$D65,'Summary-TBC BY SCHOOL'!$B65))","v":""},{"$f":"IF(ISBLANK('Summary-TBC BY SCHOOL'!$C65),\"\",'Summary-TBC BY SCHOOL'!C65)","v":""},{"$f":"IF(AND(ISBLANK('Summary-TBC BY SCHOOL'!$B65),ISBLANK('Summary-TBC BY SCHOOL'!$D65)),\"\",'Summary-TBC BY SCHOOL'!E65)","v":""},"11/07/2022",{"$f":"IFERROR(IF(AND(ISBLANK('Summary-TBC BY SCHOOL'!$D65),ISBLANK('Summary-TBC BY SCHOOL'!$B65)),\"\",'Summary-TBC BY SCHOOL'!$I65*100),\"\")","v":""},{"$f":"IF(ISBLANK('Summary-TBC BY SCHOOL'!$A65),\"\",'Summary-TBC BY SCHOOL'!$A65)","v":""}]
[{"$f":"IF(AND(ISBLANK('Summary-TBC BY SCHOOL'!$B66),ISBLANK('Summary-TBC BY SCHOOL'!$D66)),\"\",\"SCH Fees\")","v":""},{"$f":"IF(AND(ISBLANK('Summary-TBC BY SCHOOL'!$D66),ISBLANK('Summary-TBC BY SCHOOL'!$B66)),\"\",IF(ISBLANK('Summary-TBC BY SCHOOL'!$B66),'Summary-TBC BY SCHOOL'!$D66,'Summary-TBC BY SCHOOL'!$B66))","v":""},{"$f":"IF(ISBLANK('Summary-TBC BY SCHOOL'!$C66),\"\",'Summary-TBC BY SCHOOL'!C66)","v":""},{"$f":"IF(AND(ISBLANK('Summary-TBC BY SCHOOL'!$B66),ISBLANK('Summary-TBC BY SCHOOL'!$D66)),\"\",'Summary-TBC BY SCHOOL'!E66)","v":""},"11/07/2022",{"$f":"IFERROR(IF(AND(ISBLANK('Summary-TBC BY SCHOOL'!$D66),ISBLANK('Summary-TBC BY SCHOOL'!$B66)),\"\",'Summary-TBC BY SCHOOL'!$I66*100),\"\")","v":""},{"$f":"IF(ISBLANK('Summary-TBC BY SCHOOL'!$A66),\"\",'Summary-TBC BY SCHOOL'!$A66)","v":""}]
[{"$f":"IF(AND(ISBLANK('Summary-TBC BY SCHOOL'!$B67),ISBLANK('Summary-TBC BY SCHOOL'!$D67)),\"\",\"SCH Fees\")","v":""},{"$f":"IF(AND(ISBLANK('Summary-TBC BY SCHOOL'!$D67),ISBLANK('Summary-TBC BY SCHOOL'!$B67)),\"\",IF(ISBLANK('Summary-TBC BY SCHOOL'!$B67),'Summary-TBC BY SCHOOL'!$D67,'Summary-TBC BY SCHOOL'!$B67))","v":""},{"$f":"IF(ISBLANK('Summary-TBC BY SCHOOL'!$C67),\"\",'Summary-TBC BY SCHOOL'!C67)","v":""},{"$f":"IF(AND(ISBLANK('Summary-TBC BY SCHOOL'!$B67),ISBLANK('Summary-TBC BY SCHOOL'!$D67)),\"\",'Summary-TBC BY SCHOOL'!E67)","v":""},"11/07/2022",{"$f":"IFERROR(IF(AND(ISBLANK('Summary-TBC BY SCHOOL'!$D67),ISBLANK('Summary-TBC BY SCHOOL'!$B67)),\"\",'Summary-TBC BY SCHOOL'!$I67*100),\"\")","v":""},{"$f":"IF(ISBLANK('Summary-TBC BY SCHOOL'!$A67),\"\",'Summary-TBC BY SCHOOL'!$A67)","v":""}]
[{"$f":"IF(AND(ISBLANK('Summary-TBC BY SCHOOL'!$B68),ISBLANK('Summary-TBC BY SCHOOL'!$D68)),\"\",\"SCH Fees\")","v":""},{"$f":"IF(AND(ISBLANK('Summary-TBC BY SCHOOL'!$D68),ISBLANK('Summary-TBC BY SCHOOL'!$B68)),\"\",IF(ISBLANK('Summary-TBC BY SCHOOL'!$B68),'Summary-TBC BY SCHOOL'!$D68,'Summary-TBC BY SCHOOL'!$B68))","v":""},{"$f":"IF(ISBLANK('Summary-TBC BY SCHOOL'!$C68),\"\",'Summary-TBC BY SCHOOL'!C68)","v":""},{"$f":"IF(AND(ISBLANK('Summary-TBC BY SCHOOL'!$B68),ISBLANK('Summary-TBC BY SCHOOL'!$D68)),\"\",'Summary-TBC BY SCHOOL'!E68)","v":""},"11/07/2022",{"$f":"IFERROR(IF(AND(ISBLANK('Summary-TBC BY SCHOOL'!$D68),ISBLANK('Summary-TBC BY SCHOOL'!$B68)),\"\",'Summary-TBC BY SCHOOL'!$I68*100),\"\")","v":""},{"$f":"IF(ISBLANK('Summary-TBC BY SCHOOL'!$A68),\"\",'Summary-TBC BY SCHOOL'!$A68)","v":""}]
[{"$f":"IF(AND(ISBLANK('Summary-TBC BY SCHOOL'!$B69),ISBLANK('Summary-TBC BY SCHOOL'!$D69)),\"\",\"SCH Fees\")","v":""},{"$f":"IF(AND(ISBLANK('Summary-TBC BY SCHOOL'!$D69),ISBLANK('Summary-TBC BY SCHOOL'!$B69)),\"\",IF(ISBLANK('Summary-TBC BY SCHOOL'!$B69),'Summary-TBC BY SCHOOL'!$D69,'Summary-TBC BY SCHOOL'!$B69))","v":""},{"$f":"IF(ISBLANK('Summary-TBC BY SCHOOL'!$C69),\"\",'Summary-TBC BY SCHOOL'!C69)","v":""},{"$f":"IF(AND(ISBLANK('Summary-TBC BY SCHOOL'!$B69),ISBLANK('Summary-TBC BY SCHOOL'!$D69)),\"\",'Summary-TBC BY SCHOOL'!E69)","v":""},"11/07/2022",{"$f":"IFERROR(IF(AND(ISBLANK('Summary-TBC BY SCHOOL'!$D69),ISBLANK('Summary-TBC BY SCHOOL'!$B69)),\"\",'Summary-TBC BY SCHOOL'!$I69*100),\"\")","v":""},{"$f":"IF(ISBLANK('Summary-TBC BY SCHOOL'!$A69),\"\",'Summary-TBC BY SCHOOL'!$A69)","v":""}]
[{"$f":"IF(AND(ISBLANK('Summary-TBC BY SCHOOL'!$B70),ISBLANK('Summary-TBC BY SCHOOL'!$D70)),\"\",\"SCH Fees\")","v":""},{"$f":"IF(AND(ISBLANK('Summary-TBC BY SCHOOL'!$D70),ISBLANK('Summary-TBC BY SCHOOL'!$B70)),\"\",IF(ISBLANK('Summary-TBC BY SCHOOL'!$B70),'Summary-TBC BY SCHOOL'!$D70,'Summary-TBC BY SCHOOL'!$B70))","v":""},{"$f":"IF(ISBLANK('Summary-TBC BY SCHOOL'!$C70),\"\",'Summary-TBC BY SCHOOL'!C70)","v":""},{"$f":"IF(AND(ISBLANK('Summary-TBC BY SCHOOL'!$B70),ISBLANK('Summary-TBC BY SCHOOL'!$D70)),\"\",'Summary-TBC BY SCHOOL'!E70)","v":""},"11/07/2022",{"$f":"IFERROR(IF(AND(ISBLANK('Summary-TBC BY SCHOOL'!$D70),ISBLANK('Summary-TBC BY SCHOOL'!$B70)),\"\",'Summary-TBC BY SCHOOL'!$I70*100),\"\")","v":""},{"$f":"IF(ISBLANK('Summary-TBC BY SCHOOL'!$A70),\"\",'Summary-TBC BY SCHOOL'!$A70)","v":""}]
[{"$f":"IF(AND(ISBLANK('Summary-TBC BY SCHOOL'!$B71),ISBLANK('Summary-TBC BY SCHOOL'!$D71)),\"\",\"SCH Fees\")","v":""},{"$f":"IF(AND(ISBLANK('Summary-TBC BY SCHOOL'!$D71),ISBLANK('Summary-TBC BY SCHOOL'!$B71)),\"\",IF(ISBLANK('Summary-TBC BY SCHOOL'!$B71),'Summary-TBC BY SCHOOL'!$D71,'Summary-TBC BY SCHOOL'!$B71))","v":""},{"$f":"IF(ISBLANK('Summary-TBC BY SCHOOL'!$C71),\"\",'Summary-TBC BY SCHOOL'!C71)","v":""},{"$f":"IF(AND(ISBLANK('Summary-TBC BY SCHOOL'!$B71),ISBLANK('Summary-TBC BY SCHOOL'!$D71)),\"\",'Summary-TBC BY SCHOOL'!E71)","v":""},{"$f":"IF(ISBLANK($B67),\"\",IF((LEN(DAY(NOW())))=1,(\"0\"&DAY(NOW())),DAY(NOW()))&\"/\"&IF((LEN(MONTH(NOW())))=1,(\"0\"&MONTH(NOW())),MONTH(NOW()))&\"/\"&YEAR(NOW()))","v":"11/07/2022"},{"$f":"IFERROR(IF(AND(ISBLANK('Summary-TBC BY SCHOOL'!$D71),ISBLANK('Summary-TBC BY SCHOOL'!$B71)),\"\",'Summary-TBC BY SCHOOL'!$I71*100),\"\")","v":""},{"$f":"IF(ISBLANK('Summary-TBC BY SCHOOL'!$A71),\"\",'Summary-TBC BY SCHOOL'!$A71)","v":""}]
[{"$f":"IF(AND(ISBLANK('Summary-TBC BY SCHOOL'!$B72),ISBLANK('Summary-TBC BY SCHOOL'!$D72)),\"\",\"SCH Fees\")","v":""},{"$f":"IF(AND(ISBLANK('Summary-TBC BY SCHOOL'!$D72),ISBLANK('Summary-TBC BY SCHOOL'!$B72)),\"\",IF(ISBLANK('Summary-TBC BY SCHOOL'!$B72),'Summary-TBC BY SCHOOL'!$D72,'Summary-TBC BY SCHOOL'!$B72))","v":""},{"$f":"IF(ISBLANK('Summary-TBC BY SCHOOL'!$C72),\"\",'Summary-TBC BY SCHOOL'!C72)","v":""},{"$f":"IF(AND(ISBLANK('Summary-TBC BY SCHOOL'!$B72),ISBLANK('Summary-TBC BY SCHOOL'!$D72)),\"\",'Summary-TBC BY SCHOOL'!E72)","v":""},"11/07/2022",{"$f":"IFERROR(IF(AND(ISBLANK('Summary-TBC BY SCHOOL'!$D72),ISBLANK('Summary-TBC BY SCHOOL'!$B72)),\"\",'Summary-TBC BY SCHOOL'!$I72*100),\"\")","v":""},{"$f":"IF(ISBLANK('Summary-TBC BY SCHOOL'!$A72),\"\",'Summary-TBC BY SCHOOL'!$A72)","v":""}]
[{"$f":"IF(AND(ISBLANK('Summary-TBC BY SCHOOL'!$B73),ISBLANK('Summary-TBC BY SCHOOL'!$D73)),\"\",\"SCH Fees\")","v":""},{"$f":"IF(AND(ISBLANK('Summary-TBC BY SCHOOL'!$D73),ISBLANK('Summary-TBC BY SCHOOL'!$B73)),\"\",IF(ISBLANK('Summary-TBC BY SCHOOL'!$B73),'Summary-TBC BY SCHOOL'!$D73,'Summary-TBC BY SCHOOL'!$B73))","v":""},{"$f":"IF(ISBLANK('Summary-TBC BY SCHOOL'!$C73),\"\",'Summary-TBC BY SCHOOL'!C73)","v":""},{"$f":"IF(AND(ISBLANK('Summary-TBC BY SCHOOL'!$B73),ISBLANK('Summary-TBC BY SCHOOL'!$D73)),\"\",'Summary-TBC BY SCHOOL'!E73)","v":""},"11/07/2022",{"$f":"IFERROR(IF(AND(ISBLANK('Summary-TBC BY SCHOOL'!$D73),ISBLANK('Summary-TBC BY SCHOOL'!$B73)),\"\",'Summary-TBC BY SCHOOL'!$I73*100),\"\")","v":""},{"$f":"IF(ISBLANK('Summary-TBC BY SCHOOL'!$A73),\"\",'Summary-TBC BY SCHOOL'!$A73)","v":""}]
[{"$f":"IF(AND(ISBLANK('Summary-TBC BY SCHOOL'!$B74),ISBLANK('Summary-TBC BY SCHOOL'!$D74)),\"\",\"SCH Fees\")","v":""},{"$f":"IF(AND(ISBLANK('Summary-TBC BY SCHOOL'!$D74),ISBLANK('Summary-TBC BY SCHOOL'!$B74)),\"\",IF(ISBLANK('Summary-TBC BY SCHOOL'!$B74),'Summary-TBC BY SCHOOL'!$D74,'Summary-TBC BY SCHOOL'!$B74))","v":""},{"$f":"IF(ISBLANK('Summary-TBC BY SCHOOL'!$C74),\"\",'Summary-TBC BY SCHOOL'!C74)","v":""},{"$f":"IF(AND(ISBLANK('Summary-TBC BY SCHOOL'!$B74),ISBLANK('Summary-TBC BY SCHOOL'!$D74)),\"\",'Summary-TBC BY SCHOOL'!E74)","v":""},"11/07/2022",{"$f":"IFERROR(IF(AND(ISBLANK('Summary-TBC BY SCHOOL'!$D74),ISBLANK('Summary-TBC BY SCHOOL'!$B74)),\"\",'Summary-TBC BY SCHOOL'!$I74*100),\"\")","v":""},{"$f":"IF(ISBLANK('Summary-TBC BY SCHOOL'!$A74),\"\",'Summary-TBC BY SCHOOL'!$A74)","v":""}]
[{"$f":"IF(AND(ISBLANK('Summary-TBC BY SCHOOL'!$B75),ISBLANK('Summary-TBC BY SCHOOL'!$D75)),\"\",\"SCH Fees\")","v":""},{"$f":"IF(AND(ISBLANK('Summary-TBC BY SCHOOL'!$D75),ISBLANK('Summary-TBC BY SCHOOL'!$B75)),\"\",IF(ISBLANK('Summary-TBC BY SCHOOL'!$B75),'Summary-TBC BY SCHOOL'!$D75,'Summary-TBC BY SCHOOL'!$B75))","v":""},{"$f":"IF(ISBLANK('Summary-TBC BY SCHOOL'!$C75),\"\",'Summary-TBC BY SCHOOL'!C75)","v":""},{"$f":"IF(AND(ISBLANK('Summary-TBC BY SCHOOL'!$B75),ISBLANK('Summary-TBC BY SCHOOL'!$D75)),\"\",'Summary-TBC BY SCHOOL'!E75)","v":""},"11/07/2022",{"$f":"IFERROR(IF(AND(ISBLANK('Summary-TBC BY SCHOOL'!$D75),ISBLANK('Summary-TBC BY SCHOOL'!$B75)),\"\",'Summary-TBC BY SCHOOL'!$I75*100),\"\")","v":""},{"$f":"IF(ISBLANK('Summary-TBC BY SCHOOL'!$A75),\"\",'Summary-TBC BY SCHOOL'!$A75)","v":""}]
[{"$f":"IF(AND(ISBLANK('Summary-TBC BY SCHOOL'!$B76),ISBLANK('Summary-TBC BY SCHOOL'!$D76)),\"\",\"SCH Fees\")","v":""},{"$f":"IF(AND(ISBLANK('Summary-TBC BY SCHOOL'!$D76),ISBLANK('Summary-TBC BY SCHOOL'!$B76)),\"\",IF(ISBLANK('Summary-TBC BY SCHOOL'!$B76),'Summary-TBC BY SCHOOL'!$D76,'Summary-TBC BY SCHOOL'!$B76))","v":""},{"$f":"IF(ISBLANK('Summary-TBC BY SCHOOL'!$C76),\"\",'Summary-TBC BY SCHOOL'!C76)","v":""},{"$f":"IF(AND(ISBLANK('Summary-TBC BY SCHOOL'!$B76),ISBLANK('Summary-TBC BY SCHOOL'!$D76)),\"\",'Summary-TBC BY SCHOOL'!E76)","v":""},"11/07/2022",{"$f":"IFERROR(IF(AND(ISBLANK('Summary-TBC BY SCHOOL'!$D76),ISBLANK('Summary-TBC BY SCHOOL'!$B76)),\"\",'Summary-TBC BY SCHOOL'!$I76*100),\"\")","v":""},{"$f":"IF(ISBLANK('Summary-TBC BY SCHOOL'!$A76),\"\",'Summary-TBC BY SCHOOL'!$A76)","v":""}]
[{"$f":"IF(AND(ISBLANK('Summary-TBC BY SCHOOL'!$B77),ISBLANK('Summary-TBC BY SCHOOL'!$D77)),\"\",\"SCH Fees\")","v":""},{"$f":"IF(AND(ISBLANK('Summary-TBC BY SCHOOL'!$D77),ISBLANK('Summary-TBC BY SCHOOL'!$B77)),\"\",IF(ISBLANK('Summary-TBC BY SCHOOL'!$B77),'Summary-TBC BY SCHOOL'!$D77,'Summary-TBC BY SCHOOL'!$B77))","v":""},{"$f":"IF(ISBLANK('Summary-TBC BY SCHOOL'!$C77),\"\",'Summary-TBC BY SCHOOL'!C77)","v":""},{"$f":"IF(AND(ISBLANK('Summary-TBC BY SCHOOL'!$B77),ISBLANK('Summary-TBC BY SCHOOL'!$D77)),\"\",'Summary-TBC BY SCHOOL'!E77)","v":""},"11/07/2022",{"$f":"IFERROR(IF(AND(ISBLANK('Summary-TBC BY SCHOOL'!$D77),ISBLANK('Summary-TBC BY SCHOOL'!$B77)),\"\",'Summary-TBC BY SCHOOL'!$I77*100),\"\")","v":""},{"$f":"IF(ISBLANK('Summary-TBC BY SCHOOL'!$A77),\"\",'Summary-TBC BY SCHOOL'!$A77)","v":""}]
[{"$f":"IF(AND(ISBLANK('Summary-TBC BY SCHOOL'!$B78),ISBLANK('Summary-TBC BY SCHOOL'!$D78)),\"\",\"SCH Fees\")","v":""},{"$f":"IF(AND(ISBLANK('Summary-TBC BY SCHOOL'!$D78),ISBLANK('Summary-TBC BY SCHOOL'!$B78)),\"\",IF(ISBLANK('Summary-TBC BY SCHOOL'!$B78),'Summary-TBC BY SCHOOL'!$D78,'Summary-TBC BY SCHOOL'!$B78))","v":""},{"$f":"IF(ISBLANK('Summary-TBC BY SCHOOL'!$C78),\"\",'Summary-TBC BY SCHOOL'!C78)","v":""},{"$f":"IF(AND(ISBLANK('Summary-TBC BY SCHOOL'!$B78),ISBLANK('Summary-TBC BY SCHOOL'!$D78)),\"\",'Summary-TBC BY SCHOOL'!E78)","v":""},"11/07/2022",{"$f":"IFERROR(IF(AND(ISBLANK('Summary-TBC BY SCHOOL'!$D78),ISBLANK('Summary-TBC BY SCHOOL'!$B78)),\"\",'Summary-TBC BY SCHOOL'!$I78*100),\"\")","v":""},{"$f":"IF(ISBLANK('Summary-TBC BY SCHOOL'!$A78),\"\",'Summary-TBC BY SCHOOL'!$A78)","v":""}]
[{"$f":"IF(AND(ISBLANK('Summary-TBC BY SCHOOL'!$B79),ISBLANK('Summary-TBC BY SCHOOL'!$D79)),\"\",\"SCH Fees\")","v":""},{"$f":"IF(AND(ISBLANK('Summary-TBC BY SCHOOL'!$D79),ISBLANK('Summary-TBC BY SCHOOL'!$B79)),\"\",IF(ISBLANK('Summary-TBC BY SCHOOL'!$B79),'Summary-TBC BY SCHOOL'!$D79,'Summary-TBC BY SCHOOL'!$B79))","v":""},{"$f":"IF(ISBLANK('Summary-TBC BY SCHOOL'!$C79),\"\",'Summary-TBC BY SCHOOL'!C79)","v":""},{"$f":"IF(AND(ISBLANK('Summary-TBC BY SCHOOL'!$B79),ISBLANK('Summary-TBC BY SCHOOL'!$D79)),\"\",'Summary-TBC BY SCHOOL'!E79)","v":""},"11/07/2022",{"$f":"IFERROR(IF(AND(ISBLANK('Summary-TBC BY SCHOOL'!$D79),ISBLANK('Summary-TBC BY SCHOOL'!$B79)),\"\",'Summary-TBC BY SCHOOL'!$I79*100),\"\")","v":""},{"$f":"IF(ISBLANK('Summary-TBC BY SCHOOL'!$A79),\"\",'Summary-TBC BY SCHOOL'!$A79)","v":""}]
[{"$f":"IF(AND(ISBLANK('Summary-TBC BY SCHOOL'!$B80),ISBLANK('Summary-TBC BY SCHOOL'!$D80)),\"\",\"SCH Fees\")","v":""},{"$f":"IF(AND(ISBLANK('Summary-TBC BY SCHOOL'!$D80),ISBLANK('Summary-TBC BY SCHOOL'!$B80)),\"\",IF(ISBLANK('Summary-TBC BY SCHOOL'!$B80),'Summary-TBC BY SCHOOL'!$D80,'Summary-TBC BY SCHOOL'!$B80))","v":""},{"$f":"IF(ISBLANK('Summary-TBC BY SCHOOL'!$C80),\"\",'Summary-TBC BY SCHOOL'!C80)","v":""},{"$f":"IF(AND(ISBLANK('Summary-TBC BY SCHOOL'!$B80),ISBLANK('Summary-TBC BY SCHOOL'!$D80)),\"\",'Summary-TBC BY SCHOOL'!E80)","v":""},"11/07/2022",{"$f":"IFERROR(IF(AND(ISBLANK('Summary-TBC BY SCHOOL'!$D80),ISBLANK('Summary-TBC BY SCHOOL'!$B80)),\"\",'Summary-TBC BY SCHOOL'!$I80*100),\"\")","v":""},{"$f":"IF(ISBLANK('Summary-TBC BY SCHOOL'!$A80),\"\",'Summary-TBC BY SCHOOL'!$A80)","v":""}]
[{"$f":"IF(AND(ISBLANK('Summary-TBC BY SCHOOL'!$B81),ISBLANK('Summary-TBC BY SCHOOL'!$D81)),\"\",\"SCH Fees\")","v":""},{"$f":"IF(AND(ISBLANK('Summary-TBC BY SCHOOL'!$D81),ISBLANK('Summary-TBC BY SCHOOL'!$B81)),\"\",IF(ISBLANK('Summary-TBC BY SCHOOL'!$B81),'Summary-TBC BY SCHOOL'!$D81,'Summary-TBC BY SCHOOL'!$B81))","v":""},{"$f":"IF(ISBLANK('Summary-TBC BY SCHOOL'!$C81),\"\",'Summary-TBC BY SCHOOL'!C81)","v":""},{"$f":"IF(AND(ISBLANK('Summary-TBC BY SCHOOL'!$B81),ISBLANK('Summary-TBC BY SCHOOL'!$D81)),\"\",'Summary-TBC BY SCHOOL'!E81)","v":""},"11/07/2022",{"$f":"IFERROR(IF(AND(ISBLANK('Summary-TBC BY SCHOOL'!$D81),ISBLANK('Summary-TBC BY SCHOOL'!$B81)),\"\",'Summary-TBC BY SCHOOL'!$I81*100),\"\")","v":""},{"$f":"IF(ISBLANK('Summary-TBC BY SCHOOL'!$A81),\"\",'Summary-TBC BY SCHOOL'!$A81)","v":""}]
[{"$f":"IF(AND(ISBLANK('Summary-TBC BY SCHOOL'!$B82),ISBLANK('Summary-TBC BY SCHOOL'!$D82)),\"\",\"SCH Fees\")","v":""},{"$f":"IF(AND(ISBLANK('Summary-TBC BY SCHOOL'!$D82),ISBLANK('Summary-TBC BY SCHOOL'!$B82)),\"\",IF(ISBLANK('Summary-TBC BY SCHOOL'!$B82),'Summary-TBC BY SCHOOL'!$D82,'Summary-TBC BY SCHOOL'!$B82))","v":""},{"$f":"IF(ISBLANK('Summary-TBC BY SCHOOL'!$C82),\"\",'Summary-TBC BY SCHOOL'!C82)","v":""},{"$f":"IF(AND(ISBLANK('Summary-TBC BY SCHOOL'!$B82),ISBLANK('Summary-TBC BY SCHOOL'!$D82)),\"\",'Summary-TBC BY SCHOOL'!E82)","v":""},"11/07/2022",{"$f":"IFERROR(IF(AND(ISBLANK('Summary-TBC BY SCHOOL'!$D82),ISBLANK('Summary-TBC BY SCHOOL'!$B82)),\"\",'Summary-TBC BY SCHOOL'!$I82*100),\"\")","v":""},{"$f":"IF(ISBLANK('Summary-TBC BY SCHOOL'!$A82),\"\",'Summary-TBC BY SCHOOL'!$A82)","v":""}]
[{"$f":"IF(AND(ISBLANK('Summary-TBC BY SCHOOL'!$B83),ISBLANK('Summary-TBC BY SCHOOL'!$D83)),\"\",\"SCH Fees\")","v":""},{"$f":"IF(AND(ISBLANK('Summary-TBC BY SCHOOL'!$D83),ISBLANK('Summary-TBC BY SCHOOL'!$B83)),\"\",IF(ISBLANK('Summary-TBC BY SCHOOL'!$B83),'Summary-TBC BY SCHOOL'!$D83,'Summary-TBC BY SCHOOL'!$B83))","v":""},{"$f":"IF(ISBLANK('Summary-TBC BY SCHOOL'!$C83),\"\",'Summary-TBC BY SCHOOL'!C83)","v":""},{"$f":"IF(AND(ISBLANK('Summary-TBC BY SCHOOL'!$B83),ISBLANK('Summary-TBC BY SCHOOL'!$D83)),\"\",'Summary-TBC BY SCHOOL'!E83)","v":""},"11/07/2022",{"$f":"IFERROR(IF(AND(ISBLANK('Summary-TBC BY SCHOOL'!$D83),ISBLANK('Summary-TBC BY SCHOOL'!$B83)),\"\",'Summary-TBC BY SCHOOL'!$I83*100),\"\")","v":""},{"$f":"IF(ISBLANK('Summary-TBC BY SCHOOL'!$A83),\"\",'Summary-TBC BY SCHOOL'!$A83)","v":""}]
[{"$f":"IF(AND(ISBLANK('Summary-TBC BY SCHOOL'!$B84),ISBLANK('Summary-TBC BY SCHOOL'!$D84)),\"\",\"SCH Fees\")","v":""},{"$f":"IF(AND(ISBLANK('Summary-TBC BY SCHOOL'!$D84),ISBLANK('Summary-TBC BY SCHOOL'!$B84)),\"\",IF(ISBLANK('Summary-TBC BY SCHOOL'!$B84),'Summary-TBC BY SCHOOL'!$D84,'Summary-TBC BY SCHOOL'!$B84))","v":""},{"$f":"IF(ISBLANK('Summary-TBC BY SCHOOL'!$C84),\"\",'Summary-TBC BY SCHOOL'!C84)","v":""},{"$f":"IF(AND(ISBLANK('Summary-TBC BY SCHOOL'!$B84),ISBLANK('Summary-TBC BY SCHOOL'!$D84)),\"\",'Summary-TBC BY SCHOOL'!E84)","v":""},"11/07/2022",{"$f":"IFERROR(IF(AND(ISBLANK('Summary-TBC BY SCHOOL'!$D84),ISBLANK('Summary-TBC BY SCHOOL'!$B84)),\"\",'Summary-TBC BY SCHOOL'!$I84*100),\"\")","v":""},{"$f":"IF(ISBLANK('Summary-TBC BY SCHOOL'!$A84),\"\",'Summary-TBC BY SCHOOL'!$A84)","v":""}]
[{"$f":"IF(AND(ISBLANK('Summary-TBC BY SCHOOL'!$B85),ISBLANK('Summary-TBC BY SCHOOL'!$D85)),\"\",\"SCH Fees\")","v":""},{"$f":"IF(AND(ISBLANK('Summary-TBC BY SCHOOL'!$D85),ISBLANK('Summary-TBC BY SCHOOL'!$B85)),\"\",IF(ISBLANK('Summary-TBC BY SCHOOL'!$B85),'Summary-TBC BY SCHOOL'!$D85,'Summary-TBC BY SCHOOL'!$B85))","v":""},{"$f":"IF(ISBLANK('Summary-TBC BY SCHOOL'!$C85),\"\",'Summary-TBC BY SCHOOL'!C85)","v":""},{"$f":"IF(AND(ISBLANK('Summary-TBC BY SCHOOL'!$B85),ISBLANK('Summary-TBC BY SCHOOL'!$D85)),\"\",'Summary-TBC BY SCHOOL'!E85)","v":""},"11/07/2022",{"$f":"IFERROR(IF(AND(ISBLANK('Summary-TBC BY SCHOOL'!$D85),ISBLANK('Summary-TBC BY SCHOOL'!$B85)),\"\",'Summary-TBC BY SCHOOL'!$I85*100),\"\")","v":""},{"$f":"IF(ISBLANK('Summary-TBC BY SCHOOL'!$A85),\"\",'Summary-TBC BY SCHOOL'!$A85)","v":""}]
[{"$f":"IF(AND(ISBLANK('Summary-TBC BY SCHOOL'!$B86),ISBLANK('Summary-TBC BY SCHOOL'!$D86)),\"\",\"SCH Fees\")","v":""},{"$f":"IF(AND(ISBLANK('Summary-TBC BY SCHOOL'!$D86),ISBLANK('Summary-TBC BY SCHOOL'!$B86)),\"\",IF(ISBLANK('Summary-TBC BY SCHOOL'!$B86),'Summary-TBC BY SCHOOL'!$D86,'Summary-TBC BY SCHOOL'!$B86))","v":""},{"$f":"IF(ISBLANK('Summary-TBC BY SCHOOL'!$C86),\"\",'Summary-TBC BY SCHOOL'!C86)","v":""},{"$f":"IF(AND(ISBLANK('Summary-TBC BY SCHOOL'!$B86),ISBLANK('Summary-TBC BY SCHOOL'!$D86)),\"\",'Summary-TBC BY SCHOOL'!E86)","v":""},"11/07/2022",{"$f":"IFERROR(IF(AND(ISBLANK('Summary-TBC BY SCHOOL'!$D86),ISBLANK('Summary-TBC BY SCHOOL'!$B86)),\"\",'Summary-TBC BY SCHOOL'!$I86*100),\"\")","v":""},{"$f":"IF(ISBLANK('Summary-TBC BY SCHOOL'!$A86),\"\",'Summary-TBC BY SCHOOL'!$A86)","v":""}]
[{"$f":"IF(AND(ISBLANK('Summary-TBC BY SCHOOL'!$B87),ISBLANK('Summary-TBC BY SCHOOL'!$D87)),\"\",\"SCH Fees\")","v":""},{"$f":"IF(AND(ISBLANK('Summary-TBC BY SCHOOL'!$D87),ISBLANK('Summary-TBC BY SCHOOL'!$B87)),\"\",IF(ISBLANK('Summary-TBC BY SCHOOL'!$B87),'Summary-TBC BY SCHOOL'!$D87,'Summary-TBC BY SCHOOL'!$B87))","v":""},{"$f":"IF(ISBLANK('Summary-TBC BY SCHOOL'!$C87),\"\",'Summary-TBC BY SCHOOL'!C87)","v":""},{"$f":"IF(AND(ISBLANK('Summary-TBC BY SCHOOL'!$B87),ISBLANK('Summary-TBC BY SCHOOL'!$D87)),\"\",'Summary-TBC BY SCHOOL'!E87)","v":""},"11/07/2022",{"$f":"IFERROR(IF(AND(ISBLANK('Summary-TBC BY SCHOOL'!$D87),ISBLANK('Summary-TBC BY SCHOOL'!$B87)),\"\",'Summary-TBC BY SCHOOL'!$I87*100),\"\")","v":""},{"$f":"IF(ISBLANK('Summary-TBC BY SCHOOL'!$A87),\"\",'Summary-TBC BY SCHOOL'!$A87)","v":""}]
[{"$f":"IF(AND(ISBLANK('Summary-TBC BY SCHOOL'!$B88),ISBLANK('Summary-TBC BY SCHOOL'!$D88)),\"\",\"SCH Fees\")","v":""},{"$f":"IF(AND(ISBLANK('Summary-TBC BY SCHOOL'!$D88),ISBLANK('Summary-TBC BY SCHOOL'!$B88)),\"\",IF(ISBLANK('Summary-TBC BY SCHOOL'!$B88),'Summary-TBC BY SCHOOL'!$D88,'Summary-TBC BY SCHOOL'!$B88))","v":""},{"$f":"IF(ISBLANK('Summary-TBC BY SCHOOL'!$C88),\"\",'Summary-TBC BY SCHOOL'!C88)","v":""},{"$f":"IF(AND(ISBLANK('Summary-TBC BY SCHOOL'!$B88),ISBLANK('Summary-TBC BY SCHOOL'!$D88)),\"\",'Summary-TBC BY SCHOOL'!E88)","v":""},"11/07/2022",{"$f":"IFERROR(IF(AND(ISBLANK('Summary-TBC BY SCHOOL'!$D88),ISBLANK('Summary-TBC BY SCHOOL'!$B88)),\"\",'Summary-TBC BY SCHOOL'!$I88*100),\"\")","v":""},{"$f":"IF(ISBLANK('Summary-TBC BY SCHOOL'!$A88),\"\",'Summary-TBC BY SCHOOL'!$A88)","v":""}]
[{"$f":"IF(AND(ISBLANK('Summary-TBC BY SCHOOL'!$B89),ISBLANK('Summary-TBC BY SCHOOL'!$D89)),\"\",\"SCH Fees\")","v":""},{"$f":"IF(AND(ISBLANK('Summary-TBC BY SCHOOL'!$D89),ISBLANK('Summary-TBC BY SCHOOL'!$B89)),\"\",IF(ISBLANK('Summary-TBC BY SCHOOL'!$B89),'Summary-TBC BY SCHOOL'!$D89,'Summary-TBC BY SCHOOL'!$B89))","v":""},{"$f":"IF(ISBLANK('Summary-TBC BY SCHOOL'!$C89),\"\",'Summary-TBC BY SCHOOL'!C89)","v":""},{"$f":"IF(AND(ISBLANK('Summary-TBC BY SCHOOL'!$B89),ISBLANK('Summary-TBC BY SCHOOL'!$D89)),\"\",'Summary-TBC BY SCHOOL'!E89)","v":""},"11/07/2022",{"$f":"IFERROR(IF(AND(ISBLANK('Summary-TBC BY SCHOOL'!$D89),ISBLANK('Summary-TBC BY SCHOOL'!$B89)),\"\",'Summary-TBC BY SCHOOL'!$I89*100),\"\")","v":""},{"$f":"IF(ISBLANK('Summary-TBC BY SCHOOL'!$A89),\"\",'Summary-TBC BY SCHOOL'!$A89)","v":""}]
[{"$f":"IF(AND(ISBLANK('Summary-TBC BY SCHOOL'!$B90),ISBLANK('Summary-TBC BY SCHOOL'!$D90)),\"\",\"SCH Fees\")","v":""},{"$f":"IF(AND(ISBLANK('Summary-TBC BY SCHOOL'!$D90),ISBLANK('Summary-TBC BY SCHOOL'!$B90)),\"\",IF(ISBLANK('Summary-TBC BY SCHOOL'!$B90),'Summary-TBC BY SCHOOL'!$D90,'Summary-TBC BY SCHOOL'!$B90))","v":""},{"$f":"IF(ISBLANK('Summary-TBC BY SCHOOL'!$C90),\"\",'Summary-TBC BY SCHOOL'!C90)","v":""},{"$f":"IF(AND(ISBLANK('Summary-TBC BY SCHOOL'!$B90),ISBLANK('Summary-TBC BY SCHOOL'!$D90)),\"\",'Summary-TBC BY SCHOOL'!E90)","v":""},"11/07/2022",{"$f":"IFERROR(IF(AND(ISBLANK('Summary-TBC BY SCHOOL'!$D90),ISBLANK('Summary-TBC BY SCHOOL'!$B90)),\"\",'Summary-TBC BY SCHOOL'!$I90*100),\"\")","v":""},{"$f":"IF(ISBLANK('Summary-TBC BY SCHOOL'!$A90),\"\",'Summary-TBC BY SCHOOL'!$A90)","v":""}]
[{"$f":"IF(AND(ISBLANK('Summary-TBC BY SCHOOL'!$B91),ISBLANK('Summary-TBC BY SCHOOL'!$D91)),\"\",\"SCH Fees\")","v":""},{"$f":"IF(AND(ISBLANK('Summary-TBC BY SCHOOL'!$D91),ISBLANK('Summary-TBC BY SCHOOL'!$B91)),\"\",IF(ISBLANK('Summary-TBC BY SCHOOL'!$B91),'Summary-TBC BY SCHOOL'!$D91,'Summary-TBC BY SCHOOL'!$B91))","v":""},{"$f":"IF(ISBLANK('Summary-TBC BY SCHOOL'!$C91),\"\",'Summary-TBC BY SCHOOL'!C91)","v":""},{"$f":"IF(AND(ISBLANK('Summary-TBC BY SCHOOL'!$B91),ISBLANK('Summary-TBC BY SCHOOL'!$D91)),\"\",'Summary-TBC BY SCHOOL'!E91)","v":""},"11/07/2022",{"$f":"IFERROR(IF(AND(ISBLANK('Summary-TBC BY SCHOOL'!$D91),ISBLANK('Summary-TBC BY SCHOOL'!$B91)),\"\",'Summary-TBC BY SCHOOL'!$I91*100),\"\")","v":""},{"$f":"IF(ISBLANK('Summary-TBC BY SCHOOL'!$A91),\"\",'Summary-TBC BY SCHOOL'!$A91)","v":""}]
[{"$f":"IF(AND(ISBLANK('Summary-TBC BY SCHOOL'!$B92),ISBLANK('Summary-TBC BY SCHOOL'!$D92)),\"\",\"SCH Fees\")","v":""},{"$f":"IF(AND(ISBLANK('Summary-TBC BY SCHOOL'!$D92),ISBLANK('Summary-TBC BY SCHOOL'!$B92)),\"\",IF(ISBLANK('Summary-TBC BY SCHOOL'!$B92),'Summary-TBC BY SCHOOL'!$D92,'Summary-TBC BY SCHOOL'!$B92))","v":""},{"$f":"IF(ISBLANK('Summary-TBC BY SCHOOL'!$C92),\"\",'Summary-TBC BY SCHOOL'!C92)","v":""},{"$f":"IF(AND(ISBLANK('Summary-TBC BY SCHOOL'!$B92),ISBLANK('Summary-TBC BY SCHOOL'!$D92)),\"\",'Summary-TBC BY SCHOOL'!E92)","v":""},"11/07/2022",{"$f":"IFERROR(IF(AND(ISBLANK('Summary-TBC BY SCHOOL'!$D92),ISBLANK('Summary-TBC BY SCHOOL'!$B92)),\"\",'Summary-TBC BY SCHOOL'!$I92*100),\"\")","v":""},{"$f":"IF(ISBLANK('Summary-TBC BY SCHOOL'!$A92),\"\",'Summary-TBC BY SCHOOL'!$A92)","v":""}]
[{"$f":"IF(AND(ISBLANK('Summary-TBC BY SCHOOL'!$B93),ISBLANK('Summary-TBC BY SCHOOL'!$D93)),\"\",\"SCH Fees\")","v":""},{"$f":"IF(AND(ISBLANK('Summary-TBC BY SCHOOL'!$D93),ISBLANK('Summary-TBC BY SCHOOL'!$B93)),\"\",IF(ISBLANK('Summary-TBC BY SCHOOL'!$B93),'Summary-TBC BY SCHOOL'!$D93,'Summary-TBC BY SCHOOL'!$B93))","v":""},{"$f":"IF(ISBLANK('Summary-TBC BY SCHOOL'!$C93),\"\",'Summary-TBC BY SCHOOL'!C93)","v":""},{"$f":"IF(AND(ISBLANK('Summary-TBC BY SCHOOL'!$B93),ISBLANK('Summary-TBC BY SCHOOL'!$D93)),\"\",'Summary-TBC BY SCHOOL'!E93)","v":""},"11/07/2022",{"$f":"IFERROR(IF(AND(ISBLANK('Summary-TBC BY SCHOOL'!$D93),ISBLANK('Summary-TBC BY SCHOOL'!$B93)),\"\",'Summary-TBC BY SCHOOL'!$I93*100),\"\")","v":""},{"$f":"IF(ISBLANK('Summary-TBC BY SCHOOL'!$A93),\"\",'Summary-TBC BY SCHOOL'!$A93)","v":""}]
[{"$f":"IF(AND(ISBLANK('Summary-TBC BY SCHOOL'!$B94),ISBLANK('Summary-TBC BY SCHOOL'!$D94)),\"\",\"SCH Fees\")","v":""},{"$f":"IF(AND(ISBLANK('Summary-TBC BY SCHOOL'!$D94),ISBLANK('Summary-TBC BY SCHOOL'!$B94)),\"\",IF(ISBLANK('Summary-TBC BY SCHOOL'!$B94),'Summary-TBC BY SCHOOL'!$D94,'Summary-TBC BY SCHOOL'!$B94))","v":""},{"$f":"IF(ISBLANK('Summary-TBC BY SCHOOL'!$C94),\"\",'Summary-TBC BY SCHOOL'!C94)","v":""},{"$f":"IF(AND(ISBLANK('Summary-TBC BY SCHOOL'!$B94),ISBLANK('Summary-TBC BY SCHOOL'!$D94)),\"\",'Summary-TBC BY SCHOOL'!E94)","v":""},"11/07/2022",{"$f":"IFERROR(IF(AND(ISBLANK('Summary-TBC BY SCHOOL'!$D94),ISBLANK('Summary-TBC BY SCHOOL'!$B94)),\"\",'Summary-TBC BY SCHOOL'!$I94*100),\"\")","v":""},{"$f":"IF(ISBLANK('Summary-TBC BY SCHOOL'!$A94),\"\",'Summary-TBC BY SCHOOL'!$A94)","v":""}]
[{"$f":"IF(AND(ISBLANK('Summary-TBC BY SCHOOL'!$B95),ISBLANK('Summary-TBC BY SCHOOL'!$D95)),\"\",\"SCH Fees\")","v":""},{"$f":"IF(AND(ISBLANK('Summary-TBC BY SCHOOL'!$D95),ISBLANK('Summary-TBC BY SCHOOL'!$B95)),\"\",IF(ISBLANK('Summary-TBC BY SCHOOL'!$B95),'Summary-TBC BY SCHOOL'!$D95,'Summary-TBC BY SCHOOL'!$B95))","v":""},{"$f":"IF(ISBLANK('Summary-TBC BY SCHOOL'!$C95),\"\",'Summary-TBC BY SCHOOL'!C95)","v":""},{"$f":"IF(AND(ISBLANK('Summary-TBC BY SCHOOL'!$B95),ISBLANK('Summary-TBC BY SCHOOL'!$D95)),\"\",'Summary-TBC BY SCHOOL'!E95)","v":""},"11/07/2022",{"$f":"IFERROR(IF(AND(ISBLANK('Summary-TBC BY SCHOOL'!$D95),ISBLANK('Summary-TBC BY SCHOOL'!$B95)),\"\",'Summary-TBC BY SCHOOL'!$I95*100),\"\")","v":""},{"$f":"IF(ISBLANK('Summary-TBC BY SCHOOL'!$A95),\"\",'Summary-TBC BY SCHOOL'!$A95)","v":""}]
[{"$f":"IF(AND(ISBLANK('Summary-TBC BY SCHOOL'!$B96),ISBLANK('Summary-TBC BY SCHOOL'!$D96)),\"\",\"SCH Fees\")","v":""},{"$f":"IF(AND(ISBLANK('Summary-TBC BY SCHOOL'!$D96),ISBLANK('Summary-TBC BY SCHOOL'!$B96)),\"\",IF(ISBLANK('Summary-TBC BY SCHOOL'!$B96),'Summary-TBC BY SCHOOL'!$D96,'Summary-TBC BY SCHOOL'!$B96))","v":""},{"$f":"IF(ISBLANK('Summary-TBC BY SCHOOL'!$C96),\"\",'Summary-TBC BY SCHOOL'!C96)","v":""},{"$f":"IF(AND(ISBLANK('Summary-TBC BY SCHOOL'!$B96),ISBLANK('Summary-TBC BY SCHOOL'!$D96)),\"\",'Summary-TBC BY SCHOOL'!E96)","v":""},"11/07/2022",{"$f":"IFERROR(IF(AND(ISBLANK('Summary-TBC BY SCHOOL'!$D96),ISBLANK('Summary-TBC BY SCHOOL'!$B96)),\"\",'Summary-TBC BY SCHOOL'!$I96*100),\"\")","v":""},{"$f":"IF(ISBLANK('Summary-TBC BY SCHOOL'!$A96),\"\",'Summary-TBC BY SCHOOL'!$A96)","v":""}]
[{"$f":"IF(AND(ISBLANK('Summary-TBC BY SCHOOL'!$B97),ISBLANK('Summary-TBC BY SCHOOL'!$D97)),\"\",\"SCH Fees\")","v":""},{"$f":"IF(AND(ISBLANK('Summary-TBC BY SCHOOL'!$D97),ISBLANK('Summary-TBC BY SCHOOL'!$B97)),\"\",IF(ISBLANK('Summary-TBC BY SCHOOL'!$B97),'Summary-TBC BY SCHOOL'!$D97,'Summary-TBC BY SCHOOL'!$B97))","v":""},{"$f":"IF(ISBLANK('Summary-TBC BY SCHOOL'!$C97),\"\",'Summary-TBC BY SCHOOL'!C97)","v":""},{"$f":"IF(AND(ISBLANK('Summary-TBC BY SCHOOL'!$B97),ISBLANK('Summary-TBC BY SCHOOL'!$D97)),\"\",'Summary-TBC BY SCHOOL'!E97)","v":""},"11/07/2022",{"$f":"IFERROR(IF(AND(ISBLANK('Summary-TBC BY SCHOOL'!$D97),ISBLANK('Summary-TBC BY SCHOOL'!$B97)),\"\",'Summary-TBC BY SCHOOL'!$I97*100),\"\")","v":""},{"$f":"IF(ISBLANK('Summary-TBC BY SCHOOL'!$A97),\"\",'Summary-TBC BY SCHOOL'!$A97)","v":""}]
[{"$f":"IF(AND(ISBLANK('Summary-TBC BY SCHOOL'!$B98),ISBLANK('Summary-TBC BY SCHOOL'!$D98)),\"\",\"SCH Fees\")","v":""},{"$f":"IF(AND(ISBLANK('Summary-TBC BY SCHOOL'!$D98),ISBLANK('Summary-TBC BY SCHOOL'!$B98)),\"\",IF(ISBLANK('Summary-TBC BY SCHOOL'!$B98),'Summary-TBC BY SCHOOL'!$D98,'Summary-TBC BY SCHOOL'!$B98))","v":""},{"$f":"IF(ISBLANK('Summary-TBC BY SCHOOL'!$C98),\"\",'Summary-TBC BY SCHOOL'!C98)","v":""},{"$f":"IF(AND(ISBLANK('Summary-TBC BY SCHOOL'!$B98),ISBLANK('Summary-TBC BY SCHOOL'!$D98)),\"\",'Summary-TBC BY SCHOOL'!E98)","v":""},"11/07/2022",{"$f":"IFERROR(IF(AND(ISBLANK('Summary-TBC BY SCHOOL'!$D98),ISBLANK('Summary-TBC BY SCHOOL'!$B98)),\"\",'Summary-TBC BY SCHOOL'!$I98*100),\"\")","v":""},{"$f":"IF(ISBLANK('Summary-TBC BY SCHOOL'!$A98),\"\",'Summary-TBC BY SCHOOL'!$A98)","v":""}]
[{"$f":"IF(AND(ISBLANK('Summary-TBC BY SCHOOL'!$B99),ISBLANK('Summary-TBC BY SCHOOL'!$D99)),\"\",\"SCH Fees\")","v":""},{"$f":"IF(AND(ISBLANK('Summary-TBC BY SCHOOL'!$D99),ISBLANK('Summary-TBC BY SCHOOL'!$B99)),\"\",IF(ISBLANK('Summary-TBC BY SCHOOL'!$B99),'Summary-TBC BY SCHOOL'!$D99,'Summary-TBC BY SCHOOL'!$B99))","v":""},{"$f":"IF(ISBLANK('Summary-TBC BY SCHOOL'!$C99),\"\",'Summary-TBC BY SCHOOL'!C99)","v":""},{"$f":"IF(AND(ISBLANK('Summary-TBC BY SCHOOL'!$B99),ISBLANK('Summary-TBC BY SCHOOL'!$D99)),\"\",'Summary-TBC BY SCHOOL'!E99)","v":""},"11/07/2022",{"$f":"IFERROR(IF(AND(ISBLANK('Summary-TBC BY SCHOOL'!$D99),ISBLANK('Summary-TBC BY SCHOOL'!$B99)),\"\",'Summary-TBC BY SCHOOL'!$I99*100),\"\")","v":""},{"$f":"IF(ISBLANK('Summary-TBC BY SCHOOL'!$A99),\"\",'Summary-TBC BY SCHOOL'!$A99)","v":""}]
[{"$f":"IF(AND(ISBLANK('Summary-TBC BY SCHOOL'!$B100),ISBLANK('Summary-TBC BY SCHOOL'!$D100)),\"\",\"SCH Fees\")","v":""},{"$f":"IF(AND(ISBLANK('Summary-TBC BY SCHOOL'!$D100),ISBLANK('Summary-TBC BY SCHOOL'!$B100)),\"\",IF(ISBLANK('Summary-TBC BY SCHOOL'!$B100),'Summary-TBC BY SCHOOL'!$D100,'Summary-TBC BY SCHOOL'!$B100))","v":""},{"$f":"IF(ISBLANK('Summary-TBC BY SCHOOL'!$C100),\"\",'Summary-TBC BY SCHOOL'!C100)","v":""},{"$f":"IF(AND(ISBLANK('Summary-TBC BY SCHOOL'!$B100),ISBLANK('Summary-TBC BY SCHOOL'!$D100)),\"\",'Summary-TBC BY SCHOOL'!E100)","v":""},"11/07/2022",{"$f":"IFERROR(IF(AND(ISBLANK('Summary-TBC BY SCHOOL'!$D100),ISBLANK('Summary-TBC BY SCHOOL'!$B100)),\"\",'Summary-TBC BY SCHOOL'!$I100*100),\"\")","v":""},{"$f":"IF(ISBLANK('Summary-TBC BY SCHOOL'!$A100),\"\",'Summary-TBC BY SCHOOL'!$A100)","v":""}]
[{"$f":"IF(AND(ISBLANK('Summary-TBC BY SCHOOL'!$B101),ISBLANK('Summary-TBC BY SCHOOL'!$D101)),\"\",\"SCH Fees\")","v":""},{"$f":"IF(AND(ISBLANK('Summary-TBC BY SCHOOL'!$D101),ISBLANK('Summary-TBC BY SCHOOL'!$B101)),\"\",IF(ISBLANK('Summary-TBC BY SCHOOL'!$B101),'Summary-TBC BY SCHOOL'!$D101,'Summary-TBC BY SCHOOL'!$B101))","v":""},{"$f":"IF(ISBLANK('Summary-TBC BY SCHOOL'!$C101),\"\",'Summary-TBC BY SCHOOL'!C101)","v":""},{"$f":"IF(AND(ISBLANK('Summary-TBC BY SCHOOL'!$B101),ISBLANK('Summary-TBC BY SCHOOL'!$D101)),\"\",'Summary-TBC BY SCHOOL'!E101)","v":""},"11/07/2022",{"$f":"IFERROR(IF(AND(ISBLANK('Summary-TBC BY SCHOOL'!$D101),ISBLANK('Summary-TBC BY SCHOOL'!$B101)),\"\",'Summary-TBC BY SCHOOL'!$I101*100),\"\")","v":""},{"$f":"IF(ISBLANK('Summary-TBC BY SCHOOL'!$A101),\"\",'Summary-TBC BY SCHOOL'!$A101)","v":""}]
[{"$f":"IF(AND(ISBLANK('Summary-TBC BY SCHOOL'!$B102),ISBLANK('Summary-TBC BY SCHOOL'!$D102)),\"\",\"SCH Fees\")","v":""},{"$f":"IF(AND(ISBLANK('Summary-TBC BY SCHOOL'!$D102),ISBLANK('Summary-TBC BY SCHOOL'!$B102)),\"\",IF(ISBLANK('Summary-TBC BY SCHOOL'!$B102),'Summary-TBC BY SCHOOL'!$D102,'Summary-TBC BY SCHOOL'!$B102))","v":""},{"$f":"IF(ISBLANK('Summary-TBC BY SCHOOL'!$C102),\"\",'Summary-TBC BY SCHOOL'!C102)","v":""},{"$f":"IF(AND(ISBLANK('Summary-TBC BY SCHOOL'!$B102),ISBLANK('Summary-TBC BY SCHOOL'!$D102)),\"\",'Summary-TBC BY SCHOOL'!E102)","v":""},"11/07/2022",{"$f":"IFERROR(IF(AND(ISBLANK('Summary-TBC BY SCHOOL'!$D102),ISBLANK('Summary-TBC BY SCHOOL'!$B102)),\"\",'Summary-TBC BY SCHOOL'!$I102*100),\"\")","v":""},{"$f":"IF(ISBLANK('Summary-TBC BY SCHOOL'!$A102),\"\",'Summary-TBC BY SCHOOL'!$A102)","v":""}]
[{"$f":"IF(AND(ISBLANK('Summary-TBC BY SCHOOL'!$B103),ISBLANK('Summary-TBC BY SCHOOL'!$D103)),\"\",\"SCH Fees\")","v":""},{"$f":"IF(AND(ISBLANK('Summary-TBC BY SCHOOL'!$D103),ISBLANK('Summary-TBC BY SCHOOL'!$B103)),\"\",IF(ISBLANK('Summary-TBC BY SCHOOL'!$B103),'Summary-TBC BY SCHOOL'!$D103,'Summary-TBC BY SCHOOL'!$B103))","v":""},{"$f":"IF(ISBLANK('Summary-TBC BY SCHOOL'!$C103),\"\",'Summary-TBC BY SCHOOL'!C103)","v":""},{"$f":"IF(AND(ISBLANK('Summary-TBC BY SCHOOL'!$B103),ISBLANK('Summary-TBC BY SCHOOL'!$D103)),\"\",'Summary-TBC BY SCHOOL'!E103)","v":""},"11/07/2022",{"$f":"IFERROR(IF(AND(ISBLANK('Summary-TBC BY SCHOOL'!$D103),ISBLANK('Summary-TBC BY SCHOOL'!$B103)),\"\",'Summary-TBC BY SCHOOL'!$I103*100),\"\")","v":""},{"$f":"IF(ISBLANK('Summary-TBC BY SCHOOL'!$A103),\"\",'Summary-TBC BY SCHOOL'!$A103)","v":""}]
[{"$f":"IF(AND(ISBLANK('Summary-TBC BY SCHOOL'!$B104),ISBLANK('Summary-TBC BY SCHOOL'!$D104)),\"\",\"SCH Fees\")","v":""},{"$f":"IF(AND(ISBLANK('Summary-TBC BY SCHOOL'!$D104),ISBLANK('Summary-TBC BY SCHOOL'!$B104)),\"\",IF(ISBLANK('Summary-TBC BY SCHOOL'!$B104),'Summary-TBC BY SCHOOL'!$D104,'Summary-TBC BY SCHOOL'!$B104))","v":""},{"$f":"IF(ISBLANK('Summary-TBC BY SCHOOL'!$C104),\"\",'Summary-TBC BY SCHOOL'!C104)","v":""},{"$f":"IF(AND(ISBLANK('Summary-TBC BY SCHOOL'!$B104),ISBLANK('Summary-TBC BY SCHOOL'!$D104)),\"\",'Summary-TBC BY SCHOOL'!E104)","v":""},"11/07/2022",{"$f":"IFERROR(IF(AND(ISBLANK('Summary-TBC BY SCHOOL'!$D104),ISBLANK('Summary-TBC BY SCHOOL'!$B104)),\"\",'Summary-TBC BY SCHOOL'!$I104*100),\"\")","v":""},{"$f":"IF(ISBLANK('Summary-TBC BY SCHOOL'!$A104),\"\",'Summary-TBC BY SCHOOL'!$A104)","v":""}]
[{"$f":"IF(AND(ISBLANK('Summary-TBC BY SCHOOL'!$B105),ISBLANK('Summary-TBC BY SCHOOL'!$D105)),\"\",\"SCH Fees\")","v":""},{"$f":"IF(AND(ISBLANK('Summary-TBC BY SCHOOL'!$D105),ISBLANK('Summary-TBC BY SCHOOL'!$B105)),\"\",IF(ISBLANK('Summary-TBC BY SCHOOL'!$B105),'Summary-TBC BY SCHOOL'!$D105,'Summary-TBC BY SCHOOL'!$B105))","v":""},{"$f":"IF(ISBLANK('Summary-TBC BY SCHOOL'!$C105),\"\",'Summary-TBC BY SCHOOL'!C105)","v":""},{"$f":"IF(AND(ISBLANK('Summary-TBC BY SCHOOL'!$B105),ISBLANK('Summary-TBC BY SCHOOL'!$D105)),\"\",'Summary-TBC BY SCHOOL'!E105)","v":""},"11/07/2022",{"$f":"IFERROR(IF(AND(ISBLANK('Summary-TBC BY SCHOOL'!$D105),ISBLANK('Summary-TBC BY SCHOOL'!$B105)),\"\",'Summary-TBC BY SCHOOL'!$I105*100),\"\")","v":""},{"$f":"IF(ISBLANK('Summary-TBC BY SCHOOL'!$A105),\"\",'Summary-TBC BY SCHOOL'!$A105)","v":""}]
[{"$f":"IF(AND(ISBLANK('Summary-TBC BY SCHOOL'!$B106),ISBLANK('Summary-TBC BY SCHOOL'!$D106)),\"\",\"SCH Fees\")","v":""},{"$f":"IF(AND(ISBLANK('Summary-TBC BY SCHOOL'!$D106),ISBLANK('Summary-TBC BY SCHOOL'!$B106)),\"\",IF(ISBLANK('Summary-TBC BY SCHOOL'!$B106),'Summary-TBC BY SCHOOL'!$D106,'Summary-TBC BY SCHOOL'!$B106))","v":""},{"$f":"IF(ISBLANK('Summary-TBC BY SCHOOL'!$C106),\"\",'Summary-TBC BY SCHOOL'!C106)","v":""},{"$f":"IF(AND(ISBLANK('Summary-TBC BY SCHOOL'!$B106),ISBLANK('Summary-TBC BY SCHOOL'!$D106)),\"\",'Summary-TBC BY SCHOOL'!E106)","v":""},"11/07/2022",{"$f":"IFERROR(IF(AND(ISBLANK('Summary-TBC BY SCHOOL'!$D106),ISBLANK('Summary-TBC BY SCHOOL'!$B106)),\"\",'Summary-TBC BY SCHOOL'!$I106*100),\"\")","v":""},{"$f":"IF(ISBLANK('Summary-TBC BY SCHOOL'!$A106),\"\",'Summary-TBC BY SCHOOL'!$A106)","v":""}]
[{"$f":"IF(AND(ISBLANK('Summary-TBC BY SCHOOL'!$B107),ISBLANK('Summary-TBC BY SCHOOL'!$D107)),\"\",\"SCH Fees\")","v":""},{"$f":"IF(AND(ISBLANK('Summary-TBC BY SCHOOL'!$D107),ISBLANK('Summary-TBC BY SCHOOL'!$B107)),\"\",IF(ISBLANK('Summary-TBC BY SCHOOL'!$B107),'Summary-TBC BY SCHOOL'!$D107,'Summary-TBC BY SCHOOL'!$B107))","v":""},{"$f":"IF(ISBLANK('Summary-TBC BY SCHOOL'!$C107),\"\",'Summary-TBC BY SCHOOL'!C107)","v":""},{"$f":"IF(AND(ISBLANK('Summary-TBC BY SCHOOL'!$B107),ISBLANK('Summary-TBC BY SCHOOL'!$D107)),\"\",'Summary-TBC BY SCHOOL'!E107)","v":""},"11/07/2022",{"$f":"IFERROR(IF(AND(ISBLANK('Summary-TBC BY SCHOOL'!$D107),ISBLANK('Summary-TBC BY SCHOOL'!$B107)),\"\",'Summary-TBC BY SCHOOL'!$I107*100),\"\")","v":""},{"$f":"IF(ISBLANK('Summary-TBC BY SCHOOL'!$A107),\"\",'Summary-TBC BY SCHOOL'!$A107)","v":""}]
[{"$f":"IF(AND(ISBLANK('Summary-TBC BY SCHOOL'!$B108),ISBLANK('Summary-TBC BY SCHOOL'!$D108)),\"\",\"SCH Fees\")","v":""},{"$f":"IF(AND(ISBLANK('Summary-TBC BY SCHOOL'!$D108),ISBLANK('Summary-TBC BY SCHOOL'!$B108)),\"\",IF(ISBLANK('Summary-TBC BY SCHOOL'!$B108),'Summary-TBC BY SCHOOL'!$D108,'Summary-TBC BY SCHOOL'!$B108))","v":""},{"$f":"IF(ISBLANK('Summary-TBC BY SCHOOL'!$C108),\"\",'Summary-TBC BY SCHOOL'!C108)","v":""},{"$f":"IF(AND(ISBLANK('Summary-TBC BY SCHOOL'!$B108),ISBLANK('Summary-TBC BY SCHOOL'!$D108)),\"\",'Summary-TBC BY SCHOOL'!E108)","v":""},"11/07/2022",{"$f":"IFERROR(IF(AND(ISBLANK('Summary-TBC BY SCHOOL'!$D108),ISBLANK('Summary-TBC BY SCHOOL'!$B108)),\"\",'Summary-TBC BY SCHOOL'!$I108*100),\"\")","v":""},{"$f":"IF(ISBLANK('Summary-TBC BY SCHOOL'!$A108),\"\",'Summary-TBC BY SCHOOL'!$A108)","v":""}]
[{"$f":"IF(AND(ISBLANK('Summary-TBC BY SCHOOL'!$B109),ISBLANK('Summary-TBC BY SCHOOL'!$D109)),\"\",\"SCH Fees\")","v":""},{"$f":"IF(AND(ISBLANK('Summary-TBC BY SCHOOL'!$D109),ISBLANK('Summary-TBC BY SCHOOL'!$B109)),\"\",IF(ISBLANK('Summary-TBC BY SCHOOL'!$B109),'Summary-TBC BY SCHOOL'!$D109,'Summary-TBC BY SCHOOL'!$B109))","v":""},{"$f":"IF(ISBLANK('Summary-TBC BY SCHOOL'!$C109),\"\",'Summary-TBC BY SCHOOL'!C109)","v":""},{"$f":"IF(AND(ISBLANK('Summary-TBC BY SCHOOL'!$B109),ISBLANK('Summary-TBC BY SCHOOL'!$D109)),\"\",'Summary-TBC BY SCHOOL'!E109)","v":""},"11/07/2022",{"$f":"IFERROR(IF(AND(ISBLANK('Summary-TBC BY SCHOOL'!$D109),ISBLANK('Summary-TBC BY SCHOOL'!$B109)),\"\",'Summary-TBC BY SCHOOL'!$I109*100),\"\")","v":""},{"$f":"IF(ISBLANK('Summary-TBC BY SCHOOL'!$A109),\"\",'Summary-TBC BY SCHOOL'!$A109)","v":""}]
[{"$f":"IF(AND(ISBLANK('Summary-TBC BY SCHOOL'!$B110),ISBLANK('Summary-TBC BY SCHOOL'!$D110)),\"\",\"SCH Fees\")","v":""},{"$f":"IF(AND(ISBLANK('Summary-TBC BY SCHOOL'!$D110),ISBLANK('Summary-TBC BY SCHOOL'!$B110)),\"\",IF(ISBLANK('Summary-TBC BY SCHOOL'!$B110),'Summary-TBC BY SCHOOL'!$D110,'Summary-TBC BY SCHOOL'!$B110))","v":""},{"$f":"IF(ISBLANK('Summary-TBC BY SCHOOL'!$C110),\"\",'Summary-TBC BY SCHOOL'!C110)","v":""},{"$f":"IF(AND(ISBLANK('Summary-TBC BY SCHOOL'!$B110),ISBLANK('Summary-TBC BY SCHOOL'!$D110)),\"\",'Summary-TBC BY SCHOOL'!E110)","v":""},"11/07/2022",{"$f":"IFERROR(IF(AND(ISBLANK('Summary-TBC BY SCHOOL'!$D110),ISBLANK('Summary-TBC BY SCHOOL'!$B110)),\"\",'Summary-TBC BY SCHOOL'!$I110*100),\"\")","v":""},{"$f":"IF(ISBLANK('Summary-TBC BY SCHOOL'!$A110),\"\",'Summary-TBC BY SCHOOL'!$A110)","v":""}]
[{"$f":"IF(AND(ISBLANK('Summary-TBC BY SCHOOL'!$B111),ISBLANK('Summary-TBC BY SCHOOL'!$D111)),\"\",\"SCH Fees\")","v":""},{"$f":"IF(AND(ISBLANK('Summary-TBC BY SCHOOL'!$D111),ISBLANK('Summary-TBC BY SCHOOL'!$B111)),\"\",IF(ISBLANK('Summary-TBC BY SCHOOL'!$B111),'Summary-TBC BY SCHOOL'!$D111,'Summary-TBC BY SCHOOL'!$B111))","v":""},{"$f":"IF(ISBLANK('Summary-TBC BY SCHOOL'!$C111),\"\",'Summary-TBC BY SCHOOL'!C111)","v":""},{"$f":"IF(AND(ISBLANK('Summary-TBC BY SCHOOL'!$B111),ISBLANK('Summary-TBC BY SCHOOL'!$D111)),\"\",'Summary-TBC BY SCHOOL'!E111)","v":""},"11/07/2022",{"$f":"IFERROR(IF(AND(ISBLANK('Summary-TBC BY SCHOOL'!$D111),ISBLANK('Summary-TBC BY SCHOOL'!$B111)),\"\",'Summary-TBC BY SCHOOL'!$I111*100),\"\")","v":""},{"$f":"IF(ISBLANK('Summary-TBC BY SCHOOL'!$A111),\"\",'Summary-TBC BY SCHOOL'!$A111)","v":""}]
[{"$f":"IF(AND(ISBLANK('Summary-TBC BY SCHOOL'!$B112),ISBLANK('Summary-TBC BY SCHOOL'!$D112)),\"\",\"SCH Fees\")","v":""},{"$f":"IF(AND(ISBLANK('Summary-TBC BY SCHOOL'!$D112),ISBLANK('Summary-TBC BY SCHOOL'!$B112)),\"\",IF(ISBLANK('Summary-TBC BY SCHOOL'!$B112),'Summary-TBC BY SCHOOL'!$D112,'Summary-TBC BY SCHOOL'!$B112))","v":""},{"$f":"IF(ISBLANK('Summary-TBC BY SCHOOL'!$C112),\"\",'Summary-TBC BY SCHOOL'!C112)","v":""},{"$f":"IF(AND(ISBLANK('Summary-TBC BY SCHOOL'!$B112),ISBLANK('Summary-TBC BY SCHOOL'!$D112)),\"\",'Summary-TBC BY SCHOOL'!E112)","v":""},"11/07/2022",{"$f":"IFERROR(IF(AND(ISBLANK('Summary-TBC BY SCHOOL'!$D112),ISBLANK('Summary-TBC BY SCHOOL'!$B112)),\"\",'Summary-TBC BY SCHOOL'!$I112*100),\"\")","v":""},{"$f":"IF(ISBLANK('Summary-TBC BY SCHOOL'!$A112),\"\",'Summary-TBC BY SCHOOL'!$A112)","v":""}]
[{"$f":"IF(AND(ISBLANK('Summary-TBC BY SCHOOL'!$B113),ISBLANK('Summary-TBC BY SCHOOL'!$D113)),\"\",\"SCH Fees\")","v":""},{"$f":"IF(AND(ISBLANK('Summary-TBC BY SCHOOL'!$D113),ISBLANK('Summary-TBC BY SCHOOL'!$B113)),\"\",IF(ISBLANK('Summary-TBC BY SCHOOL'!$B113),'Summary-TBC BY SCHOOL'!$D113,'Summary-TBC BY SCHOOL'!$B113))","v":""},{"$f":"IF(ISBLANK('Summary-TBC BY SCHOOL'!$C113),\"\",'Summary-TBC BY SCHOOL'!C113)","v":""},{"$f":"IF(AND(ISBLANK('Summary-TBC BY SCHOOL'!$B113),ISBLANK('Summary-TBC BY SCHOOL'!$D113)),\"\",'Summary-TBC BY SCHOOL'!E113)","v":""},"11/07/2022",{"$f":"IFERROR(IF(AND(ISBLANK('Summary-TBC BY SCHOOL'!$D113),ISBLANK('Summary-TBC BY SCHOOL'!$B113)),\"\",'Summary-TBC BY SCHOOL'!$I113*100),\"\")","v":""},{"$f":"IF(ISBLANK('Summary-TBC BY SCHOOL'!$A113),\"\",'Summary-TBC BY SCHOOL'!$A113)","v":""}]
[{"$f":"IF(AND(ISBLANK('Summary-TBC BY SCHOOL'!$B114),ISBLANK('Summary-TBC BY SCHOOL'!$D114)),\"\",\"SCH Fees\")","v":""},{"$f":"IF(AND(ISBLANK('Summary-TBC BY SCHOOL'!$D114),ISBLANK('Summary-TBC BY SCHOOL'!$B114)),\"\",IF(ISBLANK('Summary-TBC BY SCHOOL'!$B114),'Summary-TBC BY SCHOOL'!$D114,'Summary-TBC BY SCHOOL'!$B114))","v":""},{"$f":"IF(ISBLANK('Summary-TBC BY SCHOOL'!$C114),\"\",'Summary-TBC BY SCHOOL'!C114)","v":""},{"$f":"IF(AND(ISBLANK('Summary-TBC BY SCHOOL'!$B114),ISBLANK('Summary-TBC BY SCHOOL'!$D114)),\"\",'Summary-TBC BY SCHOOL'!E114)","v":""},"11/07/2022",{"$f":"IFERROR(IF(AND(ISBLANK('Summary-TBC BY SCHOOL'!$D114),ISBLANK('Summary-TBC BY SCHOOL'!$B114)),\"\",'Summary-TBC BY SCHOOL'!$I114*100),\"\")","v":""},{"$f":"IF(ISBLANK('Summary-TBC BY SCHOOL'!$A114),\"\",'Summary-TBC BY SCHOOL'!$A114)","v":""}]
[{"$f":"IF(AND(ISBLANK('Summary-TBC BY SCHOOL'!$B115),ISBLANK('Summary-TBC BY SCHOOL'!$D115)),\"\",\"SCH Fees\")","v":""},{"$f":"IF(AND(ISBLANK('Summary-TBC BY SCHOOL'!$D115),ISBLANK('Summary-TBC BY SCHOOL'!$B115)),\"\",IF(ISBLANK('Summary-TBC BY SCHOOL'!$B115),'Summary-TBC BY SCHOOL'!$D115,'Summary-TBC BY SCHOOL'!$B115))","v":""},{"$f":"IF(ISBLANK('Summary-TBC BY SCHOOL'!$C115),\"\",'Summary-TBC BY SCHOOL'!C115)","v":""},{"$f":"IF(AND(ISBLANK('Summary-TBC BY SCHOOL'!$B115),ISBLANK('Summary-TBC BY SCHOOL'!$D115)),\"\",'Summary-TBC BY SCHOOL'!E115)","v":""},"11/07/2022",{"$f":"IFERROR(IF(AND(ISBLANK('Summary-TBC BY SCHOOL'!$D115),ISBLANK('Summary-TBC BY SCHOOL'!$B115)),\"\",'Summary-TBC BY SCHOOL'!$I115*100),\"\")","v":""},{"$f":"IF(ISBLANK('Summary-TBC BY SCHOOL'!$A115),\"\",'Summary-TBC BY SCHOOL'!$A115)","v":""}]
[{"$f":"IF(AND(ISBLANK('Summary-TBC BY SCHOOL'!$B116),ISBLANK('Summary-TBC BY SCHOOL'!$D116)),\"\",\"SCH Fees\")","v":""},{"$f":"IF(AND(ISBLANK('Summary-TBC BY SCHOOL'!$D116),ISBLANK('Summary-TBC BY SCHOOL'!$B116)),\"\",IF(ISBLANK('Summary-TBC BY SCHOOL'!$B116),'Summary-TBC BY SCHOOL'!$D116,'Summary-TBC BY SCHOOL'!$B116))","v":""},{"$f":"IF(ISBLANK('Summary-TBC BY SCHOOL'!$C116),\"\",'Summary-TBC BY SCHOOL'!C116)","v":""},{"$f":"IF(AND(ISBLANK('Summary-TBC BY SCHOOL'!$B116),ISBLANK('Summary-TBC BY SCHOOL'!$D116)),\"\",'Summary-TBC BY SCHOOL'!E116)","v":""},"11/07/2022",{"$f":"IFERROR(IF(AND(ISBLANK('Summary-TBC BY SCHOOL'!$D116),ISBLANK('Summary-TBC BY SCHOOL'!$B116)),\"\",'Summary-TBC BY SCHOOL'!$I116*100),\"\")","v":""},{"$f":"IF(ISBLANK('Summary-TBC BY SCHOOL'!$A116),\"\",'Summary-TBC BY SCHOOL'!$A116)","v":""}]
[{"$f":"IF(AND(ISBLANK('Summary-TBC BY SCHOOL'!$B117),ISBLANK('Summary-TBC BY SCHOOL'!$D117)),\"\",\"SCH Fees\")","v":""},{"$f":"IF(AND(ISBLANK('Summary-TBC BY SCHOOL'!$D117),ISBLANK('Summary-TBC BY SCHOOL'!$B117)),\"\",IF(ISBLANK('Summary-TBC BY SCHOOL'!$B117),'Summary-TBC BY SCHOOL'!$D117,'Summary-TBC BY SCHOOL'!$B117))","v":""},{"$f":"IF(ISBLANK('Summary-TBC BY SCHOOL'!$C117),\"\",'Summary-TBC BY SCHOOL'!C117)","v":""},{"$f":"IF(AND(ISBLANK('Summary-TBC BY SCHOOL'!$B117),ISBLANK('Summary-TBC BY SCHOOL'!$D117)),\"\",'Summary-TBC BY SCHOOL'!E117)","v":""},"11/07/2022",{"$f":"IFERROR(IF(AND(ISBLANK('Summary-TBC BY SCHOOL'!$D117),ISBLANK('Summary-TBC BY SCHOOL'!$B117)),\"\",'Summary-TBC BY SCHOOL'!$I117*100),\"\")","v":""},{"$f":"IF(ISBLANK('Summary-TBC BY SCHOOL'!$A117),\"\",'Summary-TBC BY SCHOOL'!$A117)","v":""}]
[{"$f":"IF(AND(ISBLANK('Summary-TBC BY SCHOOL'!$B118),ISBLANK('Summary-TBC BY SCHOOL'!$D118)),\"\",\"SCH Fees\")","v":""},{"$f":"IF(AND(ISBLANK('Summary-TBC BY SCHOOL'!$D118),ISBLANK('Summary-TBC BY SCHOOL'!$B118)),\"\",IF(ISBLANK('Summary-TBC BY SCHOOL'!$B118),'Summary-TBC BY SCHOOL'!$D118,'Summary-TBC BY SCHOOL'!$B118))","v":""},{"$f":"IF(ISBLANK('Summary-TBC BY SCHOOL'!$C118),\"\",'Summary-TBC BY SCHOOL'!C118)","v":""},{"$f":"IF(AND(ISBLANK('Summary-TBC BY SCHOOL'!$B118),ISBLANK('Summary-TBC BY SCHOOL'!$D118)),\"\",'Summary-TBC BY SCHOOL'!E118)","v":""},"11/07/2022",{"$f":"IFERROR(IF(AND(ISBLANK('Summary-TBC BY SCHOOL'!$D118),ISBLANK('Summary-TBC BY SCHOOL'!$B118)),\"\",'Summary-TBC BY SCHOOL'!$I118*100),\"\")","v":""},{"$f":"IF(ISBLANK('Summary-TBC BY SCHOOL'!$A118),\"\",'Summary-TBC BY SCHOOL'!$A118)","v":""}]
[{"$f":"IF(AND(ISBLANK('Summary-TBC BY SCHOOL'!$B119),ISBLANK('Summary-TBC BY SCHOOL'!$D119)),\"\",\"SCH Fees\")","v":""},{"$f":"IF(AND(ISBLANK('Summary-TBC BY SCHOOL'!$D119),ISBLANK('Summary-TBC BY SCHOOL'!$B119)),\"\",IF(ISBLANK('Summary-TBC BY SCHOOL'!$B119),'Summary-TBC BY SCHOOL'!$D119,'Summary-TBC BY SCHOOL'!$B119))","v":""},{"$f":"IF(ISBLANK('Summary-TBC BY SCHOOL'!$C119),\"\",'Summary-TBC BY SCHOOL'!C119)","v":""},{"$f":"IF(AND(ISBLANK('Summary-TBC BY SCHOOL'!$B119),ISBLANK('Summary-TBC BY SCHOOL'!$D119)),\"\",'Summary-TBC BY SCHOOL'!E119)","v":""},"11/07/2022",{"$f":"IFERROR(IF(AND(ISBLANK('Summary-TBC BY SCHOOL'!$D119),ISBLANK('Summary-TBC BY SCHOOL'!$B119)),\"\",'Summary-TBC BY SCHOOL'!$I119*100),\"\")","v":""},{"$f":"IF(ISBLANK('Summary-TBC BY SCHOOL'!$A119),\"\",'Summary-TBC BY SCHOOL'!$A119)","v":""}]
[{"$f":"IF(AND(ISBLANK('Summary-TBC BY SCHOOL'!$B120),ISBLANK('Summary-TBC BY SCHOOL'!$D120)),\"\",\"SCH Fees\")","v":""},{"$f":"IF(AND(ISBLANK('Summary-TBC BY SCHOOL'!$D120),ISBLANK('Summary-TBC BY SCHOOL'!$B120)),\"\",IF(ISBLANK('Summary-TBC BY SCHOOL'!$B120),'Summary-TBC BY SCHOOL'!$D120,'Summary-TBC BY SCHOOL'!$B120))","v":""},{"$f":"IF(ISBLANK('Summary-TBC BY SCHOOL'!$C120),\"\",'Summary-TBC BY SCHOOL'!C120)","v":""},{"$f":"IF(AND(ISBLANK('Summary-TBC BY SCHOOL'!$B120),ISBLANK('Summary-TBC BY SCHOOL'!$D120)),\"\",'Summary-TBC BY SCHOOL'!E120)","v":""},"11/07/2022",{"$f":"IFERROR(IF(AND(ISBLANK('Summary-TBC BY SCHOOL'!$D120),ISBLANK('Summary-TBC BY SCHOOL'!$B120)),\"\",'Summary-TBC BY SCHOOL'!$I120*100),\"\")","v":""},{"$f":"IF(ISBLANK('Summary-TBC BY SCHOOL'!$A120),\"\",'Summary-TBC BY SCHOOL'!$A120)","v":""}]
[{"$f":"IF(AND(ISBLANK('Summary-TBC BY SCHOOL'!$B121),ISBLANK('Summary-TBC BY SCHOOL'!$D121)),\"\",\"SCH Fees\")","v":""},{"$f":"IF(AND(ISBLANK('Summary-TBC BY SCHOOL'!$D121),ISBLANK('Summary-TBC BY SCHOOL'!$B121)),\"\",IF(ISBLANK('Summary-TBC BY SCHOOL'!$B121),'Summary-TBC BY SCHOOL'!$D121,'Summary-TBC BY SCHOOL'!$B121))","v":""},{"$f":"IF(ISBLANK('Summary-TBC BY SCHOOL'!$C121),\"\",'Summary-TBC BY SCHOOL'!C121)","v":""},{"$f":"IF(AND(ISBLANK('Summary-TBC BY SCHOOL'!$B121),ISBLANK('Summary-TBC BY SCHOOL'!$D121)),\"\",'Summary-TBC BY SCHOOL'!E121)","v":""},"11/07/2022",{"$f":"IFERROR(IF(AND(ISBLANK('Summary-TBC BY SCHOOL'!$D121),ISBLANK('Summary-TBC BY SCHOOL'!$B121)),\"\",'Summary-TBC BY SCHOOL'!$I121*100),\"\")","v":""},{"$f":"IF(ISBLANK('Summary-TBC BY SCHOOL'!$A121),\"\",'Summary-TBC BY SCHOOL'!$A121)","v":""}]
[{"$f":"IF(AND(ISBLANK('Summary-TBC BY SCHOOL'!$B122),ISBLANK('Summary-TBC BY SCHOOL'!$D122)),\"\",\"SCH Fees\")","v":""},{"$f":"IF(AND(ISBLANK('Summary-TBC BY SCHOOL'!$D122),ISBLANK('Summary-TBC BY SCHOOL'!$B122)),\"\",IF(ISBLANK('Summary-TBC BY SCHOOL'!$B122),'Summary-TBC BY SCHOOL'!$D122,'Summary-TBC BY SCHOOL'!$B122))","v":""},{"$f":"IF(ISBLANK('Summary-TBC BY SCHOOL'!$C122),\"\",'Summary-TBC BY SCHOOL'!C122)","v":""},{"$f":"IF(AND(ISBLANK('Summary-TBC BY SCHOOL'!$B122),ISBLANK('Summary-TBC BY SCHOOL'!$D122)),\"\",'Summary-TBC BY SCHOOL'!E122)","v":""},"11/07/2022",{"$f":"IFERROR(IF(AND(ISBLANK('Summary-TBC BY SCHOOL'!$D122),ISBLANK('Summary-TBC BY SCHOOL'!$B122)),\"\",'Summary-TBC BY SCHOOL'!$I122*100),\"\")","v":""},{"$f":"IF(ISBLANK('Summary-TBC BY SCHOOL'!$A122),\"\",'Summary-TBC BY SCHOOL'!$A122)","v":""}]
[{"$f":"IF(AND(ISBLANK('Summary-TBC BY SCHOOL'!$B123),ISBLANK('Summary-TBC BY SCHOOL'!$D123)),\"\",\"SCH Fees\")","v":""},{"$f":"IF(AND(ISBLANK('Summary-TBC BY SCHOOL'!$D123),ISBLANK('Summary-TBC BY SCHOOL'!$B123)),\"\",IF(ISBLANK('Summary-TBC BY SCHOOL'!$B123),'Summary-TBC BY SCHOOL'!$D123,'Summary-TBC BY SCHOOL'!$B123))","v":""},{"$f":"IF(ISBLANK('Summary-TBC BY SCHOOL'!$C123),\"\",'Summary-TBC BY SCHOOL'!C123)","v":""},{"$f":"IF(AND(ISBLANK('Summary-TBC BY SCHOOL'!$B123),ISBLANK('Summary-TBC BY SCHOOL'!$D123)),\"\",'Summary-TBC BY SCHOOL'!E123)","v":""},"11/07/2022",{"$f":"IFERROR(IF(AND(ISBLANK('Summary-TBC BY SCHOOL'!$D123),ISBLANK('Summary-TBC BY SCHOOL'!$B123)),\"\",'Summary-TBC BY SCHOOL'!$I123*100),\"\")","v":""},{"$f":"IF(ISBLANK('Summary-TBC BY SCHOOL'!$A123),\"\",'Summary-TBC BY SCHOOL'!$A123)","v":""}]
[{"$f":"IF(AND(ISBLANK('Summary-TBC BY SCHOOL'!$B124),ISBLANK('Summary-TBC BY SCHOOL'!$D124)),\"\",\"SCH Fees\")","v":""},{"$f":"IF(AND(ISBLANK('Summary-TBC BY SCHOOL'!$D124),ISBLANK('Summary-TBC BY SCHOOL'!$B124)),\"\",IF(ISBLANK('Summary-TBC BY SCHOOL'!$B124),'Summary-TBC BY SCHOOL'!$D124,'Summary-TBC BY SCHOOL'!$B124))","v":""},{"$f":"IF(ISBLANK('Summary-TBC BY SCHOOL'!$C124),\"\",'Summary-TBC BY SCHOOL'!C124)","v":""},{"$f":"IF(AND(ISBLANK('Summary-TBC BY SCHOOL'!$B124),ISBLANK('Summary-TBC BY SCHOOL'!$D124)),\"\",'Summary-TBC BY SCHOOL'!E124)","v":""},"11/07/2022",{"$f":"IFERROR(IF(AND(ISBLANK('Summary-TBC BY SCHOOL'!$D124),ISBLANK('Summary-TBC BY SCHOOL'!$B124)),\"\",'Summary-TBC BY SCHOOL'!$I124*100),\"\")","v":""},{"$f":"IF(ISBLANK('Summary-TBC BY SCHOOL'!$A124),\"\",'Summary-TBC BY SCHOOL'!$A124)","v":""}]
[{"$f":"IF(AND(ISBLANK('Summary-TBC BY SCHOOL'!$B125),ISBLANK('Summary-TBC BY SCHOOL'!$D125)),\"\",\"SCH Fees\")","v":""},{"$f":"IF(AND(ISBLANK('Summary-TBC BY SCHOOL'!$D125),ISBLANK('Summary-TBC BY SCHOOL'!$B125)),\"\",IF(ISBLANK('Summary-TBC BY SCHOOL'!$B125),'Summary-TBC BY SCHOOL'!$D125,'Summary-TBC BY SCHOOL'!$B125))","v":""},{"$f":"IF(ISBLANK('Summary-TBC BY SCHOOL'!$C125),\"\",'Summary-TBC BY SCHOOL'!C125)","v":""},{"$f":"IF(AND(ISBLANK('Summary-TBC BY SCHOOL'!$B125),ISBLANK('Summary-TBC BY SCHOOL'!$D125)),\"\",'Summary-TBC BY SCHOOL'!E125)","v":""},"11/07/2022",{"$f":"IFERROR(IF(AND(ISBLANK('Summary-TBC BY SCHOOL'!$D125),ISBLANK('Summary-TBC BY SCHOOL'!$B125)),\"\",'Summary-TBC BY SCHOOL'!$I125*100),\"\")","v":""},{"$f":"IF(ISBLANK('Summary-TBC BY SCHOOL'!$A125),\"\",'Summary-TBC BY SCHOOL'!$A125)","v":""}]
[{"$f":"IF(AND(ISBLANK('Summary-TBC BY SCHOOL'!$B126),ISBLANK('Summary-TBC BY SCHOOL'!$D126)),\"\",\"SCH Fees\")","v":""},{"$f":"IF(AND(ISBLANK('Summary-TBC BY SCHOOL'!$D126),ISBLANK('Summary-TBC BY SCHOOL'!$B126)),\"\",IF(ISBLANK('Summary-TBC BY SCHOOL'!$B126),'Summary-TBC BY SCHOOL'!$D126,'Summary-TBC BY SCHOOL'!$B126))","v":""},{"$f":"IF(ISBLANK('Summary-TBC BY SCHOOL'!$C126),\"\",'Summary-TBC BY SCHOOL'!C126)","v":""},{"$f":"IF(AND(ISBLANK('Summary-TBC BY SCHOOL'!$B126),ISBLANK('Summary-TBC BY SCHOOL'!$D126)),\"\",'Summary-TBC BY SCHOOL'!E126)","v":""},"11/07/2022",{"$f":"IFERROR(IF(AND(ISBLANK('Summary-TBC BY SCHOOL'!$D126),ISBLANK('Summary-TBC BY SCHOOL'!$B126)),\"\",'Summary-TBC BY SCHOOL'!$I126*100),\"\")","v":""},{"$f":"IF(ISBLANK('Summary-TBC BY SCHOOL'!$A126),\"\",'Summary-TBC BY SCHOOL'!$A126)","v":""}]
[{"$f":"IF(AND(ISBLANK('Summary-TBC BY SCHOOL'!$B127),ISBLANK('Summary-TBC BY SCHOOL'!$D127)),\"\",\"SCH Fees\")","v":""},{"$f":"IF(AND(ISBLANK('Summary-TBC BY SCHOOL'!$D127),ISBLANK('Summary-TBC BY SCHOOL'!$B127)),\"\",IF(ISBLANK('Summary-TBC BY SCHOOL'!$B127),'Summary-TBC BY SCHOOL'!$D127,'Summary-TBC BY SCHOOL'!$B127))","v":""},{"$f":"IF(ISBLANK('Summary-TBC BY SCHOOL'!$C127),\"\",'Summary-TBC BY SCHOOL'!C127)","v":""},{"$f":"IF(AND(ISBLANK('Summary-TBC BY SCHOOL'!$B127),ISBLANK('Summary-TBC BY SCHOOL'!$D127)),\"\",'Summary-TBC BY SCHOOL'!E127)","v":""},"11/07/2022",{"$f":"IFERROR(IF(AND(ISBLANK('Summary-TBC BY SCHOOL'!$D127),ISBLANK('Summary-TBC BY SCHOOL'!$B127)),\"\",'Summary-TBC BY SCHOOL'!$I127*100),\"\")","v":""},{"$f":"IF(ISBLANK('Summary-TBC BY SCHOOL'!$A127),\"\",'Summary-TBC BY SCHOOL'!$A127)","v":""}]
[{"$f":"IF(AND(ISBLANK('Summary-TBC BY SCHOOL'!$B128),ISBLANK('Summary-TBC BY SCHOOL'!$D128)),\"\",\"SCH Fees\")","v":""},{"$f":"IF(AND(ISBLANK('Summary-TBC BY SCHOOL'!$D128),ISBLANK('Summary-TBC BY SCHOOL'!$B128)),\"\",IF(ISBLANK('Summary-TBC BY SCHOOL'!$B128),'Summary-TBC BY SCHOOL'!$D128,'Summary-TBC BY SCHOOL'!$B128))","v":""},{"$f":"IF(ISBLANK('Summary-TBC BY SCHOOL'!$C128),\"\",'Summary-TBC BY SCHOOL'!C128)","v":""},{"$f":"IF(AND(ISBLANK('Summary-TBC BY SCHOOL'!$B128),ISBLANK('Summary-TBC BY SCHOOL'!$D128)),\"\",'Summary-TBC BY SCHOOL'!E128)","v":""},"11/07/2022",{"$f":"IFERROR(IF(AND(ISBLANK('Summary-TBC BY SCHOOL'!$D128),ISBLANK('Summary-TBC BY SCHOOL'!$B128)),\"\",'Summary-TBC BY SCHOOL'!$I128*100),\"\")","v":""},{"$f":"IF(ISBLANK('Summary-TBC BY SCHOOL'!$A128),\"\",'Summary-TBC BY SCHOOL'!$A128)","v":""}]
[{"$f":"IF(AND(ISBLANK('Summary-TBC BY SCHOOL'!$B129),ISBLANK('Summary-TBC BY SCHOOL'!$D129)),\"\",\"SCH Fees\")","v":""},{"$f":"IF(AND(ISBLANK('Summary-TBC BY SCHOOL'!$D129),ISBLANK('Summary-TBC BY SCHOOL'!$B129)),\"\",IF(ISBLANK('Summary-TBC BY SCHOOL'!$B129),'Summary-TBC BY SCHOOL'!$D129,'Summary-TBC BY SCHOOL'!$B129))","v":""},{"$f":"IF(ISBLANK('Summary-TBC BY SCHOOL'!$C129),\"\",'Summary-TBC BY SCHOOL'!C129)","v":""},{"$f":"IF(AND(ISBLANK('Summary-TBC BY SCHOOL'!$B129),ISBLANK('Summary-TBC BY SCHOOL'!$D129)),\"\",'Summary-TBC BY SCHOOL'!E129)","v":""},"11/07/2022",{"$f":"IFERROR(IF(AND(ISBLANK('Summary-TBC BY SCHOOL'!$D129),ISBLANK('Summary-TBC BY SCHOOL'!$B129)),\"\",'Summary-TBC BY SCHOOL'!$I129*100),\"\")","v":""},{"$f":"IF(ISBLANK('Summary-TBC BY SCHOOL'!$A129),\"\",'Summary-TBC BY SCHOOL'!$A129)","v":""}]
[{"$f":"IF(AND(ISBLANK('Summary-TBC BY SCHOOL'!$B130),ISBLANK('Summary-TBC BY SCHOOL'!$D130)),\"\",\"SCH Fees\")","v":""},{"$f":"IF(AND(ISBLANK('Summary-TBC BY SCHOOL'!$D130),ISBLANK('Summary-TBC BY SCHOOL'!$B130)),\"\",IF(ISBLANK('Summary-TBC BY SCHOOL'!$B130),'Summary-TBC BY SCHOOL'!$D130,'Summary-TBC BY SCHOOL'!$B130))","v":""},{"$f":"IF(ISBLANK('Summary-TBC BY SCHOOL'!$C130),\"\",'Summary-TBC BY SCHOOL'!C130)","v":""},{"$f":"IF(AND(ISBLANK('Summary-TBC BY SCHOOL'!$B130),ISBLANK('Summary-TBC BY SCHOOL'!$D130)),\"\",'Summary-TBC BY SCHOOL'!E130)","v":""},"11/07/2022",{"$f":"IFERROR(IF(AND(ISBLANK('Summary-TBC BY SCHOOL'!$D130),ISBLANK('Summary-TBC BY SCHOOL'!$B130)),\"\",'Summary-TBC BY SCHOOL'!$I130*100),\"\")","v":""},{"$f":"IF(ISBLANK('Summary-TBC BY SCHOOL'!$A130),\"\",'Summary-TBC BY SCHOOL'!$A130)","v":""}]
[{"$f":"IF(AND(ISBLANK('Summary-TBC BY SCHOOL'!$B131),ISBLANK('Summary-TBC BY SCHOOL'!$D131)),\"\",\"SCH Fees\")","v":""},{"$f":"IF(AND(ISBLANK('Summary-TBC BY SCHOOL'!$D131),ISBLANK('Summary-TBC BY SCHOOL'!$B131)),\"\",IF(ISBLANK('Summary-TBC BY SCHOOL'!$B131),'Summary-TBC BY SCHOOL'!$D131,'Summary-TBC BY SCHOOL'!$B131))","v":""},{"$f":"IF(ISBLANK('Summary-TBC BY SCHOOL'!$C131),\"\",'Summary-TBC BY SCHOOL'!C131)","v":""},{"$f":"IF(AND(ISBLANK('Summary-TBC BY SCHOOL'!$B131),ISBLANK('Summary-TBC BY SCHOOL'!$D131)),\"\",'Summary-TBC BY SCHOOL'!E131)","v":""},"11/07/2022",{"$f":"IFERROR(IF(AND(ISBLANK('Summary-TBC BY SCHOOL'!$D131),ISBLANK('Summary-TBC BY SCHOOL'!$B131)),\"\",'Summary-TBC BY SCHOOL'!$I131*100),\"\")","v":""},{"$f":"IF(ISBLANK('Summary-TBC BY SCHOOL'!$A131),\"\",'Summary-TBC BY SCHOOL'!$A131)","v":""}]
[{"$f":"IF(AND(ISBLANK('Summary-TBC BY SCHOOL'!$B132),ISBLANK('Summary-TBC BY SCHOOL'!$D132)),\"\",\"SCH Fees\")","v":""},{"$f":"IF(AND(ISBLANK('Summary-TBC BY SCHOOL'!$D132),ISBLANK('Summary-TBC BY SCHOOL'!$B132)),\"\",IF(ISBLANK('Summary-TBC BY SCHOOL'!$B132),'Summary-TBC BY SCHOOL'!$D132,'Summary-TBC BY SCHOOL'!$B132))","v":""},{"$f":"IF(ISBLANK('Summary-TBC BY SCHOOL'!$C132),\"\",'Summary-TBC BY SCHOOL'!C132)","v":""},{"$f":"IF(AND(ISBLANK('Summary-TBC BY SCHOOL'!$B132),ISBLANK('Summary-TBC BY SCHOOL'!$D132)),\"\",'Summary-TBC BY SCHOOL'!E132)","v":""},"11/07/2022",{"$f":"IFERROR(IF(AND(ISBLANK('Summary-TBC BY SCHOOL'!$D132),ISBLANK('Summary-TBC BY SCHOOL'!$B132)),\"\",'Summary-TBC BY SCHOOL'!$I132*100),\"\")","v":""},{"$f":"IF(ISBLANK('Summary-TBC BY SCHOOL'!$A132),\"\",'Summary-TBC BY SCHOOL'!$A132)","v":""}]
[{"$f":"IF(AND(ISBLANK('Summary-TBC BY SCHOOL'!$B133),ISBLANK('Summary-TBC BY SCHOOL'!$D133)),\"\",\"SCH Fees\")","v":""},{"$f":"IF(AND(ISBLANK('Summary-TBC BY SCHOOL'!$D133),ISBLANK('Summary-TBC BY SCHOOL'!$B133)),\"\",IF(ISBLANK('Summary-TBC BY SCHOOL'!$B133),'Summary-TBC BY SCHOOL'!$D133,'Summary-TBC BY SCHOOL'!$B133))","v":""},{"$f":"IF(ISBLANK('Summary-TBC BY SCHOOL'!$C133),\"\",'Summary-TBC BY SCHOOL'!C133)","v":""},{"$f":"IF(AND(ISBLANK('Summary-TBC BY SCHOOL'!$B133),ISBLANK('Summary-TBC BY SCHOOL'!$D133)),\"\",'Summary-TBC BY SCHOOL'!E133)","v":""},"11/07/2022",{"$f":"IFERROR(IF(AND(ISBLANK('Summary-TBC BY SCHOOL'!$D133),ISBLANK('Summary-TBC BY SCHOOL'!$B133)),\"\",'Summary-TBC BY SCHOOL'!$I133*100),\"\")","v":""},{"$f":"IF(ISBLANK('Summary-TBC BY SCHOOL'!$A133),\"\",'Summary-TBC BY SCHOOL'!$A133)","v":""}]
[{"$f":"IF(AND(ISBLANK('Summary-TBC BY SCHOOL'!$B134),ISBLANK('Summary-TBC BY SCHOOL'!$D134)),\"\",\"SCH Fees\")","v":""},{"$f":"IF(AND(ISBLANK('Summary-TBC BY SCHOOL'!$D134),ISBLANK('Summary-TBC BY SCHOOL'!$B134)),\"\",IF(ISBLANK('Summary-TBC BY SCHOOL'!$B134),'Summary-TBC BY SCHOOL'!$D134,'Summary-TBC BY SCHOOL'!$B134))","v":""},{"$f":"IF(ISBLANK('Summary-TBC BY SCHOOL'!$C134),\"\",'Summary-TBC BY SCHOOL'!C134)","v":""},{"$f":"IF(AND(ISBLANK('Summary-TBC BY SCHOOL'!$B134),ISBLANK('Summary-TBC BY SCHOOL'!$D134)),\"\",'Summary-TBC BY SCHOOL'!E134)","v":""},"11/07/2022",{"$f":"IFERROR(IF(AND(ISBLANK('Summary-TBC BY SCHOOL'!$D134),ISBLANK('Summary-TBC BY SCHOOL'!$B134)),\"\",'Summary-TBC BY SCHOOL'!$I134*100),\"\")","v":""},{"$f":"IF(ISBLANK('Summary-TBC BY SCHOOL'!$A134),\"\",'Summary-TBC BY SCHOOL'!$A134)","v":""}]
[{"$f":"IF(AND(ISBLANK('Summary-TBC BY SCHOOL'!$B135),ISBLANK('Summary-TBC BY SCHOOL'!$D135)),\"\",\"SCH Fees\")","v":""},{"$f":"IF(AND(ISBLANK('Summary-TBC BY SCHOOL'!$D135),ISBLANK('Summary-TBC BY SCHOOL'!$B135)),\"\",IF(ISBLANK('Summary-TBC BY SCHOOL'!$B135),'Summary-TBC BY SCHOOL'!$D135,'Summary-TBC BY SCHOOL'!$B135))","v":""},{"$f":"IF(ISBLANK('Summary-TBC BY SCHOOL'!$C135),\"\",'Summary-TBC BY SCHOOL'!C135)","v":""},{"$f":"IF(AND(ISBLANK('Summary-TBC BY SCHOOL'!$B135),ISBLANK('Summary-TBC BY SCHOOL'!$D135)),\"\",'Summary-TBC BY SCHOOL'!E135)","v":""},{"$f":"IF(ISBLANK($B131),\"\",IF((LEN(DAY(NOW())))=1,(\"0\"&DAY(NOW())),DAY(NOW()))&\"/\"&IF((LEN(MONTH(NOW())))=1,(\"0\"&MONTH(NOW())),MONTH(NOW()))&\"/\"&YEAR(NOW()))","v":"11/07/2022"},{"$f":"IFERROR(IF(AND(ISBLANK('Summary-TBC BY SCHOOL'!$D135),ISBLANK('Summary-TBC BY SCHOOL'!$B135)),\"\",'Summary-TBC BY SCHOOL'!$I135*100),\"\")","v":""},{"$f":"IF(ISBLANK('Summary-TBC BY SCHOOL'!$A135),\"\",'Summary-TBC BY SCHOOL'!$A135)","v":""}]
[{"$f":"IF(AND(ISBLANK('Summary-TBC BY SCHOOL'!$B136),ISBLANK('Summary-TBC BY SCHOOL'!$D136)),\"\",\"SCH Fees\")","v":""},{"$f":"IF(AND(ISBLANK('Summary-TBC BY SCHOOL'!$D136),ISBLANK('Summary-TBC BY SCHOOL'!$B136)),\"\",IF(ISBLANK('Summary-TBC BY SCHOOL'!$B136),'Summary-TBC BY SCHOOL'!$D136,'Summary-TBC BY SCHOOL'!$B136))","v":""},{"$f":"IF(ISBLANK('Summary-TBC BY SCHOOL'!$C136),\"\",'Summary-TBC BY SCHOOL'!C136)","v":""},{"$f":"IF(AND(ISBLANK('Summary-TBC BY SCHOOL'!$B136),ISBLANK('Summary-TBC BY SCHOOL'!$D136)),\"\",'Summary-TBC BY SCHOOL'!E136)","v":""},"11/07/2022",{"$f":"IFERROR(IF(AND(ISBLANK('Summary-TBC BY SCHOOL'!$D136),ISBLANK('Summary-TBC BY SCHOOL'!$B136)),\"\",'Summary-TBC BY SCHOOL'!$I136*100),\"\")","v":""},{"$f":"IF(ISBLANK('Summary-TBC BY SCHOOL'!$A136),\"\",'Summary-TBC BY SCHOOL'!$A136)","v":""}]
[{"$f":"IF(AND(ISBLANK('Summary-TBC BY SCHOOL'!$B137),ISBLANK('Summary-TBC BY SCHOOL'!$D137)),\"\",\"SCH Fees\")","v":""},{"$f":"IF(AND(ISBLANK('Summary-TBC BY SCHOOL'!$D137),ISBLANK('Summary-TBC BY SCHOOL'!$B137)),\"\",IF(ISBLANK('Summary-TBC BY SCHOOL'!$B137),'Summary-TBC BY SCHOOL'!$D137,'Summary-TBC BY SCHOOL'!$B137))","v":""},{"$f":"IF(ISBLANK('Summary-TBC BY SCHOOL'!$C137),\"\",'Summary-TBC BY SCHOOL'!C137)","v":""},{"$f":"IF(AND(ISBLANK('Summary-TBC BY SCHOOL'!$B137),ISBLANK('Summary-TBC BY SCHOOL'!$D137)),\"\",'Summary-TBC BY SCHOOL'!E137)","v":""},"11/07/2022",{"$f":"IFERROR(IF(AND(ISBLANK('Summary-TBC BY SCHOOL'!$D137),ISBLANK('Summary-TBC BY SCHOOL'!$B137)),\"\",'Summary-TBC BY SCHOOL'!$I137*100),\"\")","v":""},{"$f":"IF(ISBLANK('Summary-TBC BY SCHOOL'!$A137),\"\",'Summary-TBC BY SCHOOL'!$A137)","v":""}]
[{"$f":"IF(AND(ISBLANK('Summary-TBC BY SCHOOL'!$B138),ISBLANK('Summary-TBC BY SCHOOL'!$D138)),\"\",\"SCH Fees\")","v":""},{"$f":"IF(AND(ISBLANK('Summary-TBC BY SCHOOL'!$D138),ISBLANK('Summary-TBC BY SCHOOL'!$B138)),\"\",IF(ISBLANK('Summary-TBC BY SCHOOL'!$B138),'Summary-TBC BY SCHOOL'!$D138,'Summary-TBC BY SCHOOL'!$B138))","v":""},{"$f":"IF(ISBLANK('Summary-TBC BY SCHOOL'!$C138),\"\",'Summary-TBC BY SCHOOL'!C138)","v":""},{"$f":"IF(AND(ISBLANK('Summary-TBC BY SCHOOL'!$B138),ISBLANK('Summary-TBC BY SCHOOL'!$D138)),\"\",'Summary-TBC BY SCHOOL'!E138)","v":""},"11/07/2022",{"$f":"IFERROR(IF(AND(ISBLANK('Summary-TBC BY SCHOOL'!$D138),ISBLANK('Summary-TBC BY SCHOOL'!$B138)),\"\",'Summary-TBC BY SCHOOL'!$I138*100),\"\")","v":""},{"$f":"IF(ISBLANK('Summary-TBC BY SCHOOL'!$A138),\"\",'Summary-TBC BY SCHOOL'!$A138)","v":""}]
[{"$f":"IF(AND(ISBLANK('Summary-TBC BY SCHOOL'!$B139),ISBLANK('Summary-TBC BY SCHOOL'!$D139)),\"\",\"SCH Fees\")","v":""},{"$f":"IF(AND(ISBLANK('Summary-TBC BY SCHOOL'!$D139),ISBLANK('Summary-TBC BY SCHOOL'!$B139)),\"\",IF(ISBLANK('Summary-TBC BY SCHOOL'!$B139),'Summary-TBC BY SCHOOL'!$D139,'Summary-TBC BY SCHOOL'!$B139))","v":""},{"$f":"IF(ISBLANK('Summary-TBC BY SCHOOL'!$C139),\"\",'Summary-TBC BY SCHOOL'!C139)","v":""},{"$f":"IF(AND(ISBLANK('Summary-TBC BY SCHOOL'!$B139),ISBLANK('Summary-TBC BY SCHOOL'!$D139)),\"\",'Summary-TBC BY SCHOOL'!E139)","v":""},"11/07/2022",{"$f":"IFERROR(IF(AND(ISBLANK('Summary-TBC BY SCHOOL'!$D139),ISBLANK('Summary-TBC BY SCHOOL'!$B139)),\"\",'Summary-TBC BY SCHOOL'!$I139*100),\"\")","v":""},{"$f":"IF(ISBLANK('Summary-TBC BY SCHOOL'!$A139),\"\",'Summary-TBC BY SCHOOL'!$A139)","v":""}]
[{"$f":"IF(AND(ISBLANK('Summary-TBC BY SCHOOL'!$B140),ISBLANK('Summary-TBC BY SCHOOL'!$D140)),\"\",\"SCH Fees\")","v":""},{"$f":"IF(AND(ISBLANK('Summary-TBC BY SCHOOL'!$D140),ISBLANK('Summary-TBC BY SCHOOL'!$B140)),\"\",IF(ISBLANK('Summary-TBC BY SCHOOL'!$B140),'Summary-TBC BY SCHOOL'!$D140,'Summary-TBC BY SCHOOL'!$B140))","v":""},{"$f":"IF(ISBLANK('Summary-TBC BY SCHOOL'!$C140),\"\",'Summary-TBC BY SCHOOL'!C140)","v":""},{"$f":"IF(AND(ISBLANK('Summary-TBC BY SCHOOL'!$B140),ISBLANK('Summary-TBC BY SCHOOL'!$D140)),\"\",'Summary-TBC BY SCHOOL'!E140)","v":""},"11/07/2022",{"$f":"IFERROR(IF(AND(ISBLANK('Summary-TBC BY SCHOOL'!$D140),ISBLANK('Summary-TBC BY SCHOOL'!$B140)),\"\",'Summary-TBC BY SCHOOL'!$I140*100),\"\")","v":""},{"$f":"IF(ISBLANK('Summary-TBC BY SCHOOL'!$A140),\"\",'Summary-TBC BY SCHOOL'!$A140)","v":""}]
[{"$f":"IF(AND(ISBLANK('Summary-TBC BY SCHOOL'!$B141),ISBLANK('Summary-TBC BY SCHOOL'!$D141)),\"\",\"SCH Fees\")","v":""},{"$f":"IF(AND(ISBLANK('Summary-TBC BY SCHOOL'!$D141),ISBLANK('Summary-TBC BY SCHOOL'!$B141)),\"\",IF(ISBLANK('Summary-TBC BY SCHOOL'!$B141),'Summary-TBC BY SCHOOL'!$D141,'Summary-TBC BY SCHOOL'!$B141))","v":""},{"$f":"IF(ISBLANK('Summary-TBC BY SCHOOL'!$C141),\"\",'Summary-TBC BY SCHOOL'!C141)","v":""},{"$f":"IF(AND(ISBLANK('Summary-TBC BY SCHOOL'!$B141),ISBLANK('Summary-TBC BY SCHOOL'!$D141)),\"\",'Summary-TBC BY SCHOOL'!E141)","v":""},"11/07/2022",{"$f":"IFERROR(IF(AND(ISBLANK('Summary-TBC BY SCHOOL'!$D141),ISBLANK('Summary-TBC BY SCHOOL'!$B141)),\"\",'Summary-TBC BY SCHOOL'!$I141*100),\"\")","v":""},{"$f":"IF(ISBLANK('Summary-TBC BY SCHOOL'!$A141),\"\",'Summary-TBC BY SCHOOL'!$A141)","v":""}]
[{"$f":"IF(AND(ISBLANK('Summary-TBC BY SCHOOL'!$B142),ISBLANK('Summary-TBC BY SCHOOL'!$D142)),\"\",\"SCH Fees\")","v":""},{"$f":"IF(AND(ISBLANK('Summary-TBC BY SCHOOL'!$D142),ISBLANK('Summary-TBC BY SCHOOL'!$B142)),\"\",IF(ISBLANK('Summary-TBC BY SCHOOL'!$B142),'Summary-TBC BY SCHOOL'!$D142,'Summary-TBC BY SCHOOL'!$B142))","v":""},{"$f":"IF(ISBLANK('Summary-TBC BY SCHOOL'!$C142),\"\",'Summary-TBC BY SCHOOL'!C142)","v":""},{"$f":"IF(AND(ISBLANK('Summary-TBC BY SCHOOL'!$B142),ISBLANK('Summary-TBC BY SCHOOL'!$D142)),\"\",'Summary-TBC BY SCHOOL'!E142)","v":""},"11/07/2022",{"$f":"IFERROR(IF(AND(ISBLANK('Summary-TBC BY SCHOOL'!$D142),ISBLANK('Summary-TBC BY SCHOOL'!$B142)),\"\",'Summary-TBC BY SCHOOL'!$I142*100),\"\")","v":""},{"$f":"IF(ISBLANK('Summary-TBC BY SCHOOL'!$A142),\"\",'Summary-TBC BY SCHOOL'!$A142)","v":""}]
[{"$f":"IF(AND(ISBLANK('Summary-TBC BY SCHOOL'!$B143),ISBLANK('Summary-TBC BY SCHOOL'!$D143)),\"\",\"SCH Fees\")","v":""},{"$f":"IF(AND(ISBLANK('Summary-TBC BY SCHOOL'!$D143),ISBLANK('Summary-TBC BY SCHOOL'!$B143)),\"\",IF(ISBLANK('Summary-TBC BY SCHOOL'!$B143),'Summary-TBC BY SCHOOL'!$D143,'Summary-TBC BY SCHOOL'!$B143))","v":""},{"$f":"IF(ISBLANK('Summary-TBC BY SCHOOL'!$C143),\"\",'Summary-TBC BY SCHOOL'!C143)","v":""},{"$f":"IF(AND(ISBLANK('Summary-TBC BY SCHOOL'!$B143),ISBLANK('Summary-TBC BY SCHOOL'!$D143)),\"\",'Summary-TBC BY SCHOOL'!E143)","v":""},"11/07/2022",{"$f":"IFERROR(IF(AND(ISBLANK('Summary-TBC BY SCHOOL'!$D143),ISBLANK('Summary-TBC BY SCHOOL'!$B143)),\"\",'Summary-TBC BY SCHOOL'!$I143*100),\"\")","v":""},{"$f":"IF(ISBLANK('Summary-TBC BY SCHOOL'!$A143),\"\",'Summary-TBC BY SCHOOL'!$A143)","v":""}]
[{"$f":"IF(AND(ISBLANK('Summary-TBC BY SCHOOL'!$B144),ISBLANK('Summary-TBC BY SCHOOL'!$D144)),\"\",\"SCH Fees\")","v":""},{"$f":"IF(AND(ISBLANK('Summary-TBC BY SCHOOL'!$D144),ISBLANK('Summary-TBC BY SCHOOL'!$B144)),\"\",IF(ISBLANK('Summary-TBC BY SCHOOL'!$B144),'Summary-TBC BY SCHOOL'!$D144,'Summary-TBC BY SCHOOL'!$B144))","v":""},{"$f":"IF(ISBLANK('Summary-TBC BY SCHOOL'!$C144),\"\",'Summary-TBC BY SCHOOL'!C144)","v":""},{"$f":"IF(AND(ISBLANK('Summary-TBC BY SCHOOL'!$B144),ISBLANK('Summary-TBC BY SCHOOL'!$D144)),\"\",'Summary-TBC BY SCHOOL'!E144)","v":""},"11/07/2022",{"$f":"IFERROR(IF(AND(ISBLANK('Summary-TBC BY SCHOOL'!$D144),ISBLANK('Summary-TBC BY SCHOOL'!$B144)),\"\",'Summary-TBC BY SCHOOL'!$I144*100),\"\")","v":""},{"$f":"IF(ISBLANK('Summary-TBC BY SCHOOL'!$A144),\"\",'Summary-TBC BY SCHOOL'!$A144)","v":""}]
[{"$f":"IF(AND(ISBLANK('Summary-TBC BY SCHOOL'!$B145),ISBLANK('Summary-TBC BY SCHOOL'!$D145)),\"\",\"SCH Fees\")","v":""},{"$f":"IF(AND(ISBLANK('Summary-TBC BY SCHOOL'!$D145),ISBLANK('Summary-TBC BY SCHOOL'!$B145)),\"\",IF(ISBLANK('Summary-TBC BY SCHOOL'!$B145),'Summary-TBC BY SCHOOL'!$D145,'Summary-TBC BY SCHOOL'!$B145))","v":""},{"$f":"IF(ISBLANK('Summary-TBC BY SCHOOL'!$C145),\"\",'Summary-TBC BY SCHOOL'!C145)","v":""},{"$f":"IF(AND(ISBLANK('Summary-TBC BY SCHOOL'!$B145),ISBLANK('Summary-TBC BY SCHOOL'!$D145)),\"\",'Summary-TBC BY SCHOOL'!E145)","v":""},"11/07/2022",{"$f":"IFERROR(IF(AND(ISBLANK('Summary-TBC BY SCHOOL'!$D145),ISBLANK('Summary-TBC BY SCHOOL'!$B145)),\"\",'Summary-TBC BY SCHOOL'!$I145*100),\"\")","v":""},{"$f":"IF(ISBLANK('Summary-TBC BY SCHOOL'!$A145),\"\",'Summary-TBC BY SCHOOL'!$A145)","v":""}]
[{"$f":"IF(AND(ISBLANK('Summary-TBC BY SCHOOL'!$B146),ISBLANK('Summary-TBC BY SCHOOL'!$D146)),\"\",\"SCH Fees\")","v":""},{"$f":"IF(AND(ISBLANK('Summary-TBC BY SCHOOL'!$D146),ISBLANK('Summary-TBC BY SCHOOL'!$B146)),\"\",IF(ISBLANK('Summary-TBC BY SCHOOL'!$B146),'Summary-TBC BY SCHOOL'!$D146,'Summary-TBC BY SCHOOL'!$B146))","v":""},{"$f":"IF(ISBLANK('Summary-TBC BY SCHOOL'!$C146),\"\",'Summary-TBC BY SCHOOL'!C146)","v":""},{"$f":"IF(AND(ISBLANK('Summary-TBC BY SCHOOL'!$B146),ISBLANK('Summary-TBC BY SCHOOL'!$D146)),\"\",'Summary-TBC BY SCHOOL'!E146)","v":""},"11/07/2022",{"$f":"IFERROR(IF(AND(ISBLANK('Summary-TBC BY SCHOOL'!$D146),ISBLANK('Summary-TBC BY SCHOOL'!$B146)),\"\",'Summary-TBC BY SCHOOL'!$I146*100),\"\")","v":""},{"$f":"IF(ISBLANK('Summary-TBC BY SCHOOL'!$A146),\"\",'Summary-TBC BY SCHOOL'!$A146)","v":""}]
[{"$f":"IF(AND(ISBLANK('Summary-TBC BY SCHOOL'!$B147),ISBLANK('Summary-TBC BY SCHOOL'!$D147)),\"\",\"SCH Fees\")","v":""},{"$f":"IF(AND(ISBLANK('Summary-TBC BY SCHOOL'!$D147),ISBLANK('Summary-TBC BY SCHOOL'!$B147)),\"\",IF(ISBLANK('Summary-TBC BY SCHOOL'!$B147),'Summary-TBC BY SCHOOL'!$D147,'Summary-TBC BY SCHOOL'!$B147))","v":""},{"$f":"IF(ISBLANK('Summary-TBC BY SCHOOL'!$C147),\"\",'Summary-TBC BY SCHOOL'!C147)","v":""},{"$f":"IF(AND(ISBLANK('Summary-TBC BY SCHOOL'!$B147),ISBLANK('Summary-TBC BY SCHOOL'!$D147)),\"\",'Summary-TBC BY SCHOOL'!E147)","v":""},"11/07/2022",{"$f":"IFERROR(IF(AND(ISBLANK('Summary-TBC BY SCHOOL'!$D147),ISBLANK('Summary-TBC BY SCHOOL'!$B147)),\"\",'Summary-TBC BY SCHOOL'!$I147*100),\"\")","v":""},{"$f":"IF(ISBLANK('Summary-TBC BY SCHOOL'!$A147),\"\",'Summary-TBC BY SCHOOL'!$A147)","v":""}]
[{"$f":"IF(AND(ISBLANK('Summary-TBC BY SCHOOL'!$B148),ISBLANK('Summary-TBC BY SCHOOL'!$D148)),\"\",\"SCH Fees\")","v":""},{"$f":"IF(AND(ISBLANK('Summary-TBC BY SCHOOL'!$D148),ISBLANK('Summary-TBC BY SCHOOL'!$B148)),\"\",IF(ISBLANK('Summary-TBC BY SCHOOL'!$B148),'Summary-TBC BY SCHOOL'!$D148,'Summary-TBC BY SCHOOL'!$B148))","v":""},{"$f":"IF(ISBLANK('Summary-TBC BY SCHOOL'!$C148),\"\",'Summary-TBC BY SCHOOL'!C148)","v":""},{"$f":"IF(AND(ISBLANK('Summary-TBC BY SCHOOL'!$B148),ISBLANK('Summary-TBC BY SCHOOL'!$D148)),\"\",'Summary-TBC BY SCHOOL'!E148)","v":""},"11/07/2022",{"$f":"IFERROR(IF(AND(ISBLANK('Summary-TBC BY SCHOOL'!$D148),ISBLANK('Summary-TBC BY SCHOOL'!$B148)),\"\",'Summary-TBC BY SCHOOL'!$I148*100),\"\")","v":""},{"$f":"IF(ISBLANK('Summary-TBC BY SCHOOL'!$A148),\"\",'Summary-TBC BY SCHOOL'!$A148)","v":""}]
[{"$f":"IF(AND(ISBLANK('Summary-TBC BY SCHOOL'!$B149),ISBLANK('Summary-TBC BY SCHOOL'!$D149)),\"\",\"SCH Fees\")","v":""},{"$f":"IF(AND(ISBLANK('Summary-TBC BY SCHOOL'!$D149),ISBLANK('Summary-TBC BY SCHOOL'!$B149)),\"\",IF(ISBLANK('Summary-TBC BY SCHOOL'!$B149),'Summary-TBC BY SCHOOL'!$D149,'Summary-TBC BY SCHOOL'!$B149))","v":""},{"$f":"IF(ISBLANK('Summary-TBC BY SCHOOL'!$C149),\"\",'Summary-TBC BY SCHOOL'!C149)","v":""},{"$f":"IF(AND(ISBLANK('Summary-TBC BY SCHOOL'!$B149),ISBLANK('Summary-TBC BY SCHOOL'!$D149)),\"\",'Summary-TBC BY SCHOOL'!E149)","v":""},"11/07/2022",{"$f":"IFERROR(IF(AND(ISBLANK('Summary-TBC BY SCHOOL'!$D149),ISBLANK('Summary-TBC BY SCHOOL'!$B149)),\"\",'Summary-TBC BY SCHOOL'!$I149*100),\"\")","v":""},{"$f":"IF(ISBLANK('Summary-TBC BY SCHOOL'!$A149),\"\",'Summary-TBC BY SCHOOL'!$A149)","v":""}]
[{"$f":"IF(AND(ISBLANK('Summary-TBC BY SCHOOL'!$B150),ISBLANK('Summary-TBC BY SCHOOL'!$D150)),\"\",\"SCH Fees\")","v":""},{"$f":"IF(AND(ISBLANK('Summary-TBC BY SCHOOL'!$D150),ISBLANK('Summary-TBC BY SCHOOL'!$B150)),\"\",IF(ISBLANK('Summary-TBC BY SCHOOL'!$B150),'Summary-TBC BY SCHOOL'!$D150,'Summary-TBC BY SCHOOL'!$B150))","v":""},{"$f":"IF(ISBLANK('Summary-TBC BY SCHOOL'!$C150),\"\",'Summary-TBC BY SCHOOL'!C150)","v":""},{"$f":"IF(AND(ISBLANK('Summary-TBC BY SCHOOL'!$B150),ISBLANK('Summary-TBC BY SCHOOL'!$D150)),\"\",'Summary-TBC BY SCHOOL'!E150)","v":""},"11/07/2022",{"$f":"IFERROR(IF(AND(ISBLANK('Summary-TBC BY SCHOOL'!$D150),ISBLANK('Summary-TBC BY SCHOOL'!$B150)),\"\",'Summary-TBC BY SCHOOL'!$I150*100),\"\")","v":""},{"$f":"IF(ISBLANK('Summary-TBC BY SCHOOL'!$A150),\"\",'Summary-TBC BY SCHOOL'!$A150)","v":""}]
[{"$f":"IF(AND(ISBLANK('Summary-TBC BY SCHOOL'!$B151),ISBLANK('Summary-TBC BY SCHOOL'!$D151)),\"\",\"SCH Fees\")","v":""},{"$f":"IF(AND(ISBLANK('Summary-TBC BY SCHOOL'!$D151),ISBLANK('Summary-TBC BY SCHOOL'!$B151)),\"\",IF(ISBLANK('Summary-TBC BY SCHOOL'!$B151),'Summary-TBC BY SCHOOL'!$D151,'Summary-TBC BY SCHOOL'!$B151))","v":""},{"$f":"IF(ISBLANK('Summary-TBC BY SCHOOL'!$C151),\"\",'Summary-TBC BY SCHOOL'!C151)","v":""},{"$f":"IF(AND(ISBLANK('Summary-TBC BY SCHOOL'!$B151),ISBLANK('Summary-TBC BY SCHOOL'!$D151)),\"\",'Summary-TBC BY SCHOOL'!E151)","v":""},"11/07/2022",{"$f":"IFERROR(IF(AND(ISBLANK('Summary-TBC BY SCHOOL'!$D151),ISBLANK('Summary-TBC BY SCHOOL'!$B151)),\"\",'Summary-TBC BY SCHOOL'!$I151*100),\"\")","v":""},{"$f":"IF(ISBLANK('Summary-TBC BY SCHOOL'!$A151),\"\",'Summary-TBC BY SCHOOL'!$A151)","v":""}]
[{"$f":"IF(AND(ISBLANK('Summary-TBC BY SCHOOL'!$B152),ISBLANK('Summary-TBC BY SCHOOL'!$D152)),\"\",\"SCH Fees\")","v":""},{"$f":"IF(AND(ISBLANK('Summary-TBC BY SCHOOL'!$D152),ISBLANK('Summary-TBC BY SCHOOL'!$B152)),\"\",IF(ISBLANK('Summary-TBC BY SCHOOL'!$B152),'Summary-TBC BY SCHOOL'!$D152,'Summary-TBC BY SCHOOL'!$B152))","v":""},{"$f":"IF(ISBLANK('Summary-TBC BY SCHOOL'!$C152),\"\",'Summary-TBC BY SCHOOL'!C152)","v":""},{"$f":"IF(AND(ISBLANK('Summary-TBC BY SCHOOL'!$B152),ISBLANK('Summary-TBC BY SCHOOL'!$D152)),\"\",'Summary-TBC BY SCHOOL'!E152)","v":""},"11/07/2022",{"$f":"IFERROR(IF(AND(ISBLANK('Summary-TBC BY SCHOOL'!$D152),ISBLANK('Summary-TBC BY SCHOOL'!$B152)),\"\",'Summary-TBC BY SCHOOL'!$I152*100),\"\")","v":""},{"$f":"IF(ISBLANK('Summary-TBC BY SCHOOL'!$A152),\"\",'Summary-TBC BY SCHOOL'!$A152)","v":""}]
[{"$f":"IF(AND(ISBLANK('Summary-TBC BY SCHOOL'!$B153),ISBLANK('Summary-TBC BY SCHOOL'!$D153)),\"\",\"SCH Fees\")","v":""},{"$f":"IF(AND(ISBLANK('Summary-TBC BY SCHOOL'!$D153),ISBLANK('Summary-TBC BY SCHOOL'!$B153)),\"\",IF(ISBLANK('Summary-TBC BY SCHOOL'!$B153),'Summary-TBC BY SCHOOL'!$D153,'Summary-TBC BY SCHOOL'!$B153))","v":""},{"$f":"IF(ISBLANK('Summary-TBC BY SCHOOL'!$C153),\"\",'Summary-TBC BY SCHOOL'!C153)","v":""},{"$f":"IF(AND(ISBLANK('Summary-TBC BY SCHOOL'!$B153),ISBLANK('Summary-TBC BY SCHOOL'!$D153)),\"\",'Summary-TBC BY SCHOOL'!E153)","v":""},"11/07/2022",{"$f":"IFERROR(IF(AND(ISBLANK('Summary-TBC BY SCHOOL'!$D153),ISBLANK('Summary-TBC BY SCHOOL'!$B153)),\"\",'Summary-TBC BY SCHOOL'!$I153*100),\"\")","v":""},{"$f":"IF(ISBLANK('Summary-TBC BY SCHOOL'!$A153),\"\",'Summary-TBC BY SCHOOL'!$A153)","v":""}]
[{"$f":"IF(AND(ISBLANK('Summary-TBC BY SCHOOL'!$B154),ISBLANK('Summary-TBC BY SCHOOL'!$D154)),\"\",\"SCH Fees\")","v":""},{"$f":"IF(AND(ISBLANK('Summary-TBC BY SCHOOL'!$D154),ISBLANK('Summary-TBC BY SCHOOL'!$B154)),\"\",IF(ISBLANK('Summary-TBC BY SCHOOL'!$B154),'Summary-TBC BY SCHOOL'!$D154,'Summary-TBC BY SCHOOL'!$B154))","v":""},{"$f":"IF(ISBLANK('Summary-TBC BY SCHOOL'!$C154),\"\",'Summary-TBC BY SCHOOL'!C154)","v":""},{"$f":"IF(AND(ISBLANK('Summary-TBC BY SCHOOL'!$B154),ISBLANK('Summary-TBC BY SCHOOL'!$D154)),\"\",'Summary-TBC BY SCHOOL'!E154)","v":""},"11/07/2022",{"$f":"IFERROR(IF(AND(ISBLANK('Summary-TBC BY SCHOOL'!$D154),ISBLANK('Summary-TBC BY SCHOOL'!$B154)),\"\",'Summary-TBC BY SCHOOL'!$I154*100),\"\")","v":""},{"$f":"IF(ISBLANK('Summary-TBC BY SCHOOL'!$A154),\"\",'Summary-TBC BY SCHOOL'!$A154)","v":""}]
[{"$f":"IF(AND(ISBLANK('Summary-TBC BY SCHOOL'!$B155),ISBLANK('Summary-TBC BY SCHOOL'!$D155)),\"\",\"SCH Fees\")","v":""},{"$f":"IF(AND(ISBLANK('Summary-TBC BY SCHOOL'!$D155),ISBLANK('Summary-TBC BY SCHOOL'!$B155)),\"\",IF(ISBLANK('Summary-TBC BY SCHOOL'!$B155),'Summary-TBC BY SCHOOL'!$D155,'Summary-TBC BY SCHOOL'!$B155))","v":""},{"$f":"IF(ISBLANK('Summary-TBC BY SCHOOL'!$C155),\"\",'Summary-TBC BY SCHOOL'!C155)","v":""},{"$f":"IF(AND(ISBLANK('Summary-TBC BY SCHOOL'!$B155),ISBLANK('Summary-TBC BY SCHOOL'!$D155)),\"\",'Summary-TBC BY SCHOOL'!E155)","v":""},"11/07/2022",{"$f":"IFERROR(IF(AND(ISBLANK('Summary-TBC BY SCHOOL'!$D155),ISBLANK('Summary-TBC BY SCHOOL'!$B155)),\"\",'Summary-TBC BY SCHOOL'!$I155*100),\"\")","v":""},{"$f":"IF(ISBLANK('Summary-TBC BY SCHOOL'!$A155),\"\",'Summary-TBC BY SCHOOL'!$A155)","v":""}]

{"sheet":"UploadFile","index":4,"n_rows":0,"n_cols":0,"rows_kept":0,"cut":false,"hidden":true,"merged":[]}